Workbook

Sheet Sign Off
B2: Sign Off's
B4: Accounting
C6: Name | D6: Title | E6: Date
B7: Preparer | C7: Belen Villalba | D7: Temp Analyst | E7: 2020-01-06
B8: Reviewer | C8: William Adams | D8: Financial Analysis Manager | E8: 2020-01-14
B9: Approver | C9: N/A | D9: N/A | E9: N/A
B11: Audit Services
C13: Name | D13: Title | E13: Date
B14: Preparer
B16: Energy Delivery
C18: Name | D18: Title | E18: Date
B19: Final Reviewer

Sheet A - Contractor Summary
B2: Contractor Summary
B4: Test Plan: (A) Using the drop down list, select the vendor. (B) Ensure address agrees to invoice(s). (C) Enter the distance between vendor address to Plant City, FL. (D) Determine if vendor is part of the SEE (see tab A.1 for listing). (E) Determine if other agreements exist. (F) Using the drop down list, select the Incident Base that the vendor was initially assigned. (G) If the contractor includes multiple crews with different timelines, utilize the '+' symbol at the top of columns 'H' and 'K' (if necessary) to unhide the vendor summary. (H) Click the button to populate the second (and third, if necessary) set of tabs for documentation of those expenses. (I) Complete steps (A) through (F).
F14: G | I14: G
C15: Vendor #10 | F15: Vendor #2 | I15: Vendor #3
G17: H | J17: H
B19: Contractor/Company | C19: MASTEC NORTH AMERICA INC | D19: A | G19: A | J19: A
B20: SAP Vendor# | F20: 10044004 | I20: =VLOOKUP(I19,#REF!,2,FALSE) -> 
B21: Service Type | C21: Distribution | F21: Transmission | I21: =VLOOKUP($I$19,#REF!,4,FALSE) -> 
B23: Address | D23: B | G23: B | I23: =VLOOKUP($I$19,#REF!,13,FALSE) ->  | J23: B
B24: City | C24: High Point | I24: =VLOOKUP($I$19,#REF!,14,FALSE) -> 
B25: State/Providence | C25: NC | I25: =VLOOKUP($I$19,#REF!,15,FALSE) -> 
B26: Zip | I26: =VLOOKUP($I$19,#REF!,16,FALSE) -> 
B27: Country | C27: US | F27: US | I27: =VLOOKUP($I$19,#REF!,17,FALSE) -> 
B29: Distance from FL (in miles) | C29: 565 | D29: C | F29: 815 | G29: C | I29: 800 | J29: C
B30: Travel Days (500 m/per day) | F30: =ROUNDUP(F29/500,0) -> 2 | I30: =ROUNDUP(I29/500,0) -> 2
B32: Member of the SEE | D32: D | F32: NO | G32: D | I32: NO | J32: D
B33: Other Agreement/Contract (Y/N) | D33: E | F33: NO | G33: E | I33: NO | J33: E
B34: Incident Base | D34: F | F34: Winter Haven | G34: F | I34: Winter Haven | J34: F
B36: Date Secured | C36: 10/11/18-10/31/18 | F36: 2017-09-04 | I36: =VLOOKUP($I$19,#REF!,6,FALSE) -> 
B37: Start Travel | C37: 2018-10-11 | F37: N/A | I37: =VLOOKUP($I$19,#REF!,7,FALSE) -> 
B38: Date Arrived | C38: 2018-10-11 | E38: 1 crew retained until | F38: 2017-09-12 | I38: =VLOOKUP($I$19,#REF!,8,FALSE) -> 
B39: Date Released | C39: 2018-10-31 | E39: 2018-11-16 | F39: 2017-09-13 | I39: =VLOOKUP($I$19,#REF!,9,FALSE) -> 
B40: Time Released | F40: 16:27 | I40: =VLOOKUP($I$19,#REF!,10,FALSE) -> 
B41: Released To | C41: Melbourne FL | F41: Home | I41: =VLOOKUP($I$19,#REF!,11,FALSE) -> 
B42: Arrived Home/Utility* | C42: 2018-10-31 | F42: 2017-09-15 | I42: =IF(I41="home",SUM(IF(I29>500,I39+I30,I39)),I39) -> 
F47: C.1 - Rate Sheets (2) | I47: C.1 - Rate Sheets (3)
F48: C.2 - Timesheets - Labor (2) | I48: C.2 - Timesheets - Labor (3)
F49: C.4 - Timesheets - Equipmen (2) | I49: C.4 - Timesheets - Equipmen (3)
F50: D - Lodging (2) | I50: D - Lodging (3)
F51: E - Fuel (2) | I51: E - Fuel (3)
F52: F - Meals (2) | I52: F - Meals (3)
F53: G - Per Diem (2) | I53: G - Per Diem (3)
F54: H - Mileage (2) | I54: H - Mileage (3)
F55: I - Other (2) | I55: I - Other (3)
B59: *Estimates reasonable arrival time
B61: Tickmark Explanation:
B70: Truck | C70: Date | D70: Location | E70: Odometer Reading at 1st fuel | G70: 565 | H70: Distance from High Point NC to Marianna
B71: 342526 | C71: 2018-10-17 | D71: High Point NC | E71: 52405 | G71: 387 | H71: Distance from Marianna to Melbourne
B72: 315565 | C72: 2018-10-17 | D72: High Point NC | E72: 197526
B73: 327563 | C73: 2018-10-17 | D73: High Point NC | E73: 17495
B74: 327564 | C74: 2018-10-17 | D74: High Point NC | E74: 15550
B75: 326835 | C75: 2018-10-17 | D75: High Point NC | E75: 12400
B76: 329005 | C76: 2018-10-17 | D76: High Point NC | E76: 17193
B77: 339085 | C77: 2018-10-17 | D77: High Point NC | E77: 70782
B78: 342969 | C78: 2018-10-17 | D78: High Point NC | E78: 9574
B79: 329064 | C79: 2018-10-17 | D79: High Point NC | E79: 22576
B80: 343161 | C80: 2018-10-17 | D80: High Point NC | E80: 91464
B81: 327563 | C81: 2018-10-17 | D81: High Point NC | E81: 15430
B82: 327565 | C82: 2018-10-17 | D82: High Point NC | E82: 19041
B83: 326846 | C83: 2018-10-17 | D83: High Point NC | E83: 21328
B85: 326835 | C85: 2018-10-31 | D85: unknown | E85: 14818
B86: 326835 | C86: 2018-10-31 | D86: Melbourne | E86: 14496
B87: 316104 | C87: 2018-10-31 | D87: Melbourne | E87: 22233
B88: 342969 | C88: 2018-10-31 | D88: Melbourne | E88: 10359
B89: 315565 | C89: 2018-10-31 | D89: Melbourne
B90: 329064 | C90: 2018-10-31 | D90: Melbourne | E90: 17662
B91: 329005 | C91: 2018-10-31 | D91: Melbourne | E91: 17883
B92: 327564 | C92: 2018-10-31 | D92: Melbourne | E92: 16342
B93: 326846 | C93: 2018-10-31 | D93: Melbourne | E93: 21940
B94: 327565 | C94: 2018-10-31 | D94: Melbourne | E94: 19897
B95: 339085 | C95: 2018-10-31 | D95: Melbourne

Sheet A.1 SEE Members
A1: RMAG | B1: RESPONDING COMPANY | C1: COMPANY NAME
A2: SEE
A3: SEE
A4: SEE
A5: SEE
A6: SEE
A7: SEE
A8: SEE
A9: SEE
A10: SEE
A11: SEE
A12: SEE
A13: SEE
A14: SEE
A15: SEE
A16: SEE
A17: SEE
A18: SEE
A19: SEE
A24: SEE
A25: SEE
A26: SEE
A27: SEE
A28: SEE
A29: SEE
A31: SEE
A32: SEE
A33: SEE
A34: SEE
A35: SEE
A40: SEE
A41: SEE
A42: SEE
A43: SEE
A47: SEE
A55: SEE
A56: SEE
A57: SEE
A61: SEE
A64: SEE
A65: SEE

Sheet B - Summary Expenses
B2: Summary of Expenses
B4: Test Plan: (A) Calculate Total Amount Invoiced for each expense category. (B) Using SAP t-code FBL1N, list Vendor Invoices Paid. (C) Ensure there are no differences between the Total Expense Amount and the Total Paid Amount. (D) Ensure there are no difference between Total Invoiced Amount and Total Expense Amount. (E) If applicable, identify difference due to Foreign currency exchange rates.
C9: A
C10: Total Invoiced | D10: Total Calculated | E10: Allowable | F10: Reviewed - Allowed | G10: Reviewed - Not Allowable | H10: Not Allowable
B11: Labor Expense Total | C11: 640197.83 | D11: =+'C.2 - Timesheets - Labor'!FA109 -> 640197.84 | E11: ='C.2 - Timesheets - Labor'!FB109 -> 640197.84 | F11: ='C.2 - Timesheets - Labor'!FE109 -> 0 | G11: ='C.2 - Timesheets - Labor'!FF109 -> 0 | H11: =D11-(E11+F11+G11) -> 0
B12: Equipment Expense Total | C12: 266082.55 | D12: =+'C.4 - Timesheets - Equipment'!AT106 -> 266082.55 | E12: ='C.4 - Timesheets - Equipment'!AU106 -> 266082.55 | F12: ='C.4 - Timesheets - Equipment'!AW106 -> 0 | G12: ='C.4 - Timesheets - Equipment'!AX106 -> 0 | H12: 0
B13: Lodging Expense Total | D13: =+'D - Lodging'!L32 -> 0 | F13: ='D - Lodging'!V32 -> 0 | G13: ='D - Lodging'!W32 -> 0 | H13: 0
B14: Fuel/Transport Expense Total | C14: 3371.23 | D14: =+'E - Fuel'!J62 -> 3371.23 | E14: ='E - Fuel'!Q62 -> 0 | F14: ='E - Fuel'!S62 -> 3371.23 | G14: ='E - Fuel'!T62 -> 0 | H14: 0
B15: Meal Expense Total | C15: 828.95 | D15: =+'F - Meals'!R18 -> 828.9545 | E15: =+'F - Meals'!R18 -> 828.9545 | F15: ='F - Meals'!T18 -> 0 | G15: ='F - Meals'!U18 -> 0 | H15: 0
B16: Per Diem Expense Total | D16: =+'G - Per Diem'!I33 -> 0 | E16: ='G - Per Diem'!N33 -> 0 | F16: ='G - Per Diem'!P33 -> 0 | G16: ='G - Per Diem'!Q33 -> 0 | H16: 0
B17: Mileage Expense Total | F17: ='H - Mileage'!T36 -> 0 | G17: ='H - Mileage'!U36 -> 0 | H17: 0
B18: Other Expense | F18: ='I - Other'!T16 -> 0 | G18: ='I - Other'!U16 -> 0 | H18: 0
B20: Total Expense per tabs | C20: =SUM(C11:C18) -> 910480.56 | D20: 910480.5745 | E20: 907109.3445 | F20: 3371.23 | G20: 0 | H20: 0
B21: Difference | C21: =IF(D21=0,"","1") -> 1 | D21: =C20-D20 -> -0.01450000016 | E21: D
B23: Total Expense | D23: =+D20 -> 910480.5745 | E23: (from Total SAP Summary)
B24: Total Paid | D24: =-D60 -> -910480.57 | E24: (from FBL1N in SAP)
B25: Difference | C25: =IF(D25=0,"",SUM(C21,1)) -> 1 | D25: =+D23+D24 -> 0.004499999923 | E25: C
B27: Exchange Rate
B28: Fx Adjusted to USD
B29: Difference | C29: =IF(D29=0,"","3") ->  | E29: E
B31: B
B33: Document No | C33: Doc Date | D33: Amount | E33: Reference
B34: TLH-STORM-1031-SW18 | C34: 2018-11-30 | D34: 819825.26 | E34: 680996
B35: TLH-STORM-1130-SW18 | C35: 2018-11-30 | D35: 90655.31 | E35: 680997
D60: =SUM(D34:D59) -> 910480.57
B62: Tickmark Explanation:
B63: =IFERROR(C21,"") -> 1
B65: =IFERROR(C25,"") -> 1

Sheet C.1 - Rate Sheets
B2: Labor Charges - Rate Sheet
B4: Test Plan: (A) Using the vendor rate sheet, ensure that a rate was provided for all Positions and Equipment types.
B6: Labor Types:
B7: ST | C7: Straight Time
B8: OT | C8: Over Time
B9: DT | C9: Double Time
B10: MOB/DMOB | C10: Mobilization/Demobilization Time
B13: Labor per Man Hour | H13: Labor per Equipment Hour
B14: A | H14: A
B15: POSITION | C15: ST | D15: OT | E15: DT | F15: MOB/DMOB | H15: Type | I15: $/HOUR
B16: General Foreman | C16: 112.11 | D16: 156.96 | E16: 199.98 | H16: Pickup Truck 4x4 | I16: 23.27 | J16: 1
B17: Foreman | C17: 92.23 | D17: 129.52 | E17: 165.02 | H17: Bucket 2x4 to 55' Mat. Handler | I17: 51.83
B18: Apprentice | C18: 60.26 | D18: 84.98 | E18: 110.01 | H18: Bucket 4x4 to 55' Mat. Handler | I18: 56.99
B19: Lineman A | C19: 85.64 | D19: 119.89 | E19: 152.49 | H19: Digger Derrick 4x4 to 10,000 LBS | I19: 64.45
B20: Lineman B | C20: 71.8 | D20: 104.14 | E20: 127.8 | H20: Rear Easement Bucket (Port. & Off Rd.) | I20: 57.41
B21: Lineman C | C21: 64.56 | D21: 93.67 | E21: 115.28 | H21: Pole Trailer | I21: 4.75
B22: Operator | C22: 56.13 | D22: 78.59 | E22: 100.92 | H22: Air Compressor | I22: 12.21
B23: Truck Driver | C23: 53.22 | D23: 74.44 | E23: 92.89
B54: Tickmark Explanation:
B55: 1

Sheet C.2 - Timesheets - Labor
B2: Labor Charges - Time Card
B4: Test Plan: | C4: Obtain the time cards. (A) Using the Asset by Company tab (C.3), populate the crew members names and positions (if provided). Find additional information regarding individual crew member from related invoice. (B) Enter hours worked from time card(s). (C) Confirm that the dates per the time cards fall between dates provided per 'A - Contractor Summary' tab. (D) Confirm the labor type charged agrees to the rate sheet. (E) Identify any labor charges to be reviewed (manually enter amounts based on reasonability of time period labor was charged, discrepancies between timecards and invoice, etc. (F) For charges which required further review, document review (include why it was determined to be allowed/disallowed via a tickmark).
B10: Rx | C10: Recalculated.
B11: a | C11: Provided from tab 'C.1 - Rate Sheets'.
B12: b | C12: Check figure should equal $0. Cell will appear yellow if discrepancies are noted.
C14: A | H14: Rx | J14: C | FB14: Rx | FD14: E | FE14: F
B15: # | C15: Name | D15: Position | E15: Company | F15: Crew# | G15: Invoice# | H15: Start Date | I15: End Date | J15: Dates Worked Reasonable? | K15: RATES | N15: 2018-10-11 | R15: 2018-10-12 | V15: 2018-10-13 | Z15: 2018-10-14 | AD15: 2018-10-15 | AH15: 2018-10-16 | AL15: 2018-10-17 | AP15: 2018-10-18 | AT15: 2018-10-19 | AX15: 2018-10-20 | BB15: 2018-10-21 | BF15: 2018-10-22 | BJ15: 2018-10-23 | BN15: 2018-10-24 | BR15: 2018-10-25 | BV15: 2018-10-26 | BZ15: 2018-10-27 | CD15: 2018-10-28 | CH15: 2018-10-29 | CL15: 2018-10-30 | CP15: 2018-10-31 | CT15: 2018-11-04 | CX15: 2018-11-05 | DB15: 2018-11-06 | DF15: 2018-11-07 | DJ15: 2018-11-08 | DN15: 2018-11-09 | DR15: 2018-11-10 | DV15: 2018-11-11 | DZ15: 2018-11-12 | ED15: 2018-11-13 | EH15: 2018-11-14 | EL15: 2018-11-15 | EP15: 2018-11-16 | ET15: Total Labor Hours | EX15: Total Labor $ | FB15: Allowable Charges | FC15: Labor Type Appropriate? | FD15: To Be Reviewed | FE15: Reviewed - Allowable Charge | FF15: Reviewed - Unallowable Charge | FG15: Tickmarks
N16: THU | O16: THU | P16: THU | Q16: THU | R16: FRI | S16: FRI | T16: FRI | U16: FRI | V16: SAT | W16: SAT | X16: SAT | Y16: SAT | Z16: SUN | AA16: SUN | AB16: SUN | AC16: SUN | AD16: MON | AE16: MON | AF16: MON | AG16: MON | AH16: TUE | AI16: TUE | AJ16: TUE | AK16: TUE | AL16: WED | AM16: WED | AN16: WED | AO16: WED | AP16: THU | AQ16: THU | AR16: THU | AS16: THU | AT16: FRI | AU16: FRI | AV16: FRI | AW16: FRI | AX16: SAT | AY16: SAT | AZ16: SAT | BA16: SAT | BB16: SUN | BC16: SUN | BD16: SUN | BE16: SUN | BF16: MON | BG16: MON | BH16: MON | BI16: MON | BJ16: TUE | BK16: TUE | BL16: TUE | BM16: TUE | BN16: WED | BO16: WED | BP16: WED | BQ16: WED | BR16: THU | BS16: THU | BT16: THU | BU16: THU | BV16: FRI | BW16: FRI | BX16: FRI | BY16: FRI | BZ16: SAT | CA16: SAT | CB16: SAT | CC16: SAT | CD16: SUN | CE16: SUN | CF16: SUN | CG16: SUN | CH16: MON | CI16: MON | CJ16: MON | CK16: MON | CL16: TUE | CM16: TUE | CN16: TUE | CO16: TUE | CP16: WED | CQ16: WED | CR16: WED | CS16: WED | CT16: SUN | CU16: SUN | CV16: SUN | CW16: SUN | CX16: MON | CY16: MON | CZ16: MON | DA16: MON | DB16: TUE | DC16: TUE | DD16: TUE | DE16: TUE | DF16: WED | DG16: WED | DH16: WED | DI16: WED | DJ16: THU | DK16: THU | DL16: THU | DM16: THU | DN16: FRI | DO16: FRI | DP16: FRI | DQ16: FRI | DR16: SAT | DS16: SAT | DT16: SAT | DU16: SAT | DV16: SUN | DW16: SUN | DX16: SUN | DY16: SUN | DZ16: MON | EA16: MON | EB16: MON | EC16: MON | ED16: TUE | EE16: TUE | EF16: TUE | EG16: TUE | EH16: WED | EI16: WED | EJ16: WED | EK16: WED | EL16: THU | EM16: THU | EN16: THU | EO16: THU | EP16: FRI | EQ16: FRI | ER16: FRI | ES16: FRI | ET16: ST | EU16: OT | EV16: DT | EW16: Total Hours | EX16: Total ST $ | EY16: Total OT $ | EZ16: Total DT $ | FA16: Total Labor $
K18: ST | L18: OT | M18: DT | N18: ST | O18: OT | P18: DT | Q18: Total | R18: ST | S18: OT | T18: DT | U18: Total | V18: ST | W18: OT | X18: DT | Y18: Total | Z18: ST | AA18: OT | AB18: DT | AC18: Total | AD18: ST | AE18: OT | AF18: DT | AG18: Total | AH18: ST | AI18: OT | AJ18: DT | AK18: Total | AL18: ST | AM18: OT | AN18: DT | AO18: Total | AP18: ST | AQ18: OT | AR18: DT | AS18: Total | AT18: ST | AU18: OT | AV18: DT | AW18: Total | AX18: ST | AY18: OT | AZ18: DT | BA18: Total | BB18: ST | BC18: OT | BD18: DT | BE18: Total | BF18: ST | BG18: OT | BH18: DT | BI18: Total | BJ18: ST | BK18: OT | BL18: DT | BM18: Total | BN18: ST | BO18: OT | BP18: DT | BQ18: Total | BR18: ST | BS18: OT | BT18: DT | BU18: Total | BV18: ST | BW18: OT | BX18: DT | BY18: Total | BZ18: ST | CA18: OT | CB18: DT | CC18: Total | CD18: ST | CE18: OT | CF18: DT | CG18: Total | CH18: ST | CI18: OT | CJ18: DT | CK18: Total | CL18: ST | CM18: OT | CN18: DT | CO18: Total | CP18: ST | CQ18: OT | CR18: DT | CS18: Total | CT18: ST | CU18: OT | CV18: DT | CW18: Total | CX18: ST | CY18: OT | CZ18: DT | DA18: Total | DB18: ST | DC18: OT | DD18: DT | DE18: Total | DF18: ST | DG18: OT | DH18: DT | DI18: Total | DJ18: ST | DK18: OT | DL18: DT | DM18: Total | DN18: ST | DO18: OT | DP18: DT | DQ18: Total | DR18: ST | DS18: OT | DT18: DT | DU18: Total | DV18: ST | DW18: OT | DX18: DT | DY18: Total | DZ18: ST | EA18: OT | EB18: DT | EC18: Total | ED18: ST | EE18: OT | EF18: DT | EG18: Total | EH18: ST | EI18: OT | EJ18: DT | EK18: Total | EL18: ST | EM18: OT | EN18: DT | EO18: Total | EP18: ST | EQ18: OT | ER18: DT | ES18: Total
B19: 1 | C19: Chris Melvin | D19: Foreman | E19: Vendor No.10 | G19: TLH-STORM-1031-SW18 | H19: 2018-10-11 | I19: 2018-10-14 | J19: =IF(AND(H19>='A - Contractor Summary'!$C$36,I19<='A - Contractor Summary'!$C$42),"Yes","No") -> No | K19: =VLOOKUP($D19,'C.1 - Rate Sheets'!B:F,2,FALSE) -> 92.23 | L19: =VLOOKUP($D19,'C.1 - Rate Sheets'!B:F,3,FALSE) -> 129.52 | M19: =VLOOKUP($D19,'C.1 - Rate Sheets'!B:F,4,FALSE) -> 165.02 | N19: 8.5 | O19: 1.5 | Q19: =SUM(N19:P19) -> 10 | R19: 8.5 | S19: 7.5 | U19: =SUM(R19:T19) -> 16 | W19: 16 | Y19: =SUM(V19:X19) -> 16 | AB19: 16 | AC19: =SUM(Z19:AB19) -> 16 | AG19: =SUM(AD19:AF19) -> 0 | AK19: =SUM(AH19:AJ19) -> 0 | AO19: =SUM(AL19:AN19) -> 0 | AS19: =SUM(AP19:AR19) -> 0 | AW19: =SUM(AT19:AV19) -> 0 | BA19: =SUM(AX19:AZ19) -> 0 | BE19: =SUM(BB19:BD19) -> 0 | BI19: =SUM(BF19:BH19) -> 0 | BM19: =SUM(BJ19:BL19) -> 0 | BQ19: =SUM(BN19:BP19) -> 0 | BU19: =SUM(BR19:BT19) -> 0 | BY19: =SUM(BV19:BX19) -> 0 | CC19: =SUM(BZ19:CB19) -> 0 | CG19: =SUM(CD19:CF19) -> 0 | CK19: =SUM(CH19:CJ19) -> 0 | CO19: =SUM(CL19:CN19) -> 0 | CS19: =SUM(CP19:CR19) -> 0 | CW19: =SUM(CT19:CV19) -> 0 | DA19: =SUM(CX19:CZ19) -> 0 | DE19: =SUM(DB19:DD19) -> 0 | DI19: =SUM(DF19:DH19) -> 0 | DM19: =SUM(DJ19:DL19) -> 0 | DQ19: =SUM(DN19:DP19) -> 0 | DU19: =SUM(DR19:DT19) -> 0 | DY19: =SUM(DV19:DX19) -> 0 | EC19: =SUM(DZ19:EB19) -> 0 | EG19: =SUM(ED19:EF19) -> 0 | EK19: =SUM(EH19:EJ19) -> 0 | EO19: =SUM(EL19:EN19) -> 0 | ES19: =SUM(EP19:ER19) -> 0 | ET19: =SUM(N19,R19,V19,Z19,AD19,AH19,AL19,AP19,AT19,AX19,BB19,BF19,BJ19,BN19,BR19,BV19,BZ19,CD19,CH19,CL19,CP19,CT19) -> 17 | EU19: =SUM(O19,S19,W19,AA19,AE19,AI19,AM19,AQ19,AU19,AY19,BC19,BG19,BK19,BO19,BS19,BW19,CA19,CE19,CI19,CM19,CQ19,CU19) -> 25 | EV19: =SUM(P19,T19,X19,AB19,AF19,AJ19,AN19,AR19,AV19,AZ19,BD19,BH19,BL19,BP19,BT19,BX19,CB19,CF19,CJ19,CN19,CR19,CV19) -> 16 | EW19: =SUM(ET19:EV19) -> 58 | EX19: =ET19*K19 -> 1567.91 | EY19: =EU19*L19 -> 3238 | EZ19: =EV19*M19 -> 2640.32 | FA19: =SUM(EX19:EZ19) -> 7446.23 | FB19: =FA19-FD19 -> 7446.23 | FC19: Yes | FD19: 0 | FE19: 0 | FF19: 0
B20: 2 | C20: Jeremy Hortan | D20: Lineman A | E20: Vendor No.10 | G20: TLH-STORM-1031-SW18 | H20: 2018-10-11 | I20: 2018-10-14 | J20: =IF(AND(H20>='A - Contractor Summary'!$C$36,I20<='A - Contractor Summary'!$C$42),"Yes","No") -> No | K20: =VLOOKUP($D20,'C.1 - Rate Sheets'!B:F,2,FALSE) -> 85.64 | L20: =VLOOKUP($D20,'C.1 - Rate Sheets'!B:F,3,FALSE) -> 119.89 | M20: =VLOOKUP($D20,'C.1 - Rate Sheets'!B:F,4,FALSE) -> 152.49 | N20: 8.5 | O20: 1.5 | Q20: =SUM(N20:P20) -> 10 | R20: 8.5 | S20: 7.5 | U20: =SUM(R20:T20) -> 16 | W20: 16 | Y20: =SUM(V20:X20) -> 16 | AB20: 16 | AC20: =SUM(Z20:AB20) -> 16 | AG20: =SUM(AD20:AF20) -> 0 | AK20: =SUM(AH20:AJ20) -> 0 | AO20: =SUM(AL20:AN20) -> 0 | AS20: =SUM(AP20:AR20) -> 0 | AW20: =SUM(AT20:AV20) -> 0 | BA20: =SUM(AX20:AZ20) -> 0 | BE20: =SUM(BB20:BD20) -> 0 | BI20: =SUM(BF20:BH20) -> 0 | BM20: =SUM(BJ20:BL20) -> 0 | BQ20: =SUM(BN20:BP20) -> 0 | BU20: =SUM(BR20:BT20) -> 0 | BY20: =SUM(BV20:BX20) -> 0 | CC20: =SUM(BZ20:CB20) -> 0 | CG20: =SUM(CD20:CF20) -> 0 | CK20: =SUM(CH20:CJ20) -> 0 | CO20: =SUM(CL20:CN20) -> 0 | CS20: =SUM(CP20:CR20) -> 0 | CW20: =SUM(CT20:CV20) -> 0 | DA20: =SUM(CX20:CZ20) -> 0 | DE20: =SUM(DB20:DD20) -> 0 | DI20: =SUM(DF20:DH20) -> 0 | DM20: =SUM(DJ20:DL20) -> 0 | DQ20: =SUM(DN20:DP20) -> 0 | DU20: =SUM(DR20:DT20) -> 0 | DY20: =SUM(DV20:DX20) -> 0 | EC20: =SUM(DZ20:EB20) -> 0 | EG20: =SUM(ED20:EF20) -> 0 | EK20: =SUM(EH20:EJ20) -> 0 | EO20: =SUM(EL20:EN20) -> 0 | ES20: =SUM(EP20:ER20) -> 0 | ET20: 17 | EU20: 25 | EV20: 16 | EW20: =SUM(ET20:EV20) -> 58 | EX20: 1455.88 | EY20: 2997.25 | EZ20: 2439.84 | FA20: =SUM(EX20:EZ20) -> 6892.97 | FB20: =FA20-FD20 -> 6892.97 | FC20: Yes | FD20: 0 | FE20: 0 | FF20: 0
B21: 3 | C21: Kaleb Champion | D21: Lineman B | E21: Vendor No.10 | G21: TLH-STORM-1031-SW18 | H21: 2018-10-11 | I21: 2018-10-14 | J21: =IF(AND(H21>='A - Contractor Summary'!$C$36,I21<='A - Contractor Summary'!$C$42),"Yes","No") -> No | K21: =VLOOKUP($D21,'C.1 - Rate Sheets'!B:F,2,FALSE) -> 71.8 | L21: =VLOOKUP($D21,'C.1 - Rate Sheets'!B:F,3,FALSE) -> 104.14 | M21: =VLOOKUP($D21,'C.1 - Rate Sheets'!B:F,4,FALSE) -> 127.8 | N21: 8.5 | O21: 1.5 | Q21: =SUM(N21:P21) -> 10 | R21: 8.5 | S21: 7.5 | U21: =SUM(R21:T21) -> 16 | W21: 16 | Y21: =SUM(V21:X21) -> 16 | AB21: 16 | AC21: =SUM(Z21:AB21) -> 16 | AG21: =SUM(AD21:AF21) -> 0 | AK21: =SUM(AH21:AJ21) -> 0 | AO21: =SUM(AL21:AN21) -> 0 | AS21: =SUM(AP21:AR21) -> 0 | AW21: =SUM(AT21:AV21) -> 0 | BA21: =SUM(AX21:AZ21) -> 0 | BE21: =SUM(BB21:BD21) -> 0 | BI21: =SUM(BF21:BH21) -> 0 | BM21: =SUM(BJ21:BL21) -> 0 | BQ21: =SUM(BN21:BP21) -> 0 | BU21: =SUM(BR21:BT21) -> 0 | BY21: =SUM(BV21:BX21) -> 0 | CC21: =SUM(BZ21:CB21) -> 0 | CG21: =SUM(CD21:CF21) -> 0 | CK21: =SUM(CH21:CJ21) -> 0 | CO21: =SUM(CL21:CN21) -> 0 | CS21: =SUM(CP21:CR21) -> 0 | CW21: =SUM(CT21:CV21) -> 0 | DA21: =SUM(CX21:CZ21) -> 0 | DE21: =SUM(DB21:DD21) -> 0 | DI21: =SUM(DF21:DH21) -> 0 | DM21: =SUM(DJ21:DL21) -> 0 | DQ21: =SUM(DN21:DP21) -> 0 | DU21: =SUM(DR21:DT21) -> 0 | DY21: =SUM(DV21:DX21) -> 0 | EC21: =SUM(DZ21:EB21) -> 0 | EG21: =SUM(ED21:EF21) -> 0 | EK21: =SUM(EH21:EJ21) -> 0 | EO21: =SUM(EL21:EN21) -> 0 | ES21: =SUM(EP21:ER21) -> 0 | ET21: 17 | EU21: 25 | EV21: 16 | EW21: =SUM(ET21:EV21) -> 58 | EX21: 1220.6 | EY21: 2603.5 | EZ21: 2044.8 | FA21: 5868.9 | FB21: =FA21-FD21 -> 5868.9 | FC21: Yes | FD21: 0 | FE21: 0 | FF21: 0
B22: 4 | C22: Tristan Rudd | D22: Apprentice | E22: Vendor No.10 | G22: TLH-STORM-1031-SW18 | H22: 2018-10-11 | I22: 2018-10-14 | J22: =IF(AND(H22>='A - Contractor Summary'!$C$36,I22<='A - Contractor Summary'!$C$42),"Yes","No") -> No | K22: =VLOOKUP($D22,'C.1 - Rate Sheets'!B:F,2,FALSE) -> 60.26 | L22: =VLOOKUP($D22,'C.1 - Rate Sheets'!B:F,3,FALSE) -> 84.98 | M22: =VLOOKUP($D22,'C.1 - Rate Sheets'!B:F,4,FALSE) -> 110.01 | N22: 8.5 | O22: 1.5 | Q22: 10 | R22: 8.5 | S22: 7.5 | U22: 16 | W22: 16 | Y22: 16 | AB22: 16 | AC22: 16 | AG22: 0 | AK22: 0 | AO22: 0 | AS22: 0 | AW22: 0 | BA22: 0 | BE22: 0 | BI22: 0 | BM22: 0 | BQ22: 0 | BU22: 0 | BY22: 0 | CC22: 0 | CG22: 0 | CK22: 0 | CO22: 0 | CS22: 0 | CW22: 0 | DA22: 0 | DE22: 0 | DI22: 0 | DM22: 0 | DQ22: 0 | DU22: 0 | DY22: 0 | EC22: 0 | EG22: 0 | EK22: 0 | EO22: 0 | ES22: 0 | ET22: 17 | EU22: 25 | EV22: 16 | EW22: 58 | EX22: 1024.42 | EY22: 2124.5 | EZ22: 1760.16 | FA22: 4909.08 | FB22: 4909.08 | FC22: Yes | FD22: 0 | FE22: 0 | FF22: 0
B23: 5 | C23: Chris Boobyer | D23: Operator | E23: Vendor No.10 | G23: TLH-STORM-1031-SW18 | H23: 2018-10-11 | I23: 2018-10-14 | J23: =IF(AND(H23>='A - Contractor Summary'!$C$36,I23<='A - Contractor Summary'!$C$42),"Yes","No") -> No | K23: =VLOOKUP($D23,'C.1 - Rate Sheets'!B:F,2,FALSE) -> 56.13 | L23: =VLOOKUP($D23,'C.1 - Rate Sheets'!B:F,3,FALSE) -> 78.59 | M23: =VLOOKUP($D23,'C.1 - Rate Sheets'!B:F,4,FALSE) -> 100.92 | N23: 8.5 | O23: 1.5 | Q23: 10 | R23: 8.5 | S23: 7.5 | U23: 16 | W23: 16 | Y23: 16 | AB23: 16 | AC23: 16 | AG23: 0 | AK23: 0 | AO23: 0 | AS23: 0 | AW23: 0 | BA23: 0 | BE23: 0 | BI23: 0 | BM23: 0 | BQ23: 0 | BU23: 0 | BY23: 0 | CC23: 0 | CG23: 0 | CK23: 0 | CO23: 0 | CS23: 0 | CW23: 0 | DA23: 0 | DE23: 0 | DI23: 0 | DM23: 0 | DQ23: 0 | DU23: 0 | DY23: 0 | EC23: 0 | EG23: 0 | EK23: 0 | EO23: 0 | ES23: 0 | ET23: 17 | EU23: 25 | EV23: 16 | EW23: 58 | EX23: 954.21 | EY23: 1964.75 | EZ23: 1614.72 | FA23: 4533.68 | FB23: 4533.68 | FC23: Yes | FD23: 0 | FE23: 0 | FF23: 0
B24: 6 | C24: Chris Melvin | D24: Foreman | E24: Vendor No.10 | G24: TLH-STORM-1031-SW18 | H24: 2018-10-15 | I24: 2018-10-21 | J24: =IF(AND(H24>='A - Contractor Summary'!$C$36,I24<='A - Contractor Summary'!$C$42),"Yes","No") -> No | K24: =VLOOKUP($D24,'C.1 - Rate Sheets'!B:F,2,FALSE) -> 92.23 | L24: =VLOOKUP($D24,'C.1 - Rate Sheets'!B:F,3,FALSE) -> 129.52 | M24: =VLOOKUP($D24,'C.1 - Rate Sheets'!B:F,4,FALSE) -> 165.02 | Q24: 0 | U24: 0 | Y24: 0 | AC24: 0 | AD24: 8 | AE24: 8 | AG24: 16 | AH24: 8 | AI24: 8 | AK24: 16 | AL24: 8 | AM24: 8 | AO24: 16 | AP24: 8 | AQ24: 8 | AS24: 16 | AT24: 8 | AU24: 8 | AW24: 16 | AY24: 16 | BA24: 16 | BD24: 16 | BE24: 16 | BI24: 0 | BM24: 0 | BQ24: 0 | BU24: 0 | BY24: 0 | CC24: 0 | CG24: 0 | CK24: 0 | CO24: 0 | CS24: 0 | CW24: 0 | DA24: 0 | DE24: 0 | DI24: 0 | DM24: 0 | DQ24: 0 | DU24: 0 | DY24: 0 | EC24: 0 | EG24: 0 | EK24: 0 | EO24: 0 | ES24: 0 | ET24: 40 | EU24: 56 | EV24: 16 | EW24: 112 | EX24: 3689.2 | EY24: 7253.12 | EZ24: 2640.32 | FA24: 13582.64 | FB24: 13582.64 | FC24: Yes | FD24: 0 | FE24: 0 | FF24: 0
B25: 7 | C25: Jeremy Hortan | D25: Lineman A | E25: Vendor No.10 | G25: TLH-STORM-1031-SW18 | H25: 2018-10-15 | I25: 2018-10-21 | J25: =IF(AND(H25>='A - Contractor Summary'!$C$36,I25<='A - Contractor Summary'!$C$42),"Yes","No") -> No | K25: =VLOOKUP($D25,'C.1 - Rate Sheets'!B:F,2,FALSE) -> 85.64 | L25: =VLOOKUP($D25,'C.1 - Rate Sheets'!B:F,3,FALSE) -> 119.89 | M25: =VLOOKUP($D25,'C.1 - Rate Sheets'!B:F,4,FALSE) -> 152.49 | Q25: 0 | U25: 0 | Y25: 0 | AC25: 0 | AD25: 8 | AE25: 8 | AG25: 16 | AH25: 8 | AI25: 8 | AK25: 16 | AL25: 8 | AM25: 8 | AO25: 16 | AP25: 8 | AQ25: 8 | AS25: 16 | AT25: 8 | AU25: 8 | AW25: 16 | AY25: 16 | BA25: 16 | BD25: 16 | BE25: 16 | BI25: 0 | BM25: 0 | BQ25: 0 | BU25: 0 | BY25: 0 | CC25: 0 | CG25: 0 | CK25: 0 | CO25: 0 | CS25: 0 | CW25: 0 | DA25: 0 | DE25: 0 | DI25: 0 | DM25: 0 | DQ25: 0 | DU25: 0 | DY25: 0 | EC25: 0 | EG25: 0 | EK25: 0 | EO25: 0 | ES25: 0 | ET25: 40 | EU25: 56 | EV25: 16 | EW25: 112 | EX25: 3425.6 | EY25: 6713.84 | EZ25: 2439.84 | FA25: 12579.28 | FB25: 12579.28 | FC25: Yes | FD25: 0 | FE25: 0 | FF25: 0
B26: 8 | C26: Kaleb Champion | D26: Lineman B | E26: Vendor No.10 | G26: TLH-STORM-1031-SW18 | H26: 2018-10-15 | I26: 2018-10-21 | J26: =IF(AND(H26>='A - Contractor Summary'!$C$36,I26<='A - Contractor Summary'!$C$42),"Yes","No") -> No | K26: =VLOOKUP($D26,'C.1 - Rate Sheets'!B:F,2,FALSE) -> 71.8 | L26: =VLOOKUP($D26,'C.1 - Rate Sheets'!B:F,3,FALSE) -> 104.14 | M26: =VLOOKUP($D26,'C.1 - Rate Sheets'!B:F,4,FALSE) -> 127.8 | Q26: 0 | U26: 0 | Y26: 0 | AC26: 0 | AD26: 8 | AE26: 8 | AG26: 16 | AH26: 8 | AI26: 8 | AK26: 16 | AL26: 8 | AM26: 8 | AO26: 16 | AP26: 8 | AQ26: 8 | AS26: 16 | AT26: 8 | AU26: 8 | AW26: 16 | AY26: 16 | BA26: 16 | BD26: 16 | BE26: 16 | BI26: 0 | BM26: 0 | BQ26: 0 | BU26: 0 | BY26: 0 | CC26: 0 | CG26: 0 | CK26: 0 | CO26: 0 | CS26: 0 | CW26: 0 | DA26: 0 | DE26: 0 | DI26: 0 | DM26: 0 | DQ26: 0 | DU26: 0 | DY26: 0 | EC26: 0 | EG26: 0 | EK26: 0 | EO26: 0 | ES26: 0 | ET26: 40 | EU26: 56 | EV26: 16 | EW26: 112 | EX26: 2872 | EY26: 5831.84 | EZ26: 2044.8 | FA26: 10748.64 | FB26: 10748.64 | FC26: Yes | FD26: 0 | FE26: 0 | FF26: 0
B27: 9 | C27: Tristan Rudd | D27: Apprentice | E27: Vendor No.10 | G27: TLH-STORM-1031-SW18 | H27: 2018-10-15 | I27: 2018-10-21 | J27: =IF(AND(H27>='A - Contractor Summary'!$C$36,I27<='A - Contractor Summary'!$C$42),"Yes","No") -> No | K27: =VLOOKUP($D27,'C.1 - Rate Sheets'!B:F,2,FALSE) -> 60.26 | L27: =VLOOKUP($D27,'C.1 - Rate Sheets'!B:F,3,FALSE) -> 84.98 | M27: =VLOOKUP($D27,'C.1 - Rate Sheets'!B:F,4,FALSE) -> 110.01 | Q27: 0 | U27: 0 | Y27: 0 | AC27: 0 | AD27: 8 | AE27: 8 | AG27: 16 | AH27: 8 | AI27: 8 | AK27: 16 | AL27: 8 | AM27: 8 | AO27: 16 | AP27: 8 | AQ27: 8 | AS27: 16 | AT27: 8 | AU27: 8 | AW27: 16 | AY27: 16 | BA27: 16 | BD27: 16 | BE27: 16 | BI27: 0 | BM27: 0 | BQ27: 0 | BU27: 0 | BY27: 0 | CC27: 0 | CG27: 0 | CK27: 0 | CO27: 0 | CS27: 0 | CW27: 0 | DA27: 0 | DE27: 0 | DI27: 0 | DM27: 0 | DQ27: 0 | DU27: 0 | DY27: 0 | EC27: 0 | EG27: 0 | EK27: 0 | EO27: 0 | ES27: 0 | ET27: 40 | EU27: 56 | EV27: 16 | EW27: 112 | EX27: 2410.4 | EY27: 4758.88 | EZ27: 1760.16 | FA27: 8929.44 | FB27: 8929.44 | FC27: Yes | FD27: 0 | FE27: 0 | FF27: 0
B28: 10 | C28: Chris Boobyer | D28: Operator | E28: Vendor No.10 | G28: TLH-STORM-1031-SW18 | H28: 2018-10-15 | I28: 2018-10-21 | J28: =IF(AND(H28>='A - Contractor Summary'!$C$36,I28<='A - Contractor Summary'!$C$42),"Yes","No") -> No | K28: =VLOOKUP($D28,'C.1 - Rate Sheets'!B:F,2,FALSE) -> 56.13 | L28: =VLOOKUP($D28,'C.1 - Rate Sheets'!B:F,3,FALSE) -> 78.59 | M28: =VLOOKUP($D28,'C.1 - Rate Sheets'!B:F,4,FALSE) -> 100.92 | Q28: 0 | U28: 0 | Y28: 0 | AC28: 0 | AD28: 8 | AE28: 8 | AG28: 16 | AH28: 8 | AI28: 8 | AK28: 16 | AL28: 8 | AM28: 8 | AO28: 16 | AP28: 8 | AQ28: 8 | AS28: 16 | AT28: 8 | AU28: 8 | AW28: 16 | AY28: 16 | BA28: 16 | BD28: 16 | BE28: 16 | BI28: 0 | BM28: 0 | BQ28: 0 | BU28: 0 | BY28: 0 | CC28: 0 | CG28: 0 | CK28: 0 | CO28: 0 | CS28: 0 | CW28: 0 | DA28: 0 | DE28: 0 | DI28: 0 | DM28: 0 | DQ28: 0 | DU28: 0 | DY28: 0 | EC28: 0 | EG28: 0 | EK28: 0 | EO28: 0 | ES28: 0 | ET28: 40 | EU28: 56 | EV28: 16 | EW28: 112 | EX28: 2245.2 | EY28: 4401.04 | EZ28: 1614.72 | FA28: 8260.96 | FB28: 8260.96 | FC28: Yes | FD28: 0 | FE28: 0 | FF28: 0
B29: 11 | C29: Jonathan Melvin | D29: Truck Driver | E29: Vendor No.10 | G29: TLH-STORM-1031-SW18 | H29: 2018-10-20 | I29: 2018-10-21 | J29: =IF(AND(H29>='A - Contractor Summary'!$C$36,I29<='A - Contractor Summary'!$C$42),"Yes","No") -> No | K29: =VLOOKUP($D29,'C.1 - Rate Sheets'!B:F,2,FALSE) -> 53.22 | L29: =VLOOKUP($D29,'C.1 - Rate Sheets'!B:F,3,FALSE) -> 74.44 | M29: =VLOOKUP($D29,'C.1 - Rate Sheets'!B:F,4,FALSE) -> 92.89 | Q29: 0 | U29: 0 | Y29: 0 | AC29: 0 | AG29: 0 | AK29: 0 | AO29: 0 | AS29: 0 | AW29: 0 | AY29: 16 | BA29: 16 | BD29: 16 | BE29: 16 | BI29: 0 | BM29: 0 | BQ29: 0 | BU29: 0 | BY29: 0 | CC29: 0 | CG29: 0 | CK29: 0 | CO29: 0 | CS29: 0 | CW29: 0 | DA29: 0 | DE29: 0 | DI29: 0 | DM29: 0 | DQ29: 0 | DU29: 0 | DY29: 0 | EC29: 0 | EG29: 0 | EK29: 0 | EO29: 0 | ES29: 0 | ET29: 0 | EU29: 16 | EV29: 16 | EW29: 32 | EX29: 0 | EY29: 1191.04 | EZ29: 1486.24 | FA29: 2677.28 | FB29: 2677.28 | FC29: Yes | FD29: 0 | FE29: 0 | FF29: 0
B30: 12 | C30: Michael Thompson | D30: General Foreman | E30: Vendor No.10 | G30: TLH-STORM-1031-SW18 | H30: 2018-10-17 | I30: 2018-10-21 | J30: =IF(AND(H30>='A - Contractor Summary'!$C$36,I30<='A - Contractor Summary'!$C$42),"Yes","No") -> No | K30: =VLOOKUP($D30,'C.1 - Rate Sheets'!B:F,2,FALSE) -> 112.11 | L30: =VLOOKUP($D30,'C.1 - Rate Sheets'!B:F,3,FALSE) -> 156.96 | M30: =VLOOKUP($D30,'C.1 - Rate Sheets'!B:F,4,FALSE) -> 199.98 | Q30: 0 | U30: 0 | Y30: 0 | AC30: 0 | AG30: 0 | AK30: 0 | AL30: 8 | AM30: 8 | AO30: 16 | AQ30: 16 | AS30: 16 | AU30: 16 | AW30: 16 | AY30: 16 | BA30: 16 | BD30: 16 | BE30: 16 | BI30: 0 | BM30: 0 | BQ30: 0 | BU30: 0 | BY30: 0 | CC30: 0 | CG30: 0 | CK30: 0 | CO30: 0 | CS30: 0 | CW30: 0 | DA30: 0 | DE30: 0 | DI30: 0 | DM30: 0 | DQ30: 0 | DU30: 0 | DY30: 0 | EC30: 0 | EG30: 0 | EK30: 0 | EO30: 0 | ES30: 0 | ET30: 8 | EU30: 56 | EV30: 16 | EW30: 80 | EX30: 896.88 | EY30: 8789.76 | EZ30: 3199.68 | FA30: 12886.32 | FB30: 12886.32 | FC30: Yes | FD30: 0 | FE30: 0 | FF30: 0
B31: 13 | C31: Kamryn McMullen | D31: Foreman | E31: Vendor No.10 | G31: TLH-STORM-1031-SW18 | H31: 2018-10-17 | I31: 2018-10-21 | J31: =IF(AND(H31>='A - Contractor Summary'!$C$36,I31<='A - Contractor Summary'!$C$42),"Yes","No") -> No | K31: =VLOOKUP($D31,'C.1 - Rate Sheets'!B:F,2,FALSE) -> 92.23 | L31: =VLOOKUP($D31,'C.1 - Rate Sheets'!B:F,3,FALSE) -> 129.52 | M31: =VLOOKUP($D31,'C.1 - Rate Sheets'!B:F,4,FALSE) -> 165.02 | Q31: 0 | U31: 0 | Y31: 0 | AC31: 0 | AG31: 0 | AK31: 0 | AL31: 8 | AM31: 8 | AO31: 16 | AQ31: 16 | AS31: 16 | AU31: 16 | AW31: 16 | AY31: 16 | BA31: 16 | BD31: 16 | BE31: 16 | BI31: 0 | BM31: 0 | BQ31: 0 | BU31: 0 | BY31: 0 | CC31: 0 | CG31: 0 | CK31: 0 | CO31: 0 | CS31: 0 | CW31: 0 | DA31: 0 | DE31: 0 | DI31: 0 | DM31: 0 | DQ31: 0 | DU31: 0 | DY31: 0 | EC31: 0 | EG31: 0 | EK31: 0 | EO31: 0 | ES31: 0 | ET31: 8 | EU31: 56 | EV31: 16 | EW31: 80 | EX31: 737.84 | EY31: 7253.12 | EZ31: 2640.32 | FA31: 10631.28 | FB31: 10631.28 | FC31: Yes | FD31: 0 | FE31: 0 | FF31: 0
B32: 14 | C32: Joseph Thompson | D32: Lineman B | E32: Vendor No.10 | G32: TLH-STORM-1031-SW18 | H32: 2018-10-17 | I32: 2018-10-21 | J32: =IF(AND(H32>='A - Contractor Summary'!$C$36,I32<='A - Contractor Summary'!$C$42),"Yes","No") -> No | K32: =VLOOKUP($D32,'C.1 - Rate Sheets'!B:F,2,FALSE) -> 71.8 | L32: =VLOOKUP($D32,'C.1 - Rate Sheets'!B:F,3,FALSE) -> 104.14 | M32: =VLOOKUP($D32,'C.1 - Rate Sheets'!B:F,4,FALSE) -> 127.8 | Q32: 0 | U32: 0 | Y32: 0 | AC32: 0 | AG32: 0 | AK32: 0 | AL32: 8 | AM32: 8 | AO32: 16 | AQ32: 16 | AS32: 16 | AU32: 16 | AW32: 16 | AY32: 16 | BA32: 16 | BD32: 16 | BE32: 16 | BI32: 0 | BM32: 0 | BQ32: 0 | BU32: 0 | BY32: 0 | CC32: 0 | CG32: 0 | CK32: 0 | CO32: 0 | CS32: 0 | CW32: 0 | DA32: 0 | DE32: 0 | DI32: 0 | DM32: 0 | DQ32: 0 | DU32: 0 | DY32: 0 | EC32: 0 | EG32: 0 | EK32: 0 | EO32: 0 | ES32: 0 | ET32: 8 | EU32: 56 | EV32: 16 | EW32: 80 | EX32: 574.4 | EY32: 5831.84 | EZ32: 2044.8 | FA32: 8451.04 | FB32: 8451.04 | FC32: Yes | FD32: 0 | FE32: 0 | FF32: 0
B33: 15 | C33: Mike Stonesifer | D33: Lineman B | E33: Vendor No.10 | G33: TLH-STORM-1031-SW18 | H33: 2018-10-17 | I33: 2018-10-21 | J33: =IF(AND(H33>='A - Contractor Summary'!$C$36,I33<='A - Contractor Summary'!$C$42),"Yes","No") -> No | K33: =VLOOKUP($D33,'C.1 - Rate Sheets'!B:F,2,FALSE) -> 71.8 | L33: =VLOOKUP($D33,'C.1 - Rate Sheets'!B:F,3,FALSE) -> 104.14 | M33: =VLOOKUP($D33,'C.1 - Rate Sheets'!B:F,4,FALSE) -> 127.8 | Q33: 0 | U33: 0 | Y33: 0 | AC33: 0 | AG33: 0 | AK33: 0 | AL33: 8 | AM33: 8 | AO33: 16 | AQ33: 16 | AS33: 16 | AU33: 16 | AW33: 16 | AY33: 16 | BA33: 16 | BD33: 16 | BE33: 16 | BI33: 0 | BM33: 0 | BQ33: 0 | BU33: 0 | BY33: 0 | CC33: 0 | CG33: 0 | CK33: 0 | CO33: 0 | CS33: 0 | CW33: 0 | DA33: 0 | DE33: 0 | DI33: 0 | DM33: 0 | DQ33: 0 | DU33: 0 | DY33: 0 | EC33: 0 | EG33: 0 | EK33: 0 | EO33: 0 | ES33: 0 | ET33: 8 | EU33: 56 | EV33: 16 | EW33: 80 | EX33: 574.4 | EY33: 5831.84 | EZ33: 2044.8 | FA33: 8451.04 | FB33: 8451.04 | FC33: Yes | FD33: 0 | FE33: 0 | FF33: 0
B34: 16 | C34: Jeffrery Graves | D34: Operator | E34: Vendor No.10 | G34: TLH-STORM-1031-SW18 | H34: 2018-10-17 | I34: 2018-10-21 | J34: =IF(AND(H34>='A - Contractor Summary'!$C$36,I34<='A - Contractor Summary'!$C$42),"Yes","No") -> No | K34: =VLOOKUP($D34,'C.1 - Rate Sheets'!B:F,2,FALSE) -> 56.13 | L34: =VLOOKUP($D34,'C.1 - Rate Sheets'!B:F,3,FALSE) -> 78.59 | M34: =VLOOKUP($D34,'C.1 - Rate Sheets'!B:F,4,FALSE) -> 100.92 | Q34: 0 | U34: 0 | Y34: 0 | AC34: 0 | AG34: 0 | AK34: 0 | AL34: 8 | AM34: 8 | AO34: 16 | AQ34: 16 | AS34: 16 | AU34: 16 | AW34: 16 | AY34: 16 | BA34: 16 | BD34: 16 | BE34: 16 | BI34: 0 | BM34: 0 | BQ34: 0 | BU34: 0 | BY34: 0 | CC34: 0 | CG34: 0 | CK34: 0 | CO34: 0 | CS34: 0 | CW34: 0 | DA34: 0 | DE34: 0 | DI34: 0 | DM34: 0 | DQ34: 0 | DU34: 0 | DY34: 0 | EC34: 0 | EG34: 0 | EK34: 0 | EO34: 0 | ES34: 0 | ET34: 8 | EU34: 56 | EV34: 16 | EW34: 80 | EX34: 449.04 | EY34: 4401.04 | EZ34: 1614.72 | FA34: 6464.8 | FB34: 6464.8 | FC34: Yes | FD34: 0 | FE34: 0 | FF34: 0
B35: 17 | C35: Torrence Stephenson | D35: Truck Driver | E35: Vendor No.10 | G35: TLH-STORM-1031-SW18 | H35: 2018-10-17 | I35: 2018-10-21 | J35: =IF(AND(H35>='A - Contractor Summary'!$C$36,I35<='A - Contractor Summary'!$C$42),"Yes","No") -> No | K35: =VLOOKUP($D35,'C.1 - Rate Sheets'!B:F,2,FALSE) -> 53.22 | L35: =VLOOKUP($D35,'C.1 - Rate Sheets'!B:F,3,FALSE) -> 74.44 | M35: =VLOOKUP($D35,'C.1 - Rate Sheets'!B:F,4,FALSE) -> 92.89 | Q35: 0 | U35: 0 | Y35: 0 | AC35: 0 | AG35: 0 | AK35: 0 | AL35: 8 | AM35: 8 | AO35: 16 | AQ35: 16 | AS35: 16 | AU35: 16 | AW35: 16 | AY35: 16 | BA35: 16 | BD35: 16 | BE35: 16 | BI35: 0 | BM35: 0 | BQ35: 0 | BU35: 0 | BY35: 0 | CC35: 0 | CG35: 0 | CK35: 0 | CO35: 0 | CS35: 0 | CW35: 0 | DA35: 0 | DE35: 0 | DI35: 0 | DM35: 0 | DQ35: 0 | DU35: 0 | DY35: 0 | EC35: 0 | EG35: 0 | EK35: 0 | EO35: 0 | ES35: 0 | ET35: 8 | EU35: 56 | EV35: 16 | EW35: 80 | EX35: 425.76 | EY35: 4168.64 | EZ35: 1486.24 | FA35: 6080.64 | FB35: 6080.64 | FC35: Yes | FD35: 0 | FE35: 0 | FF35: 0
B36: 18 | C36: Tyler Padgett | D36: Truck Driver | E36: Vendor No.10 | G36: TLH-STORM-1031-SW18 | H36: 2018-10-17 | I36: 2018-10-21 | J36: =IF(AND(H36>='A - Contractor Summary'!$C$36,I36<='A - Contractor Summary'!$C$42),"Yes","No") -> No | K36: =VLOOKUP($D36,'C.1 - Rate Sheets'!B:F,2,FALSE) -> 53.22 | L36: =VLOOKUP($D36,'C.1 - Rate Sheets'!B:F,3,FALSE) -> 74.44 | M36: =VLOOKUP($D36,'C.1 - Rate Sheets'!B:F,4,FALSE) -> 92.89 | Q36: 0 | U36: 0 | Y36: 0 | AC36: 0 | AG36: 0 | AK36: 0 | AL36: 8 | AM36: 8 | AO36: 16 | AQ36: 16 | AS36: 16 | AU36: 16 | AW36: 16 | AY36: 16 | BA36: 16 | BD36: 16 | BE36: 16 | BI36: 0 | BM36: 0 | BQ36: 0 | BU36: 0 | BY36: 0 | CC36: 0 | CG36: 0 | CK36: 0 | CO36: 0 | CS36: 0 | CW36: 0 | DA36: 0 | DE36: 0 | DI36: 0 | DM36: 0 | DQ36: 0 | DU36: 0 | DY36: 0 | EC36: 0 | EG36: 0 | EK36: 0 | EO36: 0 | ES36: 0 | ET36: 8 | EU36: 56 | EV36: 16 | EW36: 80 | EX36: 425.76 | EY36: 4168.64 | EZ36: 1486.24 | FA36: 6080.64 | FB36: 6080.64 | FC36: Yes | FD36: 0 | FE36: 0 | FF36: 0
B37: 19 | C37: Thomas Bryant | D37: Foreman | E37: Vendor No.10 | G37: TLH-STORM-1031-SW18 | H37: 2018-10-17 | I37: 2018-10-21 | J37: =IF(AND(H37>='A - Contractor Summary'!$C$36,I37<='A - Contractor Summary'!$C$42),"Yes","No") -> No | K37: =VLOOKUP($D37,'C.1 - Rate Sheets'!B:F,2,FALSE) -> 92.23 | L37: =VLOOKUP($D37,'C.1 - Rate Sheets'!B:F,3,FALSE) -> 129.52 | M37: =VLOOKUP($D37,'C.1 - Rate Sheets'!B:F,4,FALSE) -> 165.02 | Q37: 0 | U37: 0 | Y37: 0 | AC37: 0 | AG37: 0 | AK37: 0 | AL37: 8 | AM37: 8 | AO37: 16 | AQ37: 16 | AS37: 16 | AU37: 16 | AW37: 16 | AY37: 16 | BA37: 16 | BD37: 16 | BE37: 16 | BI37: 0 | BM37: 0 | BQ37: 0 | BU37: 0 | BY37: 0 | CC37: 0 | CG37: 0 | CK37: 0 | CO37: 0 | CS37: 0 | CW37: 0 | DA37: 0 | DE37: 0 | DI37: 0 | DM37: 0 | DQ37: 0 | DU37: 0 | DY37: 0 | EC37: 0 | EG37: 0 | EK37: 0 | EO37: 0 | ES37: 0 | ET37: 8 | EU37: 56 | EV37: 16 | EW37: 80 | EX37: 737.84 | EY37: 7253.12 | EZ37: 2640.32 | FA37: 10631.28 | FB37: 10631.28 | FC37: Yes | FD37: 0 | FE37: 0 | FF37: 0
B38: 20 | C38: Mikel Lloyd | D38: Lineman B | E38: Vendor No.10 | G38: TLH-STORM-1031-SW18 | H38: 2018-10-17 | I38: 2018-10-21 | J38: =IF(AND(H38>='A - Contractor Summary'!$C$36,I38<='A - Contractor Summary'!$C$42),"Yes","No") -> No | K38: =VLOOKUP($D38,'C.1 - Rate Sheets'!B:F,2,FALSE) -> 71.8 | L38: =VLOOKUP($D38,'C.1 - Rate Sheets'!B:F,3,FALSE) -> 104.14 | M38: =VLOOKUP($D38,'C.1 - Rate Sheets'!B:F,4,FALSE) -> 127.8 | Q38: 0 | U38: 0 | Y38: 0 | AC38: 0 | AG38: 0 | AK38: 0 | AL38: 8 | AM38: 8 | AO38: 16 | AQ38: 16 | AS38: 16 | AU38: 16 | AW38: 16 | AY38: 16 | BA38: 16 | BD38: 16 | BE38: 16 | BI38: 0 | BM38: 0 | BQ38: 0 | BU38: 0 | BY38: 0 | CC38: 0 | CG38: 0 | CK38: 0 | CO38: 0 | CS38: 0 | CW38: 0 | DA38: 0 | DE38: 0 | DI38: 0 | DM38: 0 | DQ38: 0 | DU38: 0 | DY38: 0 | EC38: 0 | EG38: 0 | EK38: 0 | EO38: 0 | ES38: 0 | ET38: 8 | EU38: 56 | EV38: 16 | EW38: 80 | EX38: 574.4 | EY38: 5831.84 | EZ38: 2044.8 | FA38: 8451.04 | FB38: 8451.04 | FC38: Yes | FD38: 0 | FE38: 0 | FF38: 0
B39: 21 | C39: Darion Lewis | D39: Lineman B | E39: Vendor No.10 | G39: TLH-STORM-1031-SW18 | H39: 2018-10-17 | I39: 2018-10-21 | J39: =IF(AND(H39>='A - Contractor Summary'!$C$36,I39<='A - Contractor Summary'!$C$42),"Yes","No") -> No | K39: =VLOOKUP($D39,'C.1 - Rate Sheets'!B:F,2,FALSE) -> 71.8 | L39: =VLOOKUP($D39,'C.1 - Rate Sheets'!B:F,3,FALSE) -> 104.14 | M39: =VLOOKUP($D39,'C.1 - Rate Sheets'!B:F,4,FALSE) -> 127.8 | Q39: 0 | U39: 0 | Y39: 0 | AC39: 0 | AG39: 0 | AK39: 0 | AL39: 8 | AM39: 8 | AO39: 16 | AQ39: 16 | AS39: 16 | AU39: 16 | AW39: 16 | AY39: 16 | BA39: 16 | BD39: 16 | BE39: 16 | BI39: 0 | BM39: 0 | BQ39: 0 | BU39: 0 | BY39: 0 | CC39: 0 | CG39: 0 | CK39: 0 | CO39: 0 | CS39: 0 | CW39: 0 | DA39: 0 | DE39: 0 | DI39: 0 | DM39: 0 | DQ39: 0 | DU39: 0 | DY39: 0 | EC39: 0 | EG39: 0 | EK39: 0 | EO39: 0 | ES39: 0 | ET39: 8 | EU39: 56 | EV39: 16 | EW39: 80 | EX39: 574.4 | EY39: 5831.84 | EZ39: 2044.8 | FA39: 8451.04 | FB39: 8451.04 | FC39: Yes | FD39: 0 | FE39: 0 | FF39: 0
B40: 22 | C40: Aaron Coleman | D40: Lineman C | E40: Vendor No.10 | G40: TLH-STORM-1031-SW18 | H40: 2018-10-17 | I40: 2018-10-21 | J40: =IF(AND(H40>='A - Contractor Summary'!$C$36,I40<='A - Contractor Summary'!$C$42),"Yes","No") -> No | K40: =VLOOKUP($D40,'C.1 - Rate Sheets'!B:F,2,FALSE) -> 64.56 | L40: =VLOOKUP($D40,'C.1 - Rate Sheets'!B:F,3,FALSE) -> 93.67 | M40: =VLOOKUP($D40,'C.1 - Rate Sheets'!B:F,4,FALSE) -> 115.28 | Q40: 0 | U40: 0 | Y40: 0 | AC40: 0 | AG40: 0 | AK40: 0 | AL40: 8 | AM40: 8 | AO40: 16 | AQ40: 16 | AS40: 16 | AU40: 16 | AW40: 16 | AY40: 16 | BA40: 16 | BD40: 16 | BE40: 16 | BI40: 0 | BM40: 0 | BQ40: 0 | BU40: 0 | BY40: 0 | CC40: 0 | CG40: 0 | CK40: 0 | CO40: 0 | CS40: 0 | CW40: 0 | DA40: 0 | DE40: 0 | DI40: 0 | DM40: 0 | DQ40: 0 | DU40: 0 | DY40: 0 | EC40: 0 | EG40: 0 | EK40: 0 | EO40: 0 | ES40: 0 | ET40: 8 | EU40: 56 | EV40: 16 | EW40: 80 | EX40: 516.48 | EY40: 5245.52 | EZ40: 1844.48 | FA40: 7606.48 | FB40: 7606.48 | FC40: Yes | FD40: 0 | FE40: 0 | FF40: 0
B41: 23 | C41: Stephen McCardell | D41: Operator | E41: Vendor No.10 | G41: TLH-STORM-1031-SW18 | H41: 2018-10-17 | I41: 2018-10-21 | J41: =IF(AND(H41>='A - Contractor Summary'!$C$36,I41<='A - Contractor Summary'!$C$42),"Yes","No") -> No | K41: =VLOOKUP($D41,'C.1 - Rate Sheets'!B:F,2,FALSE) -> 56.13 | L41: =VLOOKUP($D41,'C.1 - Rate Sheets'!B:F,3,FALSE) -> 78.59 | M41: =VLOOKUP($D41,'C.1 - Rate Sheets'!B:F,4,FALSE) -> 100.92 | Q41: 0 | U41: 0 | Y41: 0 | AC41: 0 | AG41: 0 | AK41: 0 | AL41: 8 | AM41: 8 | AO41: 16 | AQ41: 16 | AS41: 16 | AU41: 16 | AW41: 16 | AY41: 16 | BA41: 16 | BD41: 16 | BE41: 16 | BI41: 0 | BM41: 0 | BQ41: 0 | BU41: 0 | BY41: 0 | CC41: 0 | CG41: 0 | CK41: 0 | CO41: 0 | CS41: 0 | CW41: 0 | DA41: 0 | DE41: 0 | DI41: 0 | DM41: 0 | DQ41: 0 | DU41: 0 | DY41: 0 | EC41: 0 | EG41: 0 | EK41: 0 | EO41: 0 | ES41: 0 | ET41: 8 | EU41: 56 | EV41: 16 | EW41: =SUM(ET41:EV41) -> 80 | EX41: 449.04 | EY41: 4401.04 | EZ41: 1614.72 | FA41: =SUM(EX41:EZ41) -> 6464.8 | FB41: =FA41-FD41 -> 6464.8 | FC41: Yes | FD41: 0 | FE41: 0 | FF41: 0
B42: 24 | C42: Hunter Watson | D42: Truck Driver | E42: Vendor No.10 | G42: TLH-STORM-1031-SW18 | H42: 2018-10-17 | I42: 2018-10-21 | J42: =IF(AND(H42>='A - Contractor Summary'!$C$36,I42<='A - Contractor Summary'!$C$42),"Yes","No") -> No | K42: =VLOOKUP($D42,'C.1 - Rate Sheets'!B:F,2,FALSE) -> 53.22 | L42: =VLOOKUP($D42,'C.1 - Rate Sheets'!B:F,3,FALSE) -> 74.44 | M42: =VLOOKUP($D42,'C.1 - Rate Sheets'!B:F,4,FALSE) -> 92.89 | Q42: 0 | U42: 0 | Y42: 0 | AC42: 0 | AG42: 0 | AK42: 0 | AL42: 8 | AM42: 8 | AO42: 16 | AQ42: 16 | AS42: 16 | AU42: 16 | AW42: 16 | AY42: 16 | BA42: 16 | BD42: 16 | BE42: 16 | BI42: 0 | BM42: 0 | BQ42: 0 | BU42: 0 | BY42: 0 | CC42: 0 | CG42: 0 | CK42: 0 | CO42: 0 | CS42: 0 | CW42: 0 | DA42: 0 | DE42: 0 | DI42: 0 | DM42: 0 | DQ42: 0 | DU42: 0 | DY42: 0 | EC42: 0 | EG42: 0 | EK42: 0 | EO42: 0 | ES42: 0 | ET42: 8 | EU42: 56 | EV42: 16 | EW42: 80 | EX42: 425.76 | EY42: 4168.64 | EZ42: 1486.24 | FA42: 6080.64 | FB42: 6080.64 | FC42: Yes | FD42: 0 | FE42: 0 | FF42: 0
B43: 25 | C43: Tally Chambers | D43: Foreman | E43: Vendor No.10 | G43: TLH-STORM-1031-SW18 | H43: 2018-10-17 | I43: 2018-10-21 | J43: =IF(AND(H43>='A - Contractor Summary'!$C$36,I43<='A - Contractor Summary'!$C$42),"Yes","No") -> No | K43: =VLOOKUP($D43,'C.1 - Rate Sheets'!B:F,2,FALSE) -> 92.23 | L43: =VLOOKUP($D43,'C.1 - Rate Sheets'!B:F,3,FALSE) -> 129.52 | M43: =VLOOKUP($D43,'C.1 - Rate Sheets'!B:F,4,FALSE) -> 165.02 | Q43: 0 | U43: 0 | Y43: 0 | AC43: 0 | AG43: 0 | AK43: 0 | AL43: 8 | AM43: 8 | AO43: 16 | AQ43: 16 | AS43: 16 | AU43: 16 | AW43: 16 | AY43: 16 | BA43: 16 | BD43: 16 | BE43: 16 | BI43: 0 | BM43: 0 | BQ43: 0 | BU43: 0 | BY43: 0 | CC43: 0 | CG43: 0 | CK43: 0 | CO43: 0 | CS43: 0 | CW43: 0 | DA43: 0 | DE43: 0 | DI43: 0 | DM43: 0 | DQ43: 0 | DU43: 0 | DY43: 0 | EC43: 0 | EG43: 0 | EK43: 0 | EO43: 0 | ES43: 0 | ET43: 8 | EU43: 56 | EV43: 16 | EW43: 80 | EX43: 737.84 | EY43: 7253.12 | EZ43: 2640.32 | FA43: 10631.28 | FB43: 10631.28 | FC43: Yes | FD43: 0 | FE43: 0 | FF43: 0
B44: 26 | C44: Terrill Alston | D44: Lineman A | E44: Vendor No.10 | G44: TLH-STORM-1031-SW18 | H44: 2018-10-17 | I44: 2018-10-21 | J44: =IF(AND(H44>='A - Contractor Summary'!$C$36,I44<='A - Contractor Summary'!$C$42),"Yes","No") -> No | K44: =VLOOKUP($D44,'C.1 - Rate Sheets'!B:F,2,FALSE) -> 85.64 | L44: =VLOOKUP($D44,'C.1 - Rate Sheets'!B:F,3,FALSE) -> 119.89 | M44: =VLOOKUP($D44,'C.1 - Rate Sheets'!B:F,4,FALSE) -> 152.49 | Q44: 0 | U44: 0 | Y44: 0 | AC44: 0 | AG44: 0 | AK44: 0 | AL44: 8 | AM44: 8 | AO44: 16 | AQ44: 16 | AS44: 16 | AU44: 16 | AW44: 16 | AY44: 16 | BA44: 16 | BD44: 16 | BE44: 16 | BI44: 0 | BM44: 0 | BQ44: 0 | BU44: 0 | BY44: 0 | CC44: 0 | CG44: 0 | CK44: 0 | CO44: 0 | CS44: 0 | CW44: 0 | DA44: 0 | DE44: 0 | DI44: 0 | DM44: 0 | DQ44: 0 | DU44: 0 | DY44: 0 | EC44: 0 | EG44: 0 | EK44: 0 | EO44: 0 | ES44: 0 | ET44: 8 | EU44: 56 | EV44: 16 | EW44: 80 | EX44: 685.12 | EY44: 6713.84 | EZ44: 2439.84 | FA44: 9838.8 | FB44: 9838.8 | FC44: Yes | FD44: 0 | FE44: 0 | FF44: 0
B45: 27 | C45: Eli Barrington | D45: Lineman B | E45: Vendor No.10 | G45: TLH-STORM-1031-SW18 | H45: 2018-10-17 | I45: 2018-10-21 | J45: =IF(AND(H45>='A - Contractor Summary'!$C$36,I45<='A - Contractor Summary'!$C$42),"Yes","No") -> No | K45: =VLOOKUP($D45,'C.1 - Rate Sheets'!B:F,2,FALSE) -> 71.8 | L45: =VLOOKUP($D45,'C.1 - Rate Sheets'!B:F,3,FALSE) -> 104.14 | M45: =VLOOKUP($D45,'C.1 - Rate Sheets'!B:F,4,FALSE) -> 127.8 | Q45: 0 | U45: 0 | Y45: 0 | AC45: 0 | AG45: 0 | AK45: 0 | AL45: 8 | AM45: 8 | AO45: 16 | AQ45: 16 | AS45: 16 | AU45: 16 | AW45: 16 | AY45: 16 | BA45: 16 | BD45: 16 | BE45: 16 | BI45: 0 | BM45: 0 | BQ45: 0 | BU45: 0 | BY45: 0 | CC45: 0 | CG45: 0 | CK45: 0 | CO45: 0 | CS45: 0 | CW45: 0 | DA45: 0 | DE45: 0 | DI45: 0 | DM45: 0 | DQ45: 0 | DU45: 0 | DY45: 0 | EC45: 0 | EG45: 0 | EK45: 0 | EO45: 0 | ES45: 0 | ET45: 8 | EU45: 56 | EV45: 16 | EW45: 80 | EX45: 574.4 | EY45: 5831.84 | EZ45: 2044.8 | FA45: 8451.04 | FB45: 8451.04 | FC45: Yes | FD45: 0 | FE45: 0 | FF45: 0
B46: 28 | C46: Dilton Moore | D46: Operator | E46: Vendor No.10 | G46: TLH-STORM-1031-SW18 | H46: 2018-10-17 | I46: 2018-10-21 | J46: =IF(AND(H46>='A - Contractor Summary'!$C$36,I46<='A - Contractor Summary'!$C$42),"Yes","No") -> No | K46: =VLOOKUP($D46,'C.1 - Rate Sheets'!B:F,2,FALSE) -> 56.13 | L46: =VLOOKUP($D46,'C.1 - Rate Sheets'!B:F,3,FALSE) -> 78.59 | M46: =VLOOKUP($D46,'C.1 - Rate Sheets'!B:F,4,FALSE) -> 100.92 | Q46: 0 | U46: 0 | Y46: 0 | AC46: 0 | AG46: 0 | AK46: 0 | AL46: 8 | AM46: 8 | AO46: 16 | AQ46: 16 | AS46: 16 | AU46: 16 | AW46: 16 | AY46: 16 | BA46: 16 | BD46: 16 | BE46: 16 | BI46: 0 | BM46: 0 | BQ46: 0 | BU46: 0 | BY46: 0 | CC46: 0 | CG46: 0 | CK46: 0 | CO46: 0 | CS46: 0 | CW46: 0 | DA46: 0 | DE46: 0 | DI46: 0 | DM46: 0 | DQ46: 0 | DU46: 0 | DY46: 0 | EC46: 0 | EG46: 0 | EK46: 0 | EO46: 0 | ES46: 0 | ET46: 8 | EU46: 56 | EV46: 16 | EW46: 80 | EX46: 449.04 | EY46: 4401.04 | EZ46: 1614.72 | FA46: 6464.8 | FB46: 6464.8 | FC46: Yes | FD46: 0 | FE46: 0 | FF46: 0
B47: 29 | C47: Rory Martin | D47: Truck Driver | E47: Vendor No.10 | G47: TLH-STORM-1031-SW18 | H47: 2018-10-17 | I47: 2018-10-21 | J47: =IF(AND(H47>='A - Contractor Summary'!$C$36,I47<='A - Contractor Summary'!$C$42),"Yes","No") -> No | K47: =VLOOKUP($D47,'C.1 - Rate Sheets'!B:F,2,FALSE) -> 53.22 | L47: =VLOOKUP($D47,'C.1 - Rate Sheets'!B:F,3,FALSE) -> 74.44 | M47: =VLOOKUP($D47,'C.1 - Rate Sheets'!B:F,4,FALSE) -> 92.89 | Q47: 0 | U47: 0 | Y47: 0 | AC47: 0 | AG47: 0 | AK47: 0 | AL47: 8 | AM47: 8 | AO47: 16 | AQ47: 16 | AS47: 16 | AU47: 16 | AW47: 16 | AY47: 16 | BA47: 16 | BD47: 16 | BE47: 16 | BI47: 0 | BM47: 0 | BQ47: 0 | BU47: 0 | BY47: 0 | CC47: 0 | CG47: 0 | CK47: 0 | CO47: 0 | CS47: 0 | CW47: 0 | DA47: 0 | DE47: 0 | DI47: 0 | DM47: 0 | DQ47: 0 | DU47: 0 | DY47: 0 | EC47: 0 | EG47: 0 | EK47: 0 | EO47: 0 | ES47: 0 | ET47: 8 | EU47: 56 | EV47: 16 | EW47: 80 | EX47: 425.76 | EY47: 4168.64 | EZ47: 1486.24 | FA47: 6080.64 | FB47: 6080.64 | FC47: Yes | FD47: 0 | FE47: 0 | FF47: 0
B48: 30 | C48: Davion Mines | D48: Truck Driver | E48: Vendor No.10 | G48: TLH-STORM-1031-SW18 | H48: 2018-10-17 | I48: 2018-10-21 | J48: =IF(AND(H48>='A - Contractor Summary'!$C$36,I48<='A - Contractor Summary'!$C$42),"Yes","No") -> No | K48: =VLOOKUP($D48,'C.1 - Rate Sheets'!B:F,2,FALSE) -> 53.22 | L48: =VLOOKUP($D48,'C.1 - Rate Sheets'!B:F,3,FALSE) -> 74.44 | M48: =VLOOKUP($D48,'C.1 - Rate Sheets'!B:F,4,FALSE) -> 92.89 | Q48: 0 | U48: 0 | Y48: 0 | AC48: 0 | AG48: 0 | AK48: 0 | AL48: 8 | AM48: 8 | AO48: 16 | AQ48: 16 | AS48: 16 | AU48: 16 | AW48: 16 | AY48: 16 | BA48: 16 | BD48: 16 | BE48: 16 | BI48: 0 | BM48: 0 | BQ48: 0 | BU48: 0 | BY48: 0 | CC48: 0 | CG48: 0 | CK48: 0 | CO48: 0 | CS48: 0 | CW48: 0 | DA48: 0 | DE48: 0 | DI48: 0 | DM48: 0 | DQ48: 0 | DU48: 0 | DY48: 0 | EC48: 0 | EG48: 0 | EK48: 0 | EO48: 0 | ES48: 0 | ET48: 8 | EU48: 56 | EV48: 16 | EW48: 80 | EX48: 425.76 | EY48: 4168.64 | EZ48: 1486.24 | FA48: 6080.64 | FB48: 6080.64 | FC48: Yes | FD48: 0 | FE48: 0 | FF48: 0
B49: 31 | C49: James Reynolds | D49: Lineman A | E49: Vendor No.10 | G49: TLH-STORM-1031-SW18 | H49: 2018-10-17 | I49: 2018-10-17 | J49: =IF(AND(H49>='A - Contractor Summary'!$C$36,I49<='A - Contractor Summary'!$C$42),"Yes","No") -> No | K49: =VLOOKUP($D49,'C.1 - Rate Sheets'!B:F,2,FALSE) -> 85.64 | L49: =VLOOKUP($D49,'C.1 - Rate Sheets'!B:F,3,FALSE) -> 119.89 | M49: =VLOOKUP($D49,'C.1 - Rate Sheets'!B:F,4,FALSE) -> 152.49 | Q49: 0 | U49: 0 | Y49: 0 | AC49: 0 | AG49: 0 | AK49: 0 | AL49: 8.5 | AO49: 8.5 | AS49: 0 | AW49: 0 | BA49: 0 | BE49: 0 | BI49: 0 | BM49: 0 | BQ49: 0 | BU49: 0 | BY49: 0 | CC49: 0 | CG49: 0 | CK49: 0 | CO49: 0 | CS49: 0 | CW49: 0 | DA49: 0 | DE49: 0 | DI49: 0 | DM49: 0 | DQ49: 0 | DU49: 0 | DY49: 0 | EC49: 0 | EG49: 0 | EK49: 0 | EO49: 0 | ES49: 0 | ET49: 8.5 | EU49: 0 | EV49: 0 | EW49: 8.5 | EX49: 727.94 | EY49: 0 | EZ49: 0 | FA49: 727.94 | FB49: 727.94 | FC49: Yes | FD49: 0 | FE49: 0 | FF49: 0
B50: 32 | C50: Michael Thompson | D50: General Foreman | E50: Vendor No.10 | G50: TLH-STORM-1031-SW18 | H50: 2018-10-22 | I50: 2018-10-28 | J50: =IF(AND(H50>='A - Contractor Summary'!$C$36,I50<='A - Contractor Summary'!$C$42),"Yes","No") -> No | K50: =VLOOKUP($D50,'C.1 - Rate Sheets'!B:F,2,FALSE) -> 112.11 | L50: =VLOOKUP($D50,'C.1 - Rate Sheets'!B:F,3,FALSE) -> 156.96 | M50: =VLOOKUP($D50,'C.1 - Rate Sheets'!B:F,4,FALSE) -> 199.98 | Q50: 0 | U50: 0 | Y50: 0 | AC50: 0 | AG50: 0 | AK50: 0 | AO50: 0 | AS50: 0 | AW50: 0 | BA50: 0 | BE50: 0 | BF50: 8 | BG50: 8 | BI50: 16 | BJ50: 8 | BK50: 8 | BM50: 16 | BN50: 8 | BO50: 8 | BQ50: 16 | BR50: 8 | BS50: 8 | BU50: 16 | BV50: 8 | BW50: 8 | BY50: 16 | CA50: 16 | CC50: 16 | CF50: 16 | CG50: 16 | CK50: 0 | CO50: 0 | CS50: 0 | CW50: 0 | DA50: 0 | DE50: 0 | DI50: 0 | DM50: 0 | DQ50: 0 | DU50: 0 | DY50: 0 | EC50: 0 | EG50: 0 | EK50: 0 | EO50: 0 | ES50: 0 | ET50: 40 | EU50: 56 | EV50: 16 | EW50: 112 | EX50: 4484.4 | EY50: 8789.76 | EZ50: 3199.68 | FA50: 16473.84 | FB50: 16473.84 | FC50: Yes | FD50: 0 | FE50: 0 | FF50: 0
B51: 33 | C51: Shannon Barlow | D51: General Foreman | E51: Vendor No.10 | G51: TLH-STORM-1031-SW18 | H51: 2018-10-22 | I51: 2018-10-26 | J51: =IF(AND(H51>='A - Contractor Summary'!$C$36,I51<='A - Contractor Summary'!$C$42),"Yes","No") -> No | K51: =VLOOKUP($D51,'C.1 - Rate Sheets'!B:F,2,FALSE) -> 112.11 | L51: =VLOOKUP($D51,'C.1 - Rate Sheets'!B:F,3,FALSE) -> 156.96 | M51: =VLOOKUP($D51,'C.1 - Rate Sheets'!B:F,4,FALSE) -> 199.98 | Q51: 0 | U51: 0 | Y51: 0 | AC51: 0 | AG51: 0 | AK51: 0 | AO51: 0 | AS51: 0 | AW51: 0 | BA51: 0 | BE51: 0 | BF51: 8 | BG51: 8 | BI51: 16 | BJ51: 8 | BK51: 8 | BM51: 16 | BN51: 8 | BO51: 8 | BQ51: 16 | BR51: 8 | BS51: 8 | BU51: 16 | BV51: 8 | BW51: 8 | BY51: 16 | CC51: 0 | CG51: 0 | CK51: 0 | CO51: 0 | CS51: 0 | CW51: 0 | DA51: 0 | DE51: 0 | DI51: 0 | DM51: 0 | DQ51: 0 | DU51: 0 | DY51: 0 | EC51: 0 | EG51: 0 | EK51: 0 | EO51: 0 | ES51: 0 | ET51: =SUM(N51,R51,V51,Z51,AD51,AH51,AL51,AP51,AT51,AX51,BB51,BF51,BJ51,BN51,BR51,BV51,BZ51,CD51,CH51,CL51,CP51,CT51) -> 40 | EU51: =SUM(O51,S51,W51,AA51,AE51,AI51,AM51,AQ51,AU51,AY51,BC51,BG51,BK51,BO51,BS51,BW51,CA51,CE51,CI51,CM51,CQ51,CU51) -> 40 | EV51: =SUM(P51,T51,X51,AB51,AF51,AJ51,AN51,AR51,AV51,AZ51,BD51,BH51,BL51,BP51,BT51,BX51,CB51,CF51,CJ51,CN51,CR51,CV51) -> 0 | EW51: 80 | EX51: =ET51*K51 -> 4484.4 | EY51: =EU51*L51 -> 6278.4 | EZ51: =EV51*M51 -> 0 | FA51: 10762.8 | FB51: 10762.8 | FC51: Yes | FD51: 0 | FE51: 0 | FF51: 0
B52: 34 | C52: Chris Melvin | D52: Foreman | E52: Vendor No.10 | G52: TLH-STORM-1031-SW18 | H52: 2018-10-22 | I52: 2018-10-28 | J52: =IF(AND(H52>='A - Contractor Summary'!$C$36,I52<='A - Contractor Summary'!$C$42),"Yes","No") -> No | K52: =VLOOKUP($D52,'C.1 - Rate Sheets'!B:F,2,FALSE) -> 92.23 | L52: =VLOOKUP($D52,'C.1 - Rate Sheets'!B:F,3,FALSE) -> 129.52 | M52: =VLOOKUP($D52,'C.1 - Rate Sheets'!B:F,4,FALSE) -> 165.02 | Q52: 0 | U52: 0 | Y52: 0 | AC52: 0 | AG52: 0 | AK52: 0 | AO52: 0 | AS52: 0 | AW52: 0 | BA52: 0 | BE52: 0 | BF52: 8 | BG52: 8 | BI52: 16 | BJ52: 8 | BK52: 8 | BM52: 16 | BN52: 8 | BO52: 8 | BQ52: 16 | BR52: 8 | BS52: 8 | BU52: 16 | BV52: 8 | BW52: 8 | BY52: 16 | CA52: 16 | CC52: 16 | CF52: 16 | CG52: 16 | CK52: 0 | CO52: 0 | CS52: 0 | CW52: 0 | DA52: 0 | DE52: 0 | DI52: 0 | DM52: 0 | DQ52: 0 | DU52: 0 | DY52: 0 | EC52: 0 | EG52: 0 | EK52: 0 | EO52: 0 | ES52: 0 | ET52: 40 | EU52: 56 | EV52: 16 | EW52: 112 | EX52: 3689.2 | EY52: 7253.12 | EZ52: 2640.32 | FA52: 13582.64 | FB52: 13582.64 | FC52: Yes | FD52: 0 | FE52: 0 | FF52: 0
B53: 35 | C53: Jeremy Hortan | D53: Lineman A | E53: Vendor No.10 | G53: TLH-STORM-1031-SW18 | H53: 2018-10-22 | I53: 2018-10-28 | J53: =IF(AND(H53>='A - Contractor Summary'!$C$36,I53<='A - Contractor Summary'!$C$42),"Yes","No") -> No | K53: =VLOOKUP($D53,'C.1 - Rate Sheets'!B:F,2,FALSE) -> 85.64 | L53: =VLOOKUP($D53,'C.1 - Rate Sheets'!B:F,3,FALSE) -> 119.89 | M53: =VLOOKUP($D53,'C.1 - Rate Sheets'!B:F,4,FALSE) -> 152.49 | Q53: 0 | U53: 0 | Y53: 0 | AC53: 0 | AG53: 0 | AK53: 0 | AO53: 0 | AS53: 0 | AW53: 0 | BA53: 0 | BE53: 0 | BF53: 8 | BG53: 8 | BI53: 16 | BJ53: 8 | BK53: 8 | BM53: 16 | BN53: 8 | BO53: 8 | BQ53: 16 | BR53: 8 | BS53: 8 | BU53: 16 | BV53: 8 | BW53: 8 | BY53: 16 | CA53: 16 | CC53: 16 | CF53: 16 | CG53: 16 | CK53: 0 | CO53: 0 | CS53: 0 | CW53: 0 | DA53: 0 | DE53: 0 | DI53: 0 | DM53: 0 | DQ53: 0 | DU53: 0 | DY53: 0 | EC53: 0 | EG53: 0 | EK53: 0 | EO53: 0 | ES53: 0 | ET53: 40 | EU53: 56 | EV53: 16 | EW53: 112 | EX53: 3425.6 | EY53: 6713.84 | EZ53: 2439.84 | FA53: 12579.28 | FB53: 12579.28 | FC53: Yes | FD53: 0 | FE53: 0 | FF53: 0
B54: 36 | C54: Kaleb Champion | D54: Lineman B | E54: Vendor No.10 | G54: TLH-STORM-1031-SW18 | H54: 2018-10-22 | I54: 2018-10-28 | J54: =IF(AND(H54>='A - Contractor Summary'!$C$36,I54<='A - Contractor Summary'!$C$42),"Yes","No") -> No | K54: =VLOOKUP($D54,'C.1 - Rate Sheets'!B:F,2,FALSE) -> 71.8 | L54: =VLOOKUP($D54,'C.1 - Rate Sheets'!B:F,3,FALSE) -> 104.14 | M54: =VLOOKUP($D54,'C.1 - Rate Sheets'!B:F,4,FALSE) -> 127.8 | Q54: 0 | U54: 0 | Y54: 0 | AC54: 0 | AG54: 0 | AK54: 0 | AO54: 0 | AS54: 0 | AW54: 0 | BA54: 0 | BE54: 0 | BF54: 8 | BG54: 8 | BI54: 16 | BJ54: 8 | BK54: 8 | BM54: 16 | BN54: 8 | BO54: 8 | BQ54: 16 | BR54: 8 | BS54: 8 | BU54: 16 | BV54: 8 | BW54: 8 | BY54: 16 | CA54: 16 | CC54: 16 | CF54: 16 | CG54: 16 | CK54: 0 | CO54: 0 | CS54: 0 | CW54: 0 | DA54: 0 | DE54: 0 | DI54: 0 | DM54: 0 | DQ54: 0 | DU54: 0 | DY54: 0 | EC54: 0 | EG54: 0 | EK54: 0 | EO54: 0 | ES54: 0 | ET54: 40 | EU54: 56 | EV54: 16 | EW54: 112 | EX54: 2872 | EY54: 5831.84 | EZ54: 2044.8 | FA54: 10748.64 | FB54: 10748.64 | FC54: Yes | FD54: 0 | FE54: 0 | FF54: 0
B55: 37 | C55: Tristan Rudd | D55: Apprentice | E55: Vendor No.10 | G55: TLH-STORM-1031-SW18 | H55: 2018-10-22 | I55: 2018-10-28 | J55: =IF(AND(H55>='A - Contractor Summary'!$C$36,I55<='A - Contractor Summary'!$C$42),"Yes","No") -> No | K55: =VLOOKUP($D55,'C.1 - Rate Sheets'!B:F,2,FALSE) -> 60.26 | L55: =VLOOKUP($D55,'C.1 - Rate Sheets'!B:F,3,FALSE) -> 84.98 | M55: =VLOOKUP($D55,'C.1 - Rate Sheets'!B:F,4,FALSE) -> 110.01 | Q55: 0 | U55: 0 | Y55: 0 | AC55: 0 | AG55: 0 | AK55: 0 | AO55: 0 | AS55: 0 | AW55: 0 | BA55: 0 | BE55: 0 | BF55: 8 | BG55: 8 | BI55: 16 | BJ55: 8 | BK55: 8 | BM55: 16 | BN55: 8 | BO55: 8 | BQ55: 16 | BR55: 8 | BS55: 8 | BU55: 16 | BV55: 8 | BW55: 8 | BY55: 16 | CA55: 16 | CC55: 16 | CF55: 16 | CG55: 16 | CK55: 0 | CO55: 0 | CS55: 0 | CW55: 0 | DA55: 0 | DE55: 0 | DI55: 0 | DM55: 0 | DQ55: 0 | DU55: 0 | DY55: 0 | EC55: 0 | EG55: 0 | EK55: 0 | EO55: 0 | ES55: 0 | ET55: 40 | EU55: 56 | EV55: 16 | EW55: 112 | EX55: 2410.4 | EY55: 4758.88 | EZ55: 1760.16 | FA55: 8929.44 | FB55: 8929.44 | FC55: Yes | FD55: 0 | FE55: 0 | FF55: 0
B56: 38 | C56: Chris Boobyer | D56: Operator | E56: Vendor No.10 | G56: TLH-STORM-1031-SW18 | H56: 2018-10-22 | I56: 2018-10-28 | J56: =IF(AND(H56>='A - Contractor Summary'!$C$36,I56<='A - Contractor Summary'!$C$42),"Yes","No") -> No | K56: =VLOOKUP($D56,'C.1 - Rate Sheets'!B:F,2,FALSE) -> 56.13 | L56: =VLOOKUP($D56,'C.1 - Rate Sheets'!B:F,3,FALSE) -> 78.59 | M56: =VLOOKUP($D56,'C.1 - Rate Sheets'!B:F,4,FALSE) -> 100.92 | Q56: 0 | U56: 0 | Y56: 0 | AC56: 0 | AG56: 0 | AK56: 0 | AO56: 0 | AS56: 0 | AW56: 0 | BA56: 0 | BE56: 0 | BF56: 8 | BG56: 8 | BI56: 16 | BJ56: 8 | BK56: 8 | BM56: 16 | BN56: 8 | BO56: 8 | BQ56: 16 | BR56: 8 | BS56: 8 | BU56: 16 | BV56: 8 | BW56: 8 | BY56: 16 | CA56: 16 | CC56: 16 | CF56: 16 | CG56: 16 | CK56: 0 | CO56: 0 | CS56: 0 | CW56: 0 | DA56: 0 | DE56: 0 | DI56: 0 | DM56: 0 | DQ56: 0 | DU56: 0 | DY56: 0 | EC56: 0 | EG56: 0 | EK56: 0 | EO56: 0 | ES56: 0 | ET56: 40 | EU56: 56 | EV56: 16 | EW56: 112 | EX56: 2245.2 | EY56: 4401.04 | EZ56: 1614.72 | FA56: 8260.96 | FB56: 8260.96 | FC56: Yes | FD56: 0 | FE56: 0 | FF56: 0
B57: 39 | C57: Jonathan Melvin | D57: Truck Driver | E57: Vendor No.10 | G57: TLH-STORM-1031-SW18 | H57: 2018-10-22 | I57: 2018-10-28 | J57: =IF(AND(H57>='A - Contractor Summary'!$C$36,I57<='A - Contractor Summary'!$C$42),"Yes","No") -> No | K57: =VLOOKUP($D57,'C.1 - Rate Sheets'!B:F,2,FALSE) -> 53.22 | L57: =VLOOKUP($D57,'C.1 - Rate Sheets'!B:F,3,FALSE) -> 74.44 | M57: =VLOOKUP($D57,'C.1 - Rate Sheets'!B:F,4,FALSE) -> 92.89 | Q57: 0 | U57: 0 | Y57: 0 | AC57: 0 | AG57: 0 | AK57: 0 | AO57: 0 | AS57: 0 | AW57: 0 | BA57: 0 | BE57: 0 | BF57: 8 | BG57: 8 | BI57: 16 | BJ57: 8 | BK57: 8 | BM57: 16 | BN57: 8 | BO57: 8 | BQ57: 16 | BR57: 8 | BS57: 8 | BU57: 16 | BV57: 8 | BW57: 8 | BY57: 16 | CA57: 16 | CC57: 16 | CF57: 16 | CG57: 16 | CK57: 0 | CO57: 0 | CS57: 0 | CW57: 0 | DA57: 0 | DE57: 0 | DI57: 0 | DM57: 0 | DQ57: 0 | DU57: 0 | DY57: 0 | EC57: 0 | EG57: 0 | EK57: 0 | EO57: 0 | ES57: 0 | ET57: 40 | EU57: 56 | EV57: 16 | EW57: 112 | EX57: 2128.8 | EY57: 4168.64 | EZ57: 1486.24 | FA57: 7783.68 | FB57: 7783.68 | FC57: Yes | FD57: 0 | FE57: 0 | FF57: 0
B58: 40 | C58: Kamryn McMullen | D58: Foreman | E58: Vendor No.10 | G58: TLH-STORM-1031-SW18 | H58: 2018-10-22 | I58: 2018-10-28 | J58: =IF(AND(H58>='A - Contractor Summary'!$C$36,I58<='A - Contractor Summary'!$C$42),"Yes","No") -> No | K58: =VLOOKUP($D58,'C.1 - Rate Sheets'!B:F,2,FALSE) -> 92.23 | L58: =VLOOKUP($D58,'C.1 - Rate Sheets'!B:F,3,FALSE) -> 129.52 | M58: =VLOOKUP($D58,'C.1 - Rate Sheets'!B:F,4,FALSE) -> 165.02 | Q58: 0 | U58: 0 | Y58: 0 | AC58: 0 | AG58: 0 | AK58: 0 | AO58: 0 | AS58: 0 | AW58: 0 | BA58: 0 | BE58: 0 | BF58: 8 | BG58: 8 | BI58: 16 | BJ58: 8 | BK58: 8 | BM58: 16 | BN58: 8 | BO58: 8 | BQ58: 16 | BR58: 8 | BS58: 8 | BU58: 16 | BV58: 8 | BW58: 8 | BY58: 16 | CA58: 16 | CC58: 16 | CF58: 16 | CG58: 16 | CK58: 0 | CO58: 0 | CS58: 0 | CW58: 0 | DA58: 0 | DE58: 0 | DI58: 0 | DM58: 0 | DQ58: 0 | DU58: 0 | DY58: 0 | EC58: 0 | EG58: 0 | EK58: 0 | EO58: 0 | ES58: 0 | ET58: 40 | EU58: 56 | EV58: 16 | EW58: 112 | EX58: 3689.2 | EY58: 7253.12 | EZ58: 2640.32 | FA58: 13582.64 | FB58: 13582.64 | FC58: Yes | FD58: 0 | FE58: 0 | FF58: 0
B59: 41 | C59: Joseph Thompson | D59: Lineman B | E59: Vendor No.10 | G59: TLH-STORM-1031-SW18 | H59: 2018-10-22 | I59: 2018-10-28 | J59: =IF(AND(H59>='A - Contractor Summary'!$C$36,I59<='A - Contractor Summary'!$C$42),"Yes","No") -> No | K59: =VLOOKUP($D59,'C.1 - Rate Sheets'!B:F,2,FALSE) -> 71.8 | L59: =VLOOKUP($D59,'C.1 - Rate Sheets'!B:F,3,FALSE) -> 104.14 | M59: =VLOOKUP($D59,'C.1 - Rate Sheets'!B:F,4,FALSE) -> 127.8 | Q59: 0 | U59: 0 | Y59: 0 | AC59: 0 | AG59: 0 | AK59: 0 | AO59: 0 | AS59: 0 | AW59: 0 | BA59: 0 | BE59: 0 | BF59: 8 | BG59: 8 | BI59: 16 | BJ59: 8 | BK59: 8 | BM59: 16 | BN59: 8 | BO59: 8 | BQ59: 16 | BR59: 8 | BS59: 8 | BU59: 16 | BV59: 8 | BW59: 8 | BY59: 16 | CA59: 16 | CC59: 16 | CF59: 16 | CG59: 16 | CK59: 0 | CO59: 0 | CS59: 0 | CW59: 0 | DA59: 0 | DE59: 0 | DI59: 0 | DM59: 0 | DQ59: 0 | DU59: 0 | DY59: 0 | EC59: 0 | EG59: 0 | EK59: 0 | EO59: 0 | ES59: 0 | ET59: 40 | EU59: 56 | EV59: 16 | EW59: 112 | EX59: 2872 | EY59: 5831.84 | EZ59: 2044.8 | FA59: 10748.64 | FB59: 10748.64 | FC59: Yes | FD59: 0 | FE59: 0 | FF59: 0
B60: 42 | C60: Mike Stonesifer | D60: Lineman B | E60: Vendor No.10 | G60: TLH-STORM-1031-SW18 | H60: 2018-10-22 | I60: 2018-10-28 | J60: =IF(AND(H60>='A - Contractor Summary'!$C$36,I60<='A - Contractor Summary'!$C$42),"Yes","No") -> No | K60: =VLOOKUP($D60,'C.1 - Rate Sheets'!B:F,2,FALSE) -> 71.8 | L60: =VLOOKUP($D60,'C.1 - Rate Sheets'!B:F,3,FALSE) -> 104.14 | M60: =VLOOKUP($D60,'C.1 - Rate Sheets'!B:F,4,FALSE) -> 127.8 | Q60: 0 | U60: 0 | Y60: 0 | AC60: 0 | AG60: 0 | AK60: 0 | AO60: 0 | AS60: 0 | AW60: 0 | BA60: 0 | BE60: 0 | BF60: 8 | BG60: 8 | BI60: 16 | BJ60: 8 | BK60: 8 | BM60: 16 | BN60: 8 | BO60: 8 | BQ60: 16 | BR60: 8 | BS60: 8 | BU60: 16 | BV60: 8 | BW60: 8 | BY60: 16 | CA60: 16 | CC60: 16 | CF60: 16 | CG60: 16 | CK60: 0 | CO60: 0 | CS60: 0 | CW60: 0 | DA60: 0 | DE60: 0 | DI60: 0 | DM60: 0 | DQ60: 0 | DU60: 0 | DY60: 0 | EC60: 0 | EG60: 0 | EK60: 0 | EO60: 0 | ES60: 0 | ET60: 40 | EU60: 56 | EV60: 16 | EW60: 112 | EX60: 2872 | EY60: 5831.84 | EZ60: 2044.8 | FA60: 10748.64 | FB60: 10748.64 | FC60: Yes | FD60: 0 | FE60: 0 | FF60: 0
B61: 43 | C61: Jeffrery Graves | D61: Operator | E61: Vendor No.10 | G61: TLH-STORM-1031-SW18 | H61: 2018-10-22 | I61: 2018-10-28 | J61: =IF(AND(H61>='A - Contractor Summary'!$C$36,I61<='A - Contractor Summary'!$C$42),"Yes","No") -> No | K61: =VLOOKUP($D61,'C.1 - Rate Sheets'!B:F,2,FALSE) -> 56.13 | L61: =VLOOKUP($D61,'C.1 - Rate Sheets'!B:F,3,FALSE) -> 78.59 | M61: =VLOOKUP($D61,'C.1 - Rate Sheets'!B:F,4,FALSE) -> 100.92 | Q61: 0 | U61: 0 | Y61: 0 | AC61: 0 | AG61: 0 | AK61: 0 | AO61: 0 | AS61: 0 | AW61: 0 | BA61: 0 | BE61: 0 | BF61: 8 | BG61: 8 | BI61: 16 | BJ61: 8 | BK61: 8 | BM61: 16 | BN61: 8 | BO61: 8 | BQ61: 16 | BR61: 8 | BS61: 8 | BU61: 16 | BV61: 8 | BW61: 8 | BY61: 16 | CA61: 16 | CC61: 16 | CF61: 16 | CG61: 16 | CK61: 0 | CO61: 0 | CS61: 0 | CW61: 0 | DA61: 0 | DE61: 0 | DI61: 0 | DM61: 0 | DQ61: 0 | DU61: 0 | DY61: 0 | EC61: 0 | EG61: 0 | EK61: 0 | EO61: 0 | ES61: 0 | ET61: 40 | EU61: 56 | EV61: 16 | EW61: 112 | EX61: 2245.2 | EY61: 4401.04 | EZ61: 1614.72 | FA61: 8260.96 | FB61: 8260.96 | FC61: Yes | FD61: 0 | FE61: 0 | FF61: 0
B62: 44 | C62: Torrence Stephenson | D62: Truck Driver | E62: Vendor No.10 | G62: TLH-STORM-1031-SW18 | H62: 2018-10-22 | I62: 2018-10-28 | J62: =IF(AND(H62>='A - Contractor Summary'!$C$36,I62<='A - Contractor Summary'!$C$42),"Yes","No") -> No | K62: =VLOOKUP($D62,'C.1 - Rate Sheets'!B:F,2,FALSE) -> 53.22 | L62: =VLOOKUP($D62,'C.1 - Rate Sheets'!B:F,3,FALSE) -> 74.44 | M62: =VLOOKUP($D62,'C.1 - Rate Sheets'!B:F,4,FALSE) -> 92.89 | Q62: 0 | U62: 0 | Y62: 0 | AC62: 0 | AG62: 0 | AK62: 0 | AO62: 0 | AS62: 0 | AW62: 0 | BA62: 0 | BE62: 0 | BF62: 8 | BG62: 8 | BI62: 16 | BJ62: 8 | BK62: 8 | BM62: 16 | BN62: 8 | BO62: 8 | BQ62: 16 | BR62: 8 | BS62: 8 | BU62: 16 | BV62: 8 | BW62: 8 | BY62: 16 | CA62: 16 | CC62: 16 | CF62: 16 | CG62: 16 | CK62: 0 | CO62: 0 | CS62: 0 | CW62: 0 | DA62: 0 | DE62: 0 | DI62: 0 | DM62: 0 | DQ62: 0 | DU62: 0 | DY62: 0 | EC62: 0 | EG62: 0 | EK62: 0 | EO62: 0 | ES62: 0 | ET62: 40 | EU62: 56 | EV62: 16 | EW62: 112 | EX62: 2128.8 | EY62: 4168.64 | EZ62: 1486.24 | FA62: 7783.68 | FB62: 7783.68 | FC62: Yes | FD62: 0 | FE62: 0 | FF62: 0
B63: 45 | C63: Tyler Padgett | D63: Truck Driver | E63: Vendor No.10 | G63: TLH-STORM-1031-SW18 | H63: 2018-10-22 | I63: 2018-10-28 | J63: =IF(AND(H63>='A - Contractor Summary'!$C$36,I63<='A - Contractor Summary'!$C$42),"Yes","No") -> No | K63: =VLOOKUP($D63,'C.1 - Rate Sheets'!B:F,2,FALSE) -> 53.22 | L63: =VLOOKUP($D63,'C.1 - Rate Sheets'!B:F,3,FALSE) -> 74.44 | M63: =VLOOKUP($D63,'C.1 - Rate Sheets'!B:F,4,FALSE) -> 92.89 | Q63: 0 | U63: 0 | Y63: 0 | AC63: 0 | AG63: 0 | AK63: 0 | AO63: 0 | AS63: 0 | AW63: 0 | BA63: 0 | BE63: 0 | BF63: 8 | BG63: 8 | BI63: 16 | BJ63: 8 | BK63: 8 | BM63: 16 | BN63: 8 | BO63: 8 | BQ63: 16 | BR63: 8 | BS63: 8 | BU63: 16 | BV63: 8 | BW63: 8 | BY63: 16 | CA63: 16 | CC63: 16 | CF63: 16 | CG63: 16 | CK63: 0 | CO63: 0 | CS63: 0 | CW63: 0 | DA63: 0 | DE63: 0 | DI63: 0 | DM63: 0 | DQ63: 0 | DU63: 0 | DY63: 0 | EC63: 0 | EG63: 0 | EK63: 0 | EO63: 0 | ES63: 0 | ET63: 40 | EU63: 56 | EV63: 16 | EW63: 112 | EX63: 2128.8 | EY63: 4168.64 | EZ63: 1486.24 | FA63: 7783.68 | FB63: 7783.68 | FC63: Yes | FD63: 0 | FE63: 0 | FF63: 0
B64: 46 | C64: Thomas Bryant | D64: Foreman | E64: Vendor No.10 | G64: TLH-STORM-1031-SW18 | H64: 2018-10-22 | I64: 2018-10-28 | J64: =IF(AND(H64>='A - Contractor Summary'!$C$36,I64<='A - Contractor Summary'!$C$42),"Yes","No") -> No | K64: =VLOOKUP($D64,'C.1 - Rate Sheets'!B:F,2,FALSE) -> 92.23 | L64: =VLOOKUP($D64,'C.1 - Rate Sheets'!B:F,3,FALSE) -> 129.52 | M64: =VLOOKUP($D64,'C.1 - Rate Sheets'!B:F,4,FALSE) -> 165.02 | Q64: 0 | U64: 0 | Y64: 0 | AC64: 0 | AG64: 0 | AK64: 0 | AO64: 0 | AS64: 0 | AW64: 0 | BA64: 0 | BE64: 0 | BF64: 8 | BG64: 8 | BI64: 16 | BJ64: 8 | BK64: 8 | BM64: 16 | BN64: 8 | BO64: 8 | BQ64: 16 | BR64: 8 | BS64: 8 | BU64: 16 | BV64: 8 | BW64: 8 | BY64: 16 | CA64: 16 | CC64: 16 | CF64: 16 | CG64: 16 | CK64: 0 | CO64: 0 | CS64: 0 | CW64: 0 | DA64: 0 | DE64: 0 | DI64: 0 | DM64: 0 | DQ64: 0 | DU64: 0 | DY64: 0 | EC64: 0 | EG64: 0 | EK64: 0 | EO64: 0 | ES64: 0 | ET64: 40 | EU64: 56 | EV64: 16 | EW64: 112 | EX64: 3689.2 | EY64: 7253.12 | EZ64: 2640.32 | FA64: 13582.64 | FB64: 13582.64 | FC64: Yes | FD64: 0 | FE64: 0 | FF64: 0
B65: 47 | C65: Mikel Lloyd | D65: Lineman B | E65: Vendor No.10 | G65: TLH-STORM-1031-SW18 | H65: 2018-10-22 | I65: 2018-10-28 | J65: =IF(AND(H65>='A - Contractor Summary'!$C$36,I65<='A - Contractor Summary'!$C$42),"Yes","No") -> No | K65: =VLOOKUP($D65,'C.1 - Rate Sheets'!B:F,2,FALSE) -> 71.8 | L65: =VLOOKUP($D65,'C.1 - Rate Sheets'!B:F,3,FALSE) -> 104.14 | M65: =VLOOKUP($D65,'C.1 - Rate Sheets'!B:F,4,FALSE) -> 127.8 | Q65: 0 | U65: 0 | Y65: 0 | AC65: 0 | AG65: 0 | AK65: 0 | AO65: 0 | AS65: 0 | AW65: 0 | BA65: 0 | BE65: 0 | BF65: 8 | BG65: 8 | BI65: 16 | BJ65: 8 | BK65: 8 | BM65: 16 | BN65: 8 | BO65: 8 | BQ65: 16 | BR65: 8 | BS65: 8 | BU65: 16 | BV65: 8 | BW65: 8 | BY65: 16 | CA65: 16 | CC65: 16 | CF65: 16 | CG65: 16 | CK65: 0 | CO65: 0 | CS65: 0 | CW65: 0 | DA65: 0 | DE65: 0 | DI65: 0 | DM65: 0 | DQ65: 0 | DU65: 0 | DY65: 0 | EC65: 0 | EG65: 0 | EK65: 0 | EO65: 0 | ES65: 0 | ET65: 40 | EU65: 56 | EV65: 16 | EW65: 112 | EX65: 2872 | EY65: 5831.84 | EZ65: 2044.8 | FA65: 10748.64 | FB65: 10748.64 | FC65: Yes | FD65: 0 | FE65: 0 | FF65: 0
B66: 48 | C66: Darion Lewis | D66: Lineman B | E66: Vendor No.10 | G66: TLH-STORM-1031-SW18 | H66: 2018-10-22 | I66: 2018-10-28 | J66: =IF(AND(H66>='A - Contractor Summary'!$C$36,I66<='A - Contractor Summary'!$C$42),"Yes","No") -> No | K66: =VLOOKUP($D66,'C.1 - Rate Sheets'!B:F,2,FALSE) -> 71.8 | L66: =VLOOKUP($D66,'C.1 - Rate Sheets'!B:F,3,FALSE) -> 104.14 | M66: =VLOOKUP($D66,'C.1 - Rate Sheets'!B:F,4,FALSE) -> 127.8 | Q66: 0 | U66: 0 | Y66: 0 | AC66: 0 | AG66: 0 | AK66: 0 | AO66: 0 | AS66: 0 | AW66: 0 | BA66: 0 | BE66: 0 | BF66: 8 | BG66: 8 | BI66: 16 | BJ66: 8 | BK66: 8 | BM66: 16 | BN66: 8 | BO66: 8 | BQ66: 16 | BR66: 8 | BS66: 8 | BU66: 16 | BV66: 8 | BW66: 8 | BY66: 16 | CA66: 16 | CC66: 16 | CF66: 16 | CG66: 16 | CK66: 0 | CO66: 0 | CS66: 0 | CW66: 0 | DA66: 0 | DE66: 0 | DI66: 0 | DM66: 0 | DQ66: 0 | DU66: 0 | DY66: 0 | EC66: 0 | EG66: 0 | EK66: 0 | EO66: 0 | ES66: 0 | ET66: 40 | EU66: 56 | EV66: 16 | EW66: 112 | EX66: 2872 | EY66: 5831.84 | EZ66: 2044.8 | FA66: 10748.64 | FB66: 10748.64 | FC66: Yes | FD66: 0 | FE66: 0 | FF66: 0
B67: 49 | C67: Aaron Coleman | D67: Lineman C | E67: Vendor No.10 | G67: TLH-STORM-1031-SW18 | H67: 2018-10-22 | I67: 2018-10-28 | J67: =IF(AND(H67>='A - Contractor Summary'!$C$36,I67<='A - Contractor Summary'!$C$42),"Yes","No") -> No | K67: =VLOOKUP($D67,'C.1 - Rate Sheets'!B:F,2,FALSE) -> 64.56 | L67: =VLOOKUP($D67,'C.1 - Rate Sheets'!B:F,3,FALSE) -> 93.67 | M67: =VLOOKUP($D67,'C.1 - Rate Sheets'!B:F,4,FALSE) -> 115.28 | Q67: 0 | U67: 0 | Y67: 0 | AC67: 0 | AG67: 0 | AK67: 0 | AO67: 0 | AS67: 0 | AW67: 0 | BA67: 0 | BE67: 0 | BF67: 8 | BG67: 8 | BI67: 16 | BJ67: 8 | BK67: 8 | BM67: 16 | BN67: 8 | BO67: 8 | BQ67: 16 | BR67: 8 | BS67: 8 | BU67: 16 | BV67: 8 | BW67: 8 | BY67: 16 | CA67: 16 | CC67: 16 | CF67: 16 | CG67: 16 | CK67: 0 | CO67: 0 | CS67: 0 | CW67: 0 | DA67: 0 | DE67: 0 | DI67: 0 | DM67: 0 | DQ67: 0 | DU67: 0 | DY67: 0 | EC67: 0 | EG67: 0 | EK67: 0 | EO67: 0 | ES67: 0 | ET67: 40 | EU67: 56 | EV67: 16 | EW67: 112 | EX67: 2582.4 | EY67: 5245.52 | EZ67: 1844.48 | FA67: 9672.4 | FB67: 9672.4 | FC67: Yes | FD67: 0 | FE67: 0 | FF67: 0
B68: 50 | C68: Stephen McCardell | D68: Operator | E68: Vendor No.10 | G68: TLH-STORM-1031-SW18 | H68: 2018-10-22 | I68: 2018-10-28 | J68: =IF(AND(H68>='A - Contractor Summary'!$C$36,I68<='A - Contractor Summary'!$C$42),"Yes","No") -> No | K68: =VLOOKUP($D68,'C.1 - Rate Sheets'!B:F,2,FALSE) -> 56.13 | L68: =VLOOKUP($D68,'C.1 - Rate Sheets'!B:F,3,FALSE) -> 78.59 | M68: =VLOOKUP($D68,'C.1 - Rate Sheets'!B:F,4,FALSE) -> 100.92 | Q68: 0 | U68: 0 | Y68: 0 | AC68: 0 | AG68: 0 | AK68: 0 | AO68: 0 | AS68: 0 | AW68: 0 | BA68: 0 | BE68: 0 | BF68: 8 | BG68: 8 | BI68: 16 | BJ68: 8 | BK68: 8 | BM68: 16 | BN68: 8 | BO68: 8 | BQ68: 16 | BR68: 8 | BS68: 8 | BU68: 16 | BV68: 8 | BW68: 8 | BY68: 16 | CA68: 16 | CC68: 16 | CF68: 16 | CG68: 16 | CK68: 0 | CO68: 0 | CS68: 0 | CW68: 0 | DA68: 0 | DE68: 0 | DI68: 0 | DM68: 0 | DQ68: 0 | DU68: 0 | DY68: 0 | EC68: 0 | EG68: 0 | EK68: 0 | EO68: 0 | ES68: 0 | ET68: 40 | EU68: 56 | EV68: 16 | EW68: 112 | EX68: 2245.2 | EY68: 4401.04 | EZ68: 1614.72 | FA68: 8260.96 | FB68: 8260.96 | FC68: Yes | FD68: 0 | FE68: 0 | FF68: 0
B69: 51 | C69: Hunter Watson | D69: Truck Driver | E69: Vendor No.10 | G69: TLH-STORM-1031-SW18 | H69: 2018-10-22 | I69: 2018-10-28 | J69: =IF(AND(H69>='A - Contractor Summary'!$C$36,I69<='A - Contractor Summary'!$C$42),"Yes","No") -> No | K69: =VLOOKUP($D69,'C.1 - Rate Sheets'!B:F,2,FALSE) -> 53.22 | L69: =VLOOKUP($D69,'C.1 - Rate Sheets'!B:F,3,FALSE) -> 74.44 | M69: =VLOOKUP($D69,'C.1 - Rate Sheets'!B:F,4,FALSE) -> 92.89 | Q69: 0 | U69: 0 | Y69: 0 | AC69: 0 | AG69: 0 | AK69: 0 | AO69: 0 | AS69: 0 | AW69: 0 | BA69: 0 | BE69: 0 | BF69: 8 | BG69: 8 | BI69: 16 | BJ69: 8 | BK69: 8 | BM69: 16 | BN69: 8 | BO69: 8 | BQ69: 16 | BR69: 8 | BS69: 8 | BU69: 16 | BV69: 8 | BW69: 8 | BY69: 16 | CA69: 16 | CC69: 16 | CF69: 16 | CG69: 16 | CK69: 0 | CO69: 0 | CS69: 0 | CW69: 0 | DA69: 0 | DE69: 0 | DI69: 0 | DM69: 0 | DQ69: 0 | DU69: 0 | DY69: 0 | EC69: 0 | EG69: 0 | EK69: 0 | EO69: 0 | ES69: 0 | ET69: 40 | EU69: 56 | EV69: 16 | EW69: 112 | EX69: 2128.8 | EY69: 4168.64 | EZ69: 1486.24 | FA69: 7783.68 | FB69: 7783.68 | FC69: Yes | FD69: 0 | FE69: 0 | FF69: 0
B70: 52 | C70: Tally Chambers | D70: Foreman | E70: Vendor No.10 | G70: TLH-STORM-1031-SW18 | H70: 2018-10-22 | I70: 2018-10-28 | J70: =IF(AND(H70>='A - Contractor Summary'!$C$36,I70<='A - Contractor Summary'!$C$42),"Yes","No") -> No | K70: =VLOOKUP($D70,'C.1 - Rate Sheets'!B:F,2,FALSE) -> 92.23 | L70: =VLOOKUP($D70,'C.1 - Rate Sheets'!B:F,3,FALSE) -> 129.52 | M70: =VLOOKUP($D70,'C.1 - Rate Sheets'!B:F,4,FALSE) -> 165.02 | Q70: 0 | U70: 0 | Y70: 0 | AC70: 0 | AG70: 0 | AK70: 0 | AO70: 0 | AS70: 0 | AW70: 0 | BA70: 0 | BE70: 0 | BF70: 8 | BG70: 8 | BI70: 16 | BJ70: 8 | BK70: 8 | BM70: 16 | BN70: 8 | BO70: 8 | BQ70: 16 | BR70: 8 | BS70: 8 | BU70: 16 | BV70: 8 | BW70: 8 | BY70: 16 | CA70: 16 | CC70: 16 | CF70: 16 | CG70: 16 | CK70: 0 | CO70: 0 | CS70: 0 | CW70: 0 | DA70: 0 | DE70: 0 | DI70: 0 | DM70: 0 | DQ70: 0 | DU70: 0 | DY70: 0 | EC70: 0 | EG70: 0 | EK70: 0 | EO70: 0 | ES70: 0 | ET70: 40 | EU70: 56 | EV70: 16 | EW70: 112 | EX70: 3689.2 | EY70: 7253.12 | EZ70: 2640.32 | FA70: 13582.64 | FB70: 13582.64 | FC70: Yes | FD70: 0 | FE70: 0 | FF70: 0
B71: 53 | C71: Terrill Alston | D71: Lineman A | E71: Vendor No.10 | G71: TLH-STORM-1031-SW18 | H71: 2018-10-22 | I71: 2018-10-25 | J71: =IF(AND(H71>='A - Contractor Summary'!$C$36,I71<='A - Contractor Summary'!$C$42),"Yes","No") -> No | K71: =VLOOKUP($D71,'C.1 - Rate Sheets'!B:F,2,FALSE) -> 85.64 | L71: =VLOOKUP($D71,'C.1 - Rate Sheets'!B:F,3,FALSE) -> 119.89 | M71: =VLOOKUP($D71,'C.1 - Rate Sheets'!B:F,4,FALSE) -> 152.49 | Q71: 0 | U71: 0 | Y71: 0 | AC71: 0 | AG71: 0 | AK71: 0 | AO71: 0 | AS71: 0 | AW71: 0 | BA71: 0 | BE71: 0 | BF71: 8 | BG71: 8 | BI71: 16 | BJ71: 8 | BK71: 8 | BM71: 16 | BN71: 8 | BO71: 8 | BQ71: 16 | BR71: 10 | BS71: 6 | BU71: 16 | BY71: 0 | CC71: 0 | CG71: 0 | CK71: 0 | CO71: 0 | CS71: 0 | CW71: 0 | DA71: 0 | DE71: 0 | DI71: 0 | DM71: 0 | DQ71: 0 | DU71: 0 | DY71: 0 | EC71: 0 | EG71: 0 | EK71: 0 | EO71: 0 | ES71: 0 | ET71: 34 | EU71: 30 | EV71: 0 | EW71: 64 | EX71: 2911.76 | EY71: 3596.7 | EZ71: 0 | FA71: 6508.46 | FB71: 6508.46 | FC71: Yes | FD71: 0 | FE71: 0 | FF71: 0
B72: 54 | C72: Eli Barrington | D72: Lineman B | E72: Vendor No.10 | G72: TLH-STORM-1031-SW18 | H72: 2018-10-22 | I72: 2018-10-28 | J72: =IF(AND(H72>='A - Contractor Summary'!$C$36,I72<='A - Contractor Summary'!$C$42),"Yes","No") -> No | K72: =VLOOKUP($D72,'C.1 - Rate Sheets'!B:F,2,FALSE) -> 71.8 | L72: =VLOOKUP($D72,'C.1 - Rate Sheets'!B:F,3,FALSE) -> 104.14 | M72: =VLOOKUP($D72,'C.1 - Rate Sheets'!B:F,4,FALSE) -> 127.8 | Q72: 0 | U72: 0 | Y72: 0 | AC72: 0 | AG72: 0 | AK72: 0 | AO72: 0 | AS72: 0 | AW72: 0 | BA72: 0 | BE72: 0 | BF72: 8 | BG72: 8 | BI72: 16 | BJ72: 8 | BK72: 8 | BM72: 16 | BN72: 8 | BO72: 8 | BQ72: 16 | BR72: 8 | BS72: 8 | BU72: 16 | BV72: 8 | BW72: 8 | BY72: 16 | CA72: 16 | CC72: 16 | CF72: 16 | CG72: 16 | CK72: 0 | CO72: 0 | CS72: 0 | CW72: 0 | DA72: 0 | DE72: 0 | DI72: 0 | DM72: 0 | DQ72: 0 | DU72: 0 | DY72: 0 | EC72: 0 | EG72: 0 | EK72: 0 | EO72: 0 | ES72: 0 | ET72: 40 | EU72: 56 | EV72: 16 | EW72: 112 | EX72: 2872 | EY72: 5831.84 | EZ72: 2044.8 | FA72: 10748.64 | FB72: 10748.64 | FC72: Yes | FD72: 0 | FE72: 0 | FF72: 0
B73: 55 | C73: Dilton Moore | D73: Operator | E73: Vendor No.10 | G73: TLH-STORM-1031-SW18 | H73: 2018-10-22 | I73: 2018-10-28 | J73: =IF(AND(H73>='A - Contractor Summary'!$C$36,I73<='A - Contractor Summary'!$C$42),"Yes","No") -> No | K73: =VLOOKUP($D73,'C.1 - Rate Sheets'!B:F,2,FALSE) -> 56.13 | L73: =VLOOKUP($D73,'C.1 - Rate Sheets'!B:F,3,FALSE) -> 78.59 | M73: =VLOOKUP($D73,'C.1 - Rate Sheets'!B:F,4,FALSE) -> 100.92 | Q73: 0 | U73: 0 | Y73: 0 | AC73: 0 | AG73: 0 | AK73: 0 | AO73: 0 | AS73: 0 | AW73: 0 | BA73: 0 | BE73: 0 | BF73: 8 | BG73: 8 | BI73: 16 | BJ73: 8 | BK73: 8 | BM73: 16 | BN73: 8 | BO73: 8 | BQ73: 16 | BR73: 8 | BS73: 8 | BU73: 16 | BV73: 8 | BW73: 8 | BY73: 16 | CA73: 16 | CC73: 16 | CF73: 16 | CG73: 16 | CK73: 0 | CO73: 0 | CS73: 0 | CW73: 0 | DA73: 0 | DE73: 0 | DI73: 0 | DM73: 0 | DQ73: 0 | DU73: 0 | DY73: 0 | EC73: 0 | EG73: 0 | EK73: 0 | EO73: 0 | ES73: 0 | ET73: 40 | EU73: 56 | EV73: 16 | EW73: 112 | EX73: 2245.2 | EY73: 4401.04 | EZ73: 1614.72 | FA73: 8260.96 | FB73: 8260.96 | FC73: Yes | FD73: 0 | FE73: 0 | FF73: 0
B74: 56 | C74: Rory Martin | D74: Truck Driver | E74: Vendor No.10 | G74: TLH-STORM-1031-SW18 | H74: 2018-10-22 | I74: 2018-10-28 | J74: =IF(AND(H74>='A - Contractor Summary'!$C$36,I74<='A - Contractor Summary'!$C$42),"Yes","No") -> No | K74: =VLOOKUP($D74,'C.1 - Rate Sheets'!B:F,2,FALSE) -> 53.22 | L74: =VLOOKUP($D74,'C.1 - Rate Sheets'!B:F,3,FALSE) -> 74.44 | M74: =VLOOKUP($D74,'C.1 - Rate Sheets'!B:F,4,FALSE) -> 92.89 | Q74: 0 | U74: 0 | Y74: 0 | AC74: 0 | AG74: 0 | AK74: 0 | AO74: 0 | AS74: 0 | AW74: 0 | BA74: 0 | BE74: 0 | BF74: 8 | BG74: 8 | BI74: 16 | BJ74: 8 | BK74: 8 | BM74: 16 | BN74: 8 | BO74: 8 | BQ74: 16 | BR74: 8 | BS74: 8 | BU74: 16 | BV74: 8 | BW74: 8 | BY74: 16 | CC74: 0 | CG74: 0 | CK74: 0 | CO74: 0 | CS74: 0 | CW74: 0 | DA74: 0 | DE74: 0 | DI74: 0 | DM74: 0 | DQ74: 0 | DU74: 0 | DY74: 0 | EC74: 0 | EG74: 0 | EK74: 0 | EO74: 0 | ES74: 0 | ET74: 40 | EU74: 40 | EV74: 0 | EW74: 80 | EX74: 2128.8 | EY74: 2977.6 | EZ74: 0 | FA74: 5106.4 | FB74: 5106.4 | FC74: Yes | FD74: 0 | FE74: 0 | FF74: 0
B75: 57 | C75: Davion Mines | D75: Truck Driver | E75: Vendor No.10 | G75: TLH-STORM-1031-SW18 | H75: 2018-10-22 | I75: 2018-10-25 | J75: =IF(AND(H75>='A - Contractor Summary'!$C$36,I75<='A - Contractor Summary'!$C$42),"Yes","No") -> No | K75: =VLOOKUP($D75,'C.1 - Rate Sheets'!B:F,2,FALSE) -> 53.22 | L75: =VLOOKUP($D75,'C.1 - Rate Sheets'!B:F,3,FALSE) -> 74.44 | M75: =VLOOKUP($D75,'C.1 - Rate Sheets'!B:F,4,FALSE) -> 92.89 | Q75: 0 | U75: 0 | Y75: 0 | AC75: 0 | AG75: 0 | AK75: 0 | AO75: 0 | AS75: 0 | AW75: 0 | BA75: 0 | BE75: 0 | BF75: 8 | BG75: 8 | BI75: 16 | BJ75: 8 | BK75: 8 | BM75: 16 | BN75: 8 | BO75: 8 | BQ75: 16 | BR75: 10 | BS75: 6 | BU75: 16 | BY75: 0 | CC75: 0 | CG75: 0 | CK75: 0 | CO75: 0 | CS75: 0 | CW75: 0 | DA75: 0 | DE75: 0 | DI75: 0 | DM75: 0 | DQ75: 0 | DU75: 0 | DY75: 0 | EC75: 0 | EG75: 0 | EK75: 0 | EO75: 0 | ES75: 0 | ET75: 34 | EU75: 30 | EV75: 0 | EW75: 64 | EX75: 1809.48 | EY75: 2233.2 | EZ75: 0 | FA75: 4042.68 | FB75: 4042.68 | FC75: Yes | FD75: 0 | FE75: 0 | FF75: 0
B76: 58 | C76: James Reynolds | D76: Lineman A | E76: Vendor No.10 | G76: TLH-STORM-1031-SW18 | H76: 2018-10-22 | I76: 2018-10-25 | J76: =IF(AND(H76>='A - Contractor Summary'!$C$36,I76<='A - Contractor Summary'!$C$42),"Yes","No") -> No | K76: =VLOOKUP($D76,'C.1 - Rate Sheets'!B:F,2,FALSE) -> 85.64 | L76: =VLOOKUP($D76,'C.1 - Rate Sheets'!B:F,3,FALSE) -> 119.89 | M76: =VLOOKUP($D76,'C.1 - Rate Sheets'!B:F,4,FALSE) -> 152.49 | Q76: 0 | U76: 0 | Y76: 0 | AC76: 0 | AG76: 0 | AK76: 0 | AO76: 0 | AS76: 0 | AW76: 0 | BA76: 0 | BE76: 0 | BI76: 0 | BM76: 0 | BQ76: 0 | BU76: 0 | BW76: 7.5 | BY76: 7.5 | CA76: 16 | CC76: 16 | CF76: 16 | CG76: 16 | CK76: 0 | CO76: 0 | CS76: 0 | CW76: 0 | DA76: 0 | DE76: 0 | DI76: 0 | DM76: 0 | DQ76: 0 | DU76: 0 | DY76: 0 | EC76: 0 | EG76: 0 | EK76: 0 | EO76: 0 | ES76: 0 | ET76: 0 | EU76: 23.5 | EV76: 16 | EW76: 39.5 | EX76: 0 | EY76: 2817.415 | EZ76: 2439.84 | FA76: 5257.255 | FB76: 5257.255 | FC76: Yes | FD76: 0 | FE76: 0 | FF76: 0
B77: 59 | C77: Chris Melvin | D77: Foreman | E77: Vendor No.10 | G77: TLH-STORM-1031-SW18 | H77: 2018-10-29 | I77: 2018-10-30 | J77: =IF(AND(H77>='A - Contractor Summary'!$C$36,I77<='A - Contractor Summary'!$C$42),"Yes","No") -> No | K77: =VLOOKUP($D77,'C.1 - Rate Sheets'!B:F,2,FALSE) -> 92.23 | L77: =VLOOKUP($D77,'C.1 - Rate Sheets'!B:F,3,FALSE) -> 129.52 | M77: =VLOOKUP($D77,'C.1 - Rate Sheets'!B:F,4,FALSE) -> 165.02 | Q77: 0 | U77: 0 | Y77: 0 | AC77: 0 | AG77: 0 | AK77: 0 | AO77: 0 | AS77: 0 | AW77: 0 | BA77: 0 | BE77: 0 | BI77: 0 | BM77: 0 | BQ77: 0 | BU77: 0 | BY77: 0 | CC77: 0 | CG77: 0 | CH77: 8.5 | CI77: 7.5 | CK77: 16 | CL77: 8.5 | CM77: 7.5 | CO77: 16 | CS77: 0 | CW77: 0 | DA77: 0 | DE77: 0 | DI77: 0 | DM77: 0 | DQ77: 0 | DU77: 0 | DY77: 0 | EC77: 0 | EG77: 0 | EK77: 0 | EO77: 0 | ES77: 0 | ET77: 17 | EU77: 15 | EV77: 0 | EW77: 32 | EX77: 1567.91 | EY77: 1942.8 | EZ77: 0 | FA77: 3510.71 | FB77: 3510.71 | FC77: Yes | FD77: 0 | FE77: 0 | FF77: 0
B78: 60 | C78: Jeremy Hortan | D78: Lineman A | E78: Vendor No.10 | G78: TLH-STORM-1031-SW18 | H78: 2018-10-29 | I78: 2018-10-30 | J78: =IF(AND(H78>='A - Contractor Summary'!$C$36,I78<='A - Contractor Summary'!$C$42),"Yes","No") -> No | K78: =VLOOKUP($D78,'C.1 - Rate Sheets'!B:F,2,FALSE) -> 85.64 | L78: =VLOOKUP($D78,'C.1 - Rate Sheets'!B:F,3,FALSE) -> 119.89 | M78: =VLOOKUP($D78,'C.1 - Rate Sheets'!B:F,4,FALSE) -> 152.49 | Q78: 0 | U78: 0 | Y78: 0 | AC78: 0 | AG78: 0 | AK78: 0 | AO78: 0 | AS78: 0 | AW78: 0 | BA78: 0 | BE78: 0 | BI78: 0 | BM78: 0 | BQ78: 0 | BU78: 0 | BY78: 0 | CC78: 0 | CG78: 0 | CH78: 8.5 | CI78: 7.5 | CK78: 16 | CL78: 8.5 | CM78: 7.5 | CO78: 16 | CS78: 0 | CW78: 0 | DA78: 0 | DE78: 0 | DI78: 0 | DM78: 0 | DQ78: 0 | DU78: 0 | DY78: 0 | EC78: 0 | EG78: 0 | EK78: 0 | EO78: 0 | ES78: 0 | ET78: 17 | EU78: 15 | EV78: 0 | EW78: 32 | EX78: 1455.88 | EY78: 1798.35 | EZ78: 0 | FA78: 3254.23 | FB78: 3254.23 | FC78: Yes | FD78: 0 | FE78: 0 | FF78: 0
B79: 61 | C79: Kaleb Champion | D79: Lineman B | E79: Vendor No.10 | G79: TLH-STORM-1031-SW18 | H79: 2018-10-29 | I79: 2018-10-30 | J79: =IF(AND(H79>='A - Contractor Summary'!$C$36,I79<='A - Contractor Summary'!$C$42),"Yes","No") -> No | K79: =VLOOKUP($D79,'C.1 - Rate Sheets'!B:F,2,FALSE) -> 71.8 | L79: =VLOOKUP($D79,'C.1 - Rate Sheets'!B:F,3,FALSE) -> 104.14 | M79: =VLOOKUP($D79,'C.1 - Rate Sheets'!B:F,4,FALSE) -> 127.8 | Q79: 0 | U79: 0 | Y79: 0 | AC79: 0 | AG79: 0 | AK79: 0 | AO79: 0 | AS79: 0 | AW79: 0 | BA79: 0 | BE79: 0 | BI79: 0 | BM79: 0 | BQ79: 0 | BU79: 0 | BY79: 0 | CC79: 0 | CG79: 0 | CH79: 8.5 | CI79: 7.5 | CK79: 16 | CL79: 8.5 | CM79: 7.5 | CO79: 16 | CS79: 0 | CW79: 0 | DA79: 0 | DE79: 0 | DI79: 0 | DM79: 0 | DQ79: 0 | DU79: 0 | DY79: 0 | EC79: 0 | EG79: 0 | EK79: 0 | EO79: 0 | ES79: 0 | ET79: 17 | EU79: 15 | EV79: 0 | EW79: 32 | EX79: 1220.6 | EY79: 1562.1 | EZ79: 0 | FA79: 2782.7 | FB79: 2782.7 | FC79: Yes | FD79: 0 | FE79: 0 | FF79: 0
B80: 62 | C80: Tristan Rudd | D80: Apprentice | E80: Vendor No.10 | G80: TLH-STORM-1031-SW18 | H80: 2018-10-29 | I80: 2018-10-30 | J80: =IF(AND(H80>='A - Contractor Summary'!$C$36,I80<='A - Contractor Summary'!$C$42),"Yes","No") -> No | K80: =VLOOKUP($D80,'C.1 - Rate Sheets'!B:F,2,FALSE) -> 60.26 | L80: =VLOOKUP($D80,'C.1 - Rate Sheets'!B:F,3,FALSE) -> 84.98 | M80: =VLOOKUP($D80,'C.1 - Rate Sheets'!B:F,4,FALSE) -> 110.01 | Q80: 0 | U80: 0 | Y80: 0 | AC80: 0 | AG80: 0 | AK80: 0 | AO80: 0 | AS80: 0 | AW80: 0 | BA80: 0 | BE80: 0 | BI80: 0 | BM80: 0 | BQ80: 0 | BU80: 0 | BY80: 0 | CC80: 0 | CG80: 0 | CH80: 8.5 | CI80: 7.5 | CK80: 16 | CL80: 8.5 | CM80: 7.5 | CO80: 16 | CS80: 0 | CW80: 0 | DA80: 0 | DE80: 0 | DI80: 0 | DM80: 0 | DQ80: 0 | DU80: 0 | DY80: 0 | EC80: 0 | EG80: 0 | EK80: 0 | EO80: 0 | ES80: 0 | ET80: 17 | EU80: 15 | EV80: 0 | EW80: 32 | EX80: 1024.42 | EY80: 1274.7 | EZ80: 0 | FA80: 2299.12 | FB80: 2299.12 | FC80: Yes | FD80: 0 | FE80: 0 | FF80: 0
B81: 63 | C81: Chris Boobyer | D81: Operator | E81: Vendor No.10 | G81: TLH-STORM-1031-SW18 | H81: 2018-10-29 | I81: 2018-10-30 | J81: =IF(AND(H81>='A - Contractor Summary'!$C$36,I81<='A - Contractor Summary'!$C$42),"Yes","No") -> No | K81: =VLOOKUP($D81,'C.1 - Rate Sheets'!B:F,2,FALSE) -> 56.13 | L81: =VLOOKUP($D81,'C.1 - Rate Sheets'!B:F,3,FALSE) -> 78.59 | M81: =VLOOKUP($D81,'C.1 - Rate Sheets'!B:F,4,FALSE) -> 100.92 | Q81: 0 | U81: 0 | Y81: 0 | AC81: 0 | AG81: 0 | AK81: 0 | AO81: 0 | AS81: 0 | AW81: 0 | BA81: 0 | BE81: 0 | BI81: 0 | BM81: 0 | BQ81: 0 | BU81: 0 | BY81: 0 | CC81: 0 | CG81: 0 | CH81: 8.5 | CI81: 7.5 | CK81: 16 | CL81: 8.5 | CM81: 7.5 | CO81: 16 | CS81: 0 | CW81: 0 | DA81: 0 | DE81: 0 | DI81: 0 | DM81: 0 | DQ81: 0 | DU81: 0 | DY81: 0 | EC81: 0 | EG81: 0 | EK81: 0 | EO81: 0 | ES81: 0 | ET81: 17 | EU81: 15 | EV81: 0 | EW81: 32 | EX81: 954.21 | EY81: 1178.85 | EZ81: 0 | FA81: 2133.06 | FB81: 2133.06 | FC81: Yes | FD81: 0 | FE81: 0 | FF81: 0
B82: 64 | C82: Jonathan Melvin | D82: Truck Driver | E82: Vendor No.10 | G82: TLH-STORM-1031-SW18 | H82: 2018-10-29 | I82: 2018-10-30 | J82: =IF(AND(H82>='A - Contractor Summary'!$C$36,I82<='A - Contractor Summary'!$C$42),"Yes","No") -> No | K82: =VLOOKUP($D82,'C.1 - Rate Sheets'!B:F,2,FALSE) -> 53.22 | L82: =VLOOKUP($D82,'C.1 - Rate Sheets'!B:F,3,FALSE) -> 74.44 | M82: =VLOOKUP($D82,'C.1 - Rate Sheets'!B:F,4,FALSE) -> 92.89 | Q82: 0 | U82: 0 | Y82: 0 | AC82: 0 | AG82: 0 | AK82: 0 | AO82: 0 | AS82: 0 | AW82: 0 | BA82: 0 | BE82: 0 | BI82: 0 | BM82: 0 | BQ82: 0 | BU82: 0 | BY82: 0 | CC82: 0 | CG82: 0 | CH82: 8.5 | CI82: 7.5 | CK82: 16 | CL82: 8.5 | CM82: 7.5 | CO82: 16 | CS82: 0 | CW82: 0 | DA82: 0 | DE82: 0 | DI82: 0 | DM82: 0 | DQ82: 0 | DU82: 0 | DY82: 0 | EC82: 0 | EG82: 0 | EK82: 0 | EO82: 0 | ES82: 0 | ET82: 17 | EU82: 15 | EV82: 0 | EW82: 32 | EX82: 904.74 | EY82: 1116.6 | EZ82: 0 | FA82: 2021.34 | FB82: 2021.34 | FC82: Yes | FD82: 0 | FE82: 0 | FF82: 0
B83: 65 | C83: Michael Thompson | D83: General Foreman | E83: Vendor No.10 | G83: TLH-STORM-1031-SW18 | H83: 2018-10-29 | I83: 2018-10-31 | J83: =IF(AND(H83>='A - Contractor Summary'!$C$36,I83<='A - Contractor Summary'!$C$42),"Yes","No") -> No | K83: =VLOOKUP($D83,'C.1 - Rate Sheets'!B:F,2,FALSE) -> 112.11 | L83: =VLOOKUP($D83,'C.1 - Rate Sheets'!B:F,3,FALSE) -> 156.96 | M83: =VLOOKUP($D83,'C.1 - Rate Sheets'!B:F,4,FALSE) -> 199.98 | Q83: 0 | U83: 0 | Y83: 0 | AC83: 0 | AG83: 0 | AK83: 0 | AO83: 0 | AS83: 0 | AW83: 0 | BA83: 0 | BE83: 0 | BI83: 0 | BM83: 0 | BQ83: 0 | BU83: 0 | BY83: 0 | CC83: 0 | CG83: 0 | CH83: 8.5 | CI83: 7.5 | CK83: 16 | CL83: 8.5 | CM83: 7.5 | CO83: 16 | CP83: 8.5 | CQ83: 3.5 | CS83: 12 | CW83: 0 | DA83: 0 | DE83: 0 | DI83: 0 | DM83: 0 | DQ83: 0 | DU83: 0 | DY83: 0 | EC83: 0 | EG83: 0 | EK83: 0 | EO83: 0 | ES83: 0 | ET83: =SUM(N83,R83,V83,Z83,AD83,AH83,AL83,AP83,AT83,AX83,BB83,BF83,BJ83,BN83,BR83,BV83,BZ83,CD83,CH83,CL83,CP83,CT83) -> 25.5 | EU83: =SUM(O83,S83,W83,AA83,AE83,AI83,AM83,AQ83,AU83,AY83,BC83,BG83,BK83,BO83,BS83,BW83,CA83,CE83,CI83,CM83,CQ83,CU83) -> 18.5 | EV83: =SUM(P83,T83,X83,AB83,AF83,AJ83,AN83,AR83,AV83,AZ83,BD83,BH83,BL83,BP83,BT83,BX83,CB83,CF83,CJ83,CN83,CR83,CV83) -> 0 | EW83: 44 | EX83: =ET83*K83 -> 2858.805 | EY83: =EU83*L83 -> 2903.76 | EZ83: =EV83*M83 -> 0 | FA83: 5762.565 | FB83: 5762.565 | FC83: Yes | FD83: 0 | FE83: 0 | FF83: 0
B84: 66 | C84: Kamryn McMullen | D84: Foreman | E84: Vendor No.10 | G84: TLH-STORM-1031-SW18 | H84: 2018-10-29 | I84: 2018-10-31 | J84: =IF(AND(H84>='A - Contractor Summary'!$C$36,I84<='A - Contractor Summary'!$C$42),"Yes","No") -> No | K84: =VLOOKUP($D84,'C.1 - Rate Sheets'!B:F,2,FALSE) -> 92.23 | L84: =VLOOKUP($D84,'C.1 - Rate Sheets'!B:F,3,FALSE) -> 129.52 | M84: =VLOOKUP($D84,'C.1 - Rate Sheets'!B:F,4,FALSE) -> 165.02 | Q84: 0 | U84: 0 | Y84: 0 | AC84: 0 | AG84: 0 | AK84: 0 | AO84: 0 | AS84: 0 | AW84: 0 | BA84: 0 | BE84: 0 | BI84: 0 | BM84: 0 | BQ84: 0 | BU84: 0 | BY84: 0 | CC84: 0 | CG84: 0 | CH84: 8.5 | CI84: 7.5 | CK84: 16 | CL84: 8.5 | CM84: 7.5 | CO84: 16 | CP84: 8.5 | CQ84: 3.5 | CS84: 12 | CW84: 0 | DA84: 0 | DE84: 0 | DI84: 0 | DM84: 0 | DQ84: 0 | DU84: 0 | DY84: 0 | EC84: 0 | EG84: 0 | EK84: 0 | EO84: 0 | ES84: 0 | ET84: 25.5 | EU84: 18.5 | EV84: 0 | EW84: 44 | EX84: 2351.865 | EY84: 2396.12 | EZ84: 0 | FA84: 4747.985 | FB84: 4747.985 | FC84: Yes | FD84: 0 | FE84: 0 | FF84: 0
B85: 67 | C85: Joseph Thompson | D85: Lineman B | E85: Vendor No.10 | G85: TLH-STORM-1031-SW18 | H85: 2018-10-29 | I85: 2018-10-31 | J85: =IF(AND(H85>='A - Contractor Summary'!$C$36,I85<='A - Contractor Summary'!$C$42),"Yes","No") -> No | K85: =VLOOKUP($D85,'C.1 - Rate Sheets'!B:F,2,FALSE) -> 71.8 | L85: =VLOOKUP($D85,'C.1 - Rate Sheets'!B:F,3,FALSE) -> 104.14 | M85: =VLOOKUP($D85,'C.1 - Rate Sheets'!B:F,4,FALSE) -> 127.8 | Q85: 0 | U85: 0 | Y85: 0 | AC85: 0 | AG85: 0 | AK85: 0 | AO85: 0 | AS85: 0 | AW85: 0 | BA85: 0 | BE85: 0 | BI85: 0 | BM85: 0 | BQ85: 0 | BU85: 0 | BY85: 0 | CC85: 0 | CG85: 0 | CH85: 8.5 | CI85: 7.5 | CK85: 16 | CL85: 8.5 | CM85: 7.5 | CO85: 16 | CP85: 8.5 | CQ85: 3.5 | CS85: 12 | CW85: 0 | DA85: 0 | DE85: 0 | DI85: 0 | DM85: 0 | DQ85: 0 | DU85: 0 | DY85: 0 | EC85: 0 | EG85: 0 | EK85: 0 | EO85: 0 | ES85: 0 | ET85: 25.5 | EU85: 18.5 | EV85: 0 | EW85: 44 | EX85: 1830.9 | EY85: 1926.59 | EZ85: 0 | FA85: 3757.49 | FB85: 3757.49 | FC85: Yes | FD85: 0 | FE85: 0 | FF85: 0
B86: 68 | C86: Mike Stonesifer | D86: Lineman B | E86: Vendor No.10 | G86: TLH-STORM-1031-SW18 | H86: 2018-10-29 | I86: 2018-10-31 | J86: =IF(AND(H86>='A - Contractor Summary'!$C$36,I86<='A - Contractor Summary'!$C$42),"Yes","No") -> No | K86: =VLOOKUP($D86,'C.1 - Rate Sheets'!B:F,2,FALSE) -> 71.8 | L86: =VLOOKUP($D86,'C.1 - Rate Sheets'!B:F,3,FALSE) -> 104.14 | M86: =VLOOKUP($D86,'C.1 - Rate Sheets'!B:F,4,FALSE) -> 127.8 | Q86: 0 | U86: 0 | Y86: 0 | AC86: 0 | AG86: 0 | AK86: 0 | AO86: 0 | AS86: 0 | AW86: 0 | BA86: 0 | BE86: 0 | BI86: 0 | BM86: 0 | BQ86: 0 | BU86: 0 | BY86: 0 | CC86: 0 | CG86: 0 | CH86: 8.5 | CI86: 7.5 | CK86: 16 | CL86: 8.5 | CM86: 7.5 | CO86: 16 | CP86: 8.5 | CQ86: 3.5 | CS86: 12 | CW86: 0 | DA86: 0 | DE86: 0 | DI86: 0 | DM86: 0 | DQ86: 0 | DU86: 0 | DY86: 0 | EC86: 0 | EG86: 0 | EK86: 0 | EO86: 0 | ES86: 0 | ET86: 25.5 | EU86: 18.5 | EV86: 0 | EW86: 44 | EX86: 1830.9 | EY86: 1926.59 | EZ86: 0 | FA86: 3757.49 | FB86: 3757.49 | FC86: Yes | FD86: 0 | FE86: 0 | FF86: 0
B87: 69 | C87: Jeffrery Graves | D87: Operator | E87: Vendor No.10 | G87: TLH-STORM-1031-SW18 | H87: 2018-10-29 | I87: 2018-10-31 | J87: =IF(AND(H87>='A - Contractor Summary'!$C$36,I87<='A - Contractor Summary'!$C$42),"Yes","No") -> No | K87: =VLOOKUP($D87,'C.1 - Rate Sheets'!B:F,2,FALSE) -> 56.13 | L87: =VLOOKUP($D87,'C.1 - Rate Sheets'!B:F,3,FALSE) -> 78.59 | M87: =VLOOKUP($D87,'C.1 - Rate Sheets'!B:F,4,FALSE) -> 100.92 | Q87: 0 | U87: 0 | Y87: 0 | AC87: 0 | AG87: 0 | AK87: 0 | AO87: 0 | AS87: 0 | AW87: 0 | BA87: 0 | BE87: 0 | BI87: 0 | BM87: 0 | BQ87: 0 | BU87: 0 | BY87: 0 | CC87: 0 | CG87: 0 | CH87: 8.5 | CI87: 7.5 | CK87: 16 | CL87: 8.5 | CM87: 7.5 | CO87: 16 | CP87: 8.5 | CQ87: 3.5 | CS87: 12 | CW87: 0 | DA87: 0 | DE87: 0 | DI87: 0 | DM87: 0 | DQ87: 0 | DU87: 0 | DY87: 0 | EC87: 0 | EG87: 0 | EK87: 0 | EO87: 0 | ES87: 0 | ET87: 25.5 | EU87: 18.5 | EV87: 0 | EW87: 44 | EX87: 1431.315 | EY87: 1453.915 | EZ87: 0 | FA87: 2885.23 | FB87: 2885.23 | FC87: Yes | FD87: 0 | FE87: 0 | FF87: 0
B88: 70 | C88: Torrence Stephenson | D88: Truck Driver | E88: Vendor No.10 | G88: TLH-STORM-1031-SW18 | H88: 2018-10-29 | I88: 2018-10-31 | J88: =IF(AND(H88>='A - Contractor Summary'!$C$36,I88<='A - Contractor Summary'!$C$42),"Yes","No") -> No | K88: =VLOOKUP($D88,'C.1 - Rate Sheets'!B:F,2,FALSE) -> 53.22 | L88: =VLOOKUP($D88,'C.1 - Rate Sheets'!B:F,3,FALSE) -> 74.44 | M88: =VLOOKUP($D88,'C.1 - Rate Sheets'!B:F,4,FALSE) -> 92.89 | Q88: 0 | U88: 0 | Y88: 0 | AC88: 0 | AG88: 0 | AK88: 0 | AO88: 0 | AS88: 0 | AW88: 0 | BA88: 0 | BE88: 0 | BI88: 0 | BM88: 0 | BQ88: 0 | BU88: 0 | BY88: 0 | CC88: 0 | CG88: 0 | CH88: 8.5 | CK88: 8.5 | CL88: 8.5 | CO88: 8.5 | CP88: 8.5 | CS88: 8.5 | CW88: 0 | DA88: 0 | DE88: 0 | DI88: 0 | DM88: 0 | DQ88: 0 | DU88: 0 | DY88: 0 | EC88: 0 | EG88: 0 | EK88: 0 | EO88: 0 | ES88: 0 | ET88: 25.5 | EU88: 0 | EV88: 0 | EW88: 25.5 | EX88: 1357.11 | EY88: 0 | EZ88: 0 | FA88: 1357.11 | FB88: 1357.11 | FC88: Yes | FD88: 0 | FE88: 0 | FF88: 0
B89: 71 | C89: Tyler Padgett | D89: Truck Driver | E89: Vendor No.10 | G89: TLH-STORM-1031-SW18 | H89: 2018-10-29 | I89: 2018-10-31 | J89: =IF(AND(H89>='A - Contractor Summary'!$C$36,I89<='A - Contractor Summary'!$C$42),"Yes","No") -> No | K89: =VLOOKUP($D89,'C.1 - Rate Sheets'!B:F,2,FALSE) -> 53.22 | L89: =VLOOKUP($D89,'C.1 - Rate Sheets'!B:F,3,FALSE) -> 74.44 | M89: =VLOOKUP($D89,'C.1 - Rate Sheets'!B:F,4,FALSE) -> 92.89 | Q89: 0 | U89: 0 | Y89: 0 | AC89: 0 | AG89: 0 | AK89: 0 | AO89: 0 | AS89: 0 | AW89: 0 | BA89: 0 | BE89: 0 | BI89: 0 | BM89: 0 | BQ89: 0 | BU89: 0 | BY89: 0 | CC89: 0 | CG89: 0 | CH89: 8.5 | CK89: 8.5 | CL89: 8.5 | CO89: 8.5 | CP89: 8.5 | CS89: 8.5 | CW89: 0 | DA89: 0 | DE89: 0 | DI89: 0 | DM89: 0 | DQ89: 0 | DU89: 0 | DY89: 0 | EC89: 0 | EG89: 0 | EK89: 0 | EO89: 0 | ES89: 0 | ET89: 25.5 | EU89: 0 | EV89: 0 | EW89: 25.5 | EX89: 1357.11 | EY89: 0 | EZ89: 0 | FA89: 1357.11 | FB89: 1357.11 | FC89: Yes | FD89: 0 | FE89: 0 | FF89: 0
B90: 72 | C90: Thomas Bryant | D90: Foreman | E90: Vendor No.10 | G90: TLH-STORM-1031-SW18 | H90: 2018-10-29 | I90: 2018-10-31 | J90: =IF(AND(H90>='A - Contractor Summary'!$C$36,I90<='A - Contractor Summary'!$C$42),"Yes","No") -> No | K90: =VLOOKUP($D90,'C.1 - Rate Sheets'!B:F,2,FALSE) -> 92.23 | L90: =VLOOKUP($D90,'C.1 - Rate Sheets'!B:F,3,FALSE) -> 129.52 | M90: =VLOOKUP($D90,'C.1 - Rate Sheets'!B:F,4,FALSE) -> 165.02 | Q90: 0 | U90: 0 | Y90: 0 | AC90: 0 | AG90: 0 | AK90: 0 | AO90: 0 | AS90: 0 | AW90: 0 | BA90: 0 | BE90: 0 | BI90: 0 | BM90: 0 | BQ90: 0 | BU90: 0 | BY90: 0 | CC90: 0 | CG90: 0 | CH90: 8.5 | CI90: 7.5 | CK90: 16 | CL90: 8.5 | CM90: 7.5 | CO90: 16 | CP90: 8.5 | CQ90: 3.5 | CS90: 12 | CW90: 0 | DA90: 0 | DE90: 0 | DI90: 0 | DM90: 0 | DQ90: 0 | DU90: 0 | DY90: 0 | EC90: 0 | EG90: 0 | EK90: 0 | EO90: 0 | ES90: 0 | ET90: 25.5 | EU90: 18.5 | EV90: 0 | EW90: 44 | EX90: 2351.865 | EY90: 2396.12 | EZ90: 0 | FA90: 4747.985 | FB90: 4747.985 | FC90: Yes | FD90: 0 | FE90: 0 | FF90: 0
B91: 73 | C91: Mikel Lloyd | D91: Lineman B | E91: Vendor No.10 | G91: TLH-STORM-1031-SW18 | H91: 2018-10-29 | I91: 2018-10-31 | J91: =IF(AND(H91>='A - Contractor Summary'!$C$36,I91<='A - Contractor Summary'!$C$42),"Yes","No") -> No | K91: =VLOOKUP($D91,'C.1 - Rate Sheets'!B:F,2,FALSE) -> 71.8 | L91: =VLOOKUP($D91,'C.1 - Rate Sheets'!B:F,3,FALSE) -> 104.14 | M91: =VLOOKUP($D91,'C.1 - Rate Sheets'!B:F,4,FALSE) -> 127.8 | Q91: 0 | U91: 0 | Y91: 0 | AC91: 0 | AG91: 0 | AK91: 0 | AO91: 0 | AS91: 0 | AW91: 0 | BA91: 0 | BE91: 0 | BI91: 0 | BM91: 0 | BQ91: 0 | BU91: 0 | BY91: 0 | CC91: 0 | CG91: 0 | CH91: 8.5 | CI91: 7.5 | CK91: 16 | CL91: 8.5 | CM91: 7.5 | CO91: 16 | CP91: 8.5 | CQ91: 3.5 | CS91: 12 | CW91: 0 | DA91: 0 | DE91: 0 | DI91: 0 | DM91: 0 | DQ91: 0 | DU91: 0 | DY91: 0 | EC91: 0 | EG91: 0 | EK91: 0 | EO91: 0 | ES91: 0 | ET91: 25.5 | EU91: 18.5 | EV91: 0 | EW91: 44 | EX91: 1830.9 | EY91: 1926.59 | EZ91: 0 | FA91: 3757.49 | FB91: 3757.49 | FC91: Yes | FD91: 0 | FE91: 0 | FF91: 0
B92: 74 | C92: Darion Lewis | D92: Lineman B | E92: Vendor No.10 | G92: TLH-STORM-1031-SW18 | H92: 2018-10-29 | I92: 2018-10-31 | J92: =IF(AND(H92>='A - Contractor Summary'!$C$36,I92<='A - Contractor Summary'!$C$42),"Yes","No") -> No | K92: =VLOOKUP($D92,'C.1 - Rate Sheets'!B:F,2,FALSE) -> 71.8 | L92: =VLOOKUP($D92,'C.1 - Rate Sheets'!B:F,3,FALSE) -> 104.14 | M92: =VLOOKUP($D92,'C.1 - Rate Sheets'!B:F,4,FALSE) -> 127.8 | Q92: 0 | U92: 0 | Y92: 0 | AC92: 0 | AG92: 0 | AK92: 0 | AO92: 0 | AS92: 0 | AW92: 0 | BA92: 0 | BE92: 0 | BI92: 0 | BM92: 0 | BQ92: 0 | BU92: 0 | BY92: 0 | CC92: 0 | CG92: 0 | CH92: 8.5 | CI92: 7.5 | CK92: 16 | CL92: 8.5 | CM92: 7.5 | CO92: 16 | CP92: 8.5 | CQ92: 3.5 | CS92: 12 | CW92: 0 | DA92: 0 | DE92: 0 | DI92: 0 | DM92: 0 | DQ92: 0 | DU92: 0 | DY92: 0 | EC92: 0 | EG92: 0 | EK92: 0 | EO92: 0 | ES92: 0 | ET92: 25.5 | EU92: 18.5 | EV92: 0 | EW92: 44 | EX92: 1830.9 | EY92: 1926.59 | EZ92: 0 | FA92: 3757.49 | FB92: 3757.49 | FC92: Yes | FD92: 0 | FE92: 0 | FF92: 0
B93: 75 | C93: Aaron Coleman | D93: Lineman C | E93: Vendor No.10 | G93: TLH-STORM-1031-SW18 | H93: 2018-10-29 | I93: 2018-10-31 | J93: =IF(AND(H93>='A - Contractor Summary'!$C$36,I93<='A - Contractor Summary'!$C$42),"Yes","No") -> No | K93: =VLOOKUP($D93,'C.1 - Rate Sheets'!B:F,2,FALSE) -> 64.56 | L93: =VLOOKUP($D93,'C.1 - Rate Sheets'!B:F,3,FALSE) -> 93.67 | M93: =VLOOKUP($D93,'C.1 - Rate Sheets'!B:F,4,FALSE) -> 115.28 | Q93: 0 | U93: 0 | Y93: 0 | AC93: 0 | AG93: 0 | AK93: 0 | AO93: 0 | AS93: 0 | AW93: 0 | BA93: 0 | BE93: 0 | BI93: 0 | BM93: 0 | BQ93: 0 | BU93: 0 | BY93: 0 | CC93: 0 | CG93: 0 | CH93: 8.5 | CI93: 7.5 | CK93: 16 | CL93: 8.5 | CM93: 7.5 | CO93: 16 | CP93: 8.5 | CQ93: 3.5 | CS93: 12 | CW93: 0 | DA93: 0 | DE93: 0 | DI93: 0 | DM93: 0 | DQ93: 0 | DU93: 0 | DY93: 0 | EC93: 0 | EG93: 0 | EK93: 0 | EO93: 0 | ES93: 0 | ET93: 25.5 | EU93: 18.5 | EV93: 0 | EW93: 44 | EX93: 1646.28 | EY93: 1732.895 | EZ93: 0 | FA93: 3379.175 | FB93: 3379.175 | FC93: Yes | FD93: 0 | FE93: 0 | FF93: 0
B94: 76 | C94: Stephen McCardell | D94: Operator | E94: Vendor No.10 | G94: TLH-STORM-1031-SW18 | H94: 2018-10-29 | I94: 2018-10-31 | J94: =IF(AND(H94>='A - Contractor Summary'!$C$36,I94<='A - Contractor Summary'!$C$42),"Yes","No") -> No | K94: =VLOOKUP($D94,'C.1 - Rate Sheets'!B:F,2,FALSE) -> 56.13 | L94: =VLOOKUP($D94,'C.1 - Rate Sheets'!B:F,3,FALSE) -> 78.59 | M94: =VLOOKUP($D94,'C.1 - Rate Sheets'!B:F,4,FALSE) -> 100.92 | Q94: 0 | U94: 0 | Y94: 0 | AC94: 0 | AG94: 0 | AK94: 0 | AO94: 0 | AS94: 0 | AW94: 0 | BA94: 0 | BE94: 0 | BI94: 0 | BM94: 0 | BQ94: 0 | BU94: 0 | BY94: 0 | CC94: 0 | CG94: 0 | CH94: 8.5 | CI94: 7.5 | CK94: 16 | CL94: 8.5 | CM94: 7.5 | CO94: 16 | CP94: 8.5 | CQ94: 3.5 | CS94: 12 | CW94: 0 | DA94: 0 | DE94: 0 | DI94: 0 | DM94: 0 | DQ94: 0 | DU94: 0 | DY94: 0 | EC94: 0 | EG94: 0 | EK94: 0 | EO94: 0 | ES94: 0 | ET94: 25.5 | EU94: 18.5 | EV94: 0 | EW94: 44 | EX94: 1431.315 | EY94: 1453.915 | EZ94: 0 | FA94: 2885.23 | FB94: 2885.23 | FC94: Yes | FD94: 0 | FE94: 0 | FF94: 0
B95: 77 | C95: Hunter Watson | D95: Truck Driver | E95: Vendor No.10 | G95: TLH-STORM-1031-SW18 | H95: 2018-10-29 | I95: 2018-10-31 | J95: =IF(AND(H95>='A - Contractor Summary'!$C$36,I95<='A - Contractor Summary'!$C$42),"Yes","No") -> No | K95: =VLOOKUP($D95,'C.1 - Rate Sheets'!B:F,2,FALSE) -> 53.22 | L95: =VLOOKUP($D95,'C.1 - Rate Sheets'!B:F,3,FALSE) -> 74.44 | M95: =VLOOKUP($D95,'C.1 - Rate Sheets'!B:F,4,FALSE) -> 92.89 | Q95: 0 | U95: 0 | Y95: 0 | AC95: 0 | AG95: 0 | AK95: 0 | AO95: 0 | AS95: 0 | AW95: 0 | BA95: 0 | BE95: 0 | BI95: 0 | BM95: 0 | BQ95: 0 | BU95: 0 | BY95: 0 | CC95: 0 | CG95: 0 | CH95: 8.5 | CK95: 8.5 | CL95: 8.5 | CO95: 8.5 | CP95: 8.5 | CS95: 8.5 | CW95: 0 | DA95: 0 | DE95: 0 | DI95: 0 | DM95: 0 | DQ95: 0 | DU95: 0 | DY95: 0 | EC95: 0 | EG95: 0 | EK95: 0 | EO95: 0 | ES95: 0 | ET95: 25.5 | EU95: 0 | EV95: 0 | EW95: 25.5 | EX95: 1357.11 | EY95: 0 | EZ95: 0 | FA95: 1357.11 | FB95: 1357.11 | FC95: Yes | FD95: 0 | FE95: 0 | FF95: 0
B96: 78 | C96: Tally Chambers | D96: Foreman | E96: Vendor No.10 | G96: TLH-STORM-1031-SW18 | H96: 2018-10-29 | I96: 2018-10-31 | J96: =IF(AND(H96>='A - Contractor Summary'!$C$36,I96<='A - Contractor Summary'!$C$42),"Yes","No") -> No | K96: =VLOOKUP($D96,'C.1 - Rate Sheets'!B:F,2,FALSE) -> 92.23 | L96: =VLOOKUP($D96,'C.1 - Rate Sheets'!B:F,3,FALSE) -> 129.52 | M96: =VLOOKUP($D96,'C.1 - Rate Sheets'!B:F,4,FALSE) -> 165.02 | Q96: 0 | U96: 0 | Y96: 0 | AC96: 0 | AG96: 0 | AK96: 0 | AO96: 0 | AS96: 0 | AW96: 0 | BA96: 0 | BE96: 0 | BI96: 0 | BM96: 0 | BQ96: 0 | BU96: 0 | BY96: 0 | CC96: 0 | CG96: 0 | CH96: 8.5 | CI96: 7.5 | CK96: 16 | CL96: 8.5 | CM96: 7.5 | CO96: 16 | CP96: 8.5 | CQ96: 3.5 | CS96: 12 | CW96: 0 | DA96: 0 | DE96: 0 | DI96: 0 | DM96: 0 | DQ96: 0 | DU96: 0 | DY96: 0 | EC96: 0 | EG96: 0 | EK96: 0 | EO96: 0 | ES96: 0 | ET96: 25.5 | EU96: 18.5 | EV96: 0 | EW96: 44 | EX96: 2351.865 | EY96: 2396.12 | EZ96: 0 | FA96: 4747.985 | FB96: 4747.985 | FC96: Yes | FD96: 0 | FE96: 0 | FF96: 0
B97: 79 | C97: Eli Barrington | D97: Lineman B | E97: Vendor No.10 | G97: TLH-STORM-1031-SW18 | H97: 2018-10-29 | I97: 2018-10-31 | J97: =IF(AND(H97>='A - Contractor Summary'!$C$36,I97<='A - Contractor Summary'!$C$42),"Yes","No") -> No | K97: =VLOOKUP($D97,'C.1 - Rate Sheets'!B:F,2,FALSE) -> 71.8 | L97: =VLOOKUP($D97,'C.1 - Rate Sheets'!B:F,3,FALSE) -> 104.14 | M97: =VLOOKUP($D97,'C.1 - Rate Sheets'!B:F,4,FALSE) -> 127.8 | Q97: 0 | U97: 0 | Y97: 0 | AC97: 0 | AG97: 0 | AK97: 0 | AO97: 0 | AS97: 0 | AW97: 0 | BA97: 0 | BE97: 0 | BI97: 0 | BM97: 0 | BQ97: 0 | BU97: 0 | BY97: 0 | CC97: 0 | CG97: 0 | CH97: 8.5 | CI97: 7.5 | CK97: 16 | CL97: 8.5 | CM97: 7.5 | CO97: 16 | CP97: 8.5 | CQ97: 3.5 | CS97: 12 | CW97: 0 | DA97: 0 | DE97: 0 | DI97: 0 | DM97: 0 | DQ97: 0 | DU97: 0 | DY97: 0 | EC97: 0 | EG97: 0 | EK97: 0 | EO97: 0 | ES97: 0 | ET97: 25.5 | EU97: 18.5 | EV97: 0 | EW97: 44 | EX97: 1830.9 | EY97: 1926.59 | EZ97: 0 | FA97: 3757.49 | FB97: 3757.49 | FC97: Yes | FD97: 0 | FE97: 0 | FF97: 0
B98: 80 | C98: Dilton Moore | D98: Operator | E98: Vendor No.10 | G98: TLH-STORM-1031-SW18 | H98: 2018-10-29 | I98: 2018-10-31 | J98: =IF(AND(H98>='A - Contractor Summary'!$C$36,I98<='A - Contractor Summary'!$C$42),"Yes","No") -> No | K98: =VLOOKUP($D98,'C.1 - Rate Sheets'!B:F,2,FALSE) -> 56.13 | L98: =VLOOKUP($D98,'C.1 - Rate Sheets'!B:F,3,FALSE) -> 78.59 | M98: =VLOOKUP($D98,'C.1 - Rate Sheets'!B:F,4,FALSE) -> 100.92 | Q98: 0 | U98: 0 | Y98: 0 | AC98: 0 | AG98: 0 | AK98: 0 | AO98: 0 | AS98: 0 | AW98: 0 | BA98: 0 | BE98: 0 | BI98: 0 | BM98: 0 | BQ98: 0 | BU98: 0 | BY98: 0 | CC98: 0 | CG98: 0 | CH98: 8.5 | CI98: 7.5 | CK98: 16 | CL98: 8.5 | CM98: 7.5 | CO98: 16 | CP98: 8.5 | CQ98: 3.5 | CS98: 12 | CW98: 0 | DA98: 0 | DE98: 0 | DI98: 0 | DM98: 0 | DQ98: 0 | DU98: 0 | DY98: 0 | EC98: 0 | EG98: 0 | EK98: 0 | EO98: 0 | ES98: 0 | ET98: 25.5 | EU98: 18.5 | EV98: 0 | EW98: 44 | EX98: 1431.315 | EY98: 1453.915 | EZ98: 0 | FA98: 2885.23 | FB98: 2885.23 | FC98: Yes | FD98: 0 | FE98: 0 | FF98: 0
B99: 81 | C99: James Reynolds | D99: Lineman A | E99: Vendor No.10 | G99: TLH-STORM-1031-SW18 | H99: 2018-10-29 | I99: 2018-10-30 | J99: =IF(AND(H99>='A - Contractor Summary'!$C$36,I99<='A - Contractor Summary'!$C$42),"Yes","No") -> No | K99: =VLOOKUP($D99,'C.1 - Rate Sheets'!B:F,2,FALSE) -> 85.64 | L99: =VLOOKUP($D99,'C.1 - Rate Sheets'!B:F,3,FALSE) -> 119.89 | M99: =VLOOKUP($D99,'C.1 - Rate Sheets'!B:F,4,FALSE) -> 152.49 | Q99: 0 | U99: 0 | Y99: 0 | AC99: 0 | AG99: 0 | AK99: 0 | AO99: 0 | AS99: 0 | AW99: 0 | BA99: 0 | BE99: 0 | BI99: 0 | BM99: 0 | BQ99: 0 | BU99: 0 | BY99: 0 | CC99: 0 | CG99: 0 | CH99: 8.5 | CI99: 7.5 | CK99: 16 | CL99: 8.5 | CM99: 7.5 | CO99: 16 | CS99: 0 | CW99: 0 | DA99: 0 | DE99: 0 | DI99: 0 | DM99: 0 | DQ99: 0 | DU99: 0 | DY99: 0 | EC99: 0 | EG99: 0 | EK99: 0 | EO99: 0 | ES99: 0 | ET99: 17 | EU99: 15 | EV99: 0 | EW99: 32 | EX99: 1455.88 | EY99: 1798.35 | EZ99: 0 | FA99: 3254.23 | FB99: 3254.23 | FC99: Yes | FD99: 0 | FE99: 0 | FF99: 0
B100: 82 | C100: Chris Melvin | D100: Foreman | E100: Vendor No.10 | G100: TLH-STORM-1130-SW18 | H100: 2018-11-04 | I100: 2018-11-16 | J100: =IF(AND(H100>='A - Contractor Summary'!$C$36,I100<='A - Contractor Summary'!$C$42),"Yes","No") -> No | K100: =VLOOKUP($D100,'C.1 - Rate Sheets'!B:F,2,FALSE) -> 92.23 | L100: =VLOOKUP($D100,'C.1 - Rate Sheets'!B:F,3,FALSE) -> 129.52 | M100: =VLOOKUP($D100,'C.1 - Rate Sheets'!B:F,4,FALSE) -> 165.02 | Q100: 0 | U100: 0 | Y100: 0 | AC100: 0 | AG100: 0 | AK100: 0 | AO100: 0 | AS100: 0 | AW100: 0 | BA100: 0 | BE100: 0 | BI100: 0 | BM100: 0 | BQ100: 0 | BU100: 0 | BY100: 0 | CC100: 0 | CG100: 0 | CK100: 0 | CO100: 0 | CS100: 0 | CV100: 9 | CW100: 9 | CX100: 8 | CY100: 4 | DA100: 12 | DB100: 8 | DC100: 4 | DE100: 12 | DF100: 8 | DG100: 4 | DI100: 12 | DJ100: 8 | DK100: 4 | DM100: 12 | DN100: 8 | DO100: 4 | DQ100: 12 | DS100: 12 | DU100: 12 | DX100: 12 | DY100: 12 | DZ100: 8.5 | EA100: 3.5 | EC100: 12 | EG100: 0 | EH100: 8.5 | EI100: 3.5 | EK100: 12 | EL100: 8.5 | EM100: 3.5 | EO100: 12 | EP100: 8.5 | EQ100: 3.5 | ES100: 12 | ET100: =SUM(N100,R100,V100,Z100,AD100,AH100,AL100,AP100,AT100,AX100,BB100,BF100,BJ100,BN100,BR100,BV100,BZ100,CD100,CH100,CL100,CP100,CT100,CX100,DB100,DF100,DJ100,DN100,DR100,DV100,DZ100,ED100,EH100,EL100,EP100) -> 74 | EU100: =SUM(O100,S100,W100,AA100,AE100,AI100,AM100,AQ100,AU100,AY100,BC100,BG100,BK100,BO100,BS100,BW100,CA100,CE100,CI100,CM100,CQ100,CU100,CY100,DC100,DG100,DK100,DO100,DS100,DW100,EA100,EE100,EI100,EM100,EQ100) -> 46 | EV100: 21 | EW100: 141 | EX100: 6825.02 | EY100: 5957.92 | EZ100: 3465.42 | FA100: 16248.36 | FB100: 16248.36 | FC100: Yes | FD100: 0 | FE100: 0 | FF100: 0
B101: 83 | C101: Jeremy Hortan | D101: Lineman A | E101: Vendor No.10 | G101: TLH-STORM-1130-SW18 | H101: 2018-11-04 | I101: 2018-11-08 | J101: =IF(AND(H101>='A - Contractor Summary'!$C$36,I101<='A - Contractor Summary'!$C$42),"Yes","No") -> No | K101: =VLOOKUP($D101,'C.1 - Rate Sheets'!B:F,2,FALSE) -> 85.64 | L101: =VLOOKUP($D101,'C.1 - Rate Sheets'!B:F,3,FALSE) -> 119.89 | M101: =VLOOKUP($D101,'C.1 - Rate Sheets'!B:F,4,FALSE) -> 152.49 | Q101: 0 | U101: 0 | Y101: 0 | AC101: 0 | AG101: 0 | AK101: 0 | AO101: 0 | AS101: 0 | AW101: 0 | BA101: 0 | BE101: 0 | BI101: 0 | BM101: 0 | BQ101: 0 | BU101: 0 | BY101: 0 | CC101: 0 | CG101: 0 | CK101: 0 | CO101: 0 | CS101: 0 | CV101: 9 | CW101: 9 | CX101: 8.5 | CY101: 3.5 | DA101: 12 | DB101: 8.5 | DC101: 3.5 | DE101: 12 | DF101: 8.5 | DG101: 3.5 | DI101: 12 | DJ101: 8.5 | DK101: 3.5 | DM101: 12 | DQ101: 0 | DU101: 0 | DY101: 0 | EC101: 0 | EG101: 0 | EK101: 0 | EO101: 0 | ES101: 0 | ET101: =SUM(N101,R101,V101,Z101,AD101,AH101,AL101,AP101,AT101,AX101,BB101,BF101,BJ101,BN101,BR101,BV101,BZ101,CD101,CH101,CL101,CP101,CT101,CX101,DB101,DF101,DJ101,DN101,DR101,DV101,DZ101,ED101,EH101,EL101,EP101) -> 34 | EU101: =SUM(O101,S101,W101,AA101,AE101,AI101,AM101,AQ101,AU101,AY101,BC101,BG101,BK101,BO101,BS101,BW101,CA101,CE101,CI101,CM101,CQ101,CU101,CY101,DC101,DG101,DK101,DO101,DS101,DW101,EA101,EE101,EI101,EM101,EQ101) -> 14 | EV101: =SUM(P101,T101,X101,AB101,AF101,AJ101,AN101,AR101,AV101,AZ101,BD101,BH101,BL101,BP101,BT101,BX101,CB101,CF101,CJ101,CN101,CR101,CV101,CZ101,DD101,DH101,DL101,DP101,DT101,DX101,EB101,EF101,EJ101,EN101,ER101) -> 9 | EW101: 57 | EX101: 2911.76 | EY101: 1678.46 | EZ101: 1372.41 | FA101: 5962.63 | FB101: 5962.63 | FC101: Yes | FD101: 0 | FE101: 0 | FF101: 0
B102: 84 | C102: Kaleb Champion | D102: Lineman B | E102: Vendor No.10 | G102: TLH-STORM-1130-SW18 | H102: 2018-11-04 | I102: 2018-11-14 | J102: =IF(AND(H102>='A - Contractor Summary'!$C$36,I102<='A - Contractor Summary'!$C$42),"Yes","No") -> No | K102: =VLOOKUP($D102,'C.1 - Rate Sheets'!B:F,2,FALSE) -> 71.8 | L102: =VLOOKUP($D102,'C.1 - Rate Sheets'!B:F,3,FALSE) -> 104.14 | M102: =VLOOKUP($D102,'C.1 - Rate Sheets'!B:F,4,FALSE) -> 127.8 | Q102: 0 | U102: 0 | Y102: 0 | AC102: 0 | AG102: 0 | AK102: 0 | AO102: 0 | AS102: 0 | AW102: 0 | BA102: 0 | BE102: 0 | BI102: 0 | BM102: 0 | BQ102: 0 | BU102: 0 | BY102: 0 | CC102: 0 | CG102: 0 | CK102: 0 | CO102: 0 | CS102: 0 | CV102: 9 | CW102: 9 | CX102: 8 | CY102: 4 | DA102: 12 | DB102: 8 | DC102: 4 | DE102: 12 | DF102: 8 | DG102: 4 | DI102: 12 | DJ102: 8 | DK102: 4 | DM102: 12 | DN102: 8 | DO102: 4 | DQ102: 12 | DS102: 12 | DU102: 12 | DX102: 12 | DY102: 12 | DZ102: 11.5 | EC102: 11.5 | EG102: 0 | EI102: 4.5 | EK102: 4.5 | EO102: 0 | ES102: 0 | ET102: 51.5 | EU102: 36.5 | EV102: 21 | EW102: 109 | EX102: 3697.7 | EY102: 3801.11 | EZ102: 2683.8 | FA102: 10182.61 | FB102: 10182.61 | FC102: Yes | FD102: 0 | FE102: 0 | FF102: 0
B103: 85 | C103: Jonathan Melvin | D103: Truck Driver | E103: Vendor No.10 | G103: TLH-STORM-1130-SW18 | H103: 2018-11-04 | I103: 2018-11-16 | J103: =IF(AND(H103>='A - Contractor Summary'!$C$36,I103<='A - Contractor Summary'!$C$42),"Yes","No") -> No | K103: =VLOOKUP($D103,'C.1 - Rate Sheets'!B:F,2,FALSE) -> 53.22 | L103: =VLOOKUP($D103,'C.1 - Rate Sheets'!B:F,3,FALSE) -> 74.44 | M103: =VLOOKUP($D103,'C.1 - Rate Sheets'!B:F,4,FALSE) -> 92.89 | Q103: 0 | U103: 0 | Y103: 0 | AC103: 0 | AG103: 0 | AK103: 0 | AO103: 0 | AS103: 0 | AW103: 0 | BA103: 0 | BE103: 0 | BI103: 0 | BM103: 0 | BQ103: 0 | BU103: 0 | BY103: 0 | CC103: 0 | CG103: 0 | CK103: 0 | CO103: 0 | CS103: 0 | CV103: 9 | CW103: 9 | CX103: 8 | CY103: 4 | DA103: 12 | DB103: 8 | DC103: 4 | DE103: 12 | DF103: 8 | DG103: 4 | DI103: 12 | DJ103: 8 | DK103: 4 | DM103: 12 | DN103: 8 | DO103: 4 | DQ103: 12 | DS103: 12 | DU103: 12 | DX103: 12 | DY103: 12 | DZ103: 8.5 | EA103: 3.5 | EC103: 12 | EG103: 0 | EH103: 8.5 | EI103: 3.5 | EK103: 12 | EL103: 8.5 | EM103: 3.5 | EO103: 12 | EP103: 8.5 | EQ103: 3.5 | ES103: 12 | ET103: 74 | EU103: 46 | EV103: 21 | EW103: 141 | EX103: 3938.28 | EY103: 3424.24 | EZ103: 1950.69 | FA103: 9313.21 | FB103: 9313.21 | FC103: Yes | FD103: 0 | FE103: 0 | FF103: 0
B104: 86 | C104: Tristan Rudd | D104: Apprentice | E104: Vendor No.10 | G104: TLH-STORM-1130-SW18 | H104: 2018-11-04 | I104: 2018-11-16 | J104: =IF(AND(H104>='A - Contractor Summary'!$C$36,I104<='A - Contractor Summary'!$C$42),"Yes","No") -> No | K104: =VLOOKUP($D104,'C.1 - Rate Sheets'!B:F,2,FALSE) -> 60.26 | L104: =VLOOKUP($D104,'C.1 - Rate Sheets'!B:F,3,FALSE) -> 84.98 | M104: =VLOOKUP($D104,'C.1 - Rate Sheets'!B:F,4,FALSE) -> 110.01 | Q104: 0 | U104: 0 | Y104: 0 | AC104: 0 | AG104: 0 | AK104: 0 | AO104: 0 | AS104: 0 | AW104: 0 | BA104: 0 | BE104: 0 | BI104: 0 | BM104: 0 | BQ104: 0 | BU104: 0 | BY104: 0 | CC104: 0 | CG104: 0 | CK104: 0 | CO104: 0 | CS104: 0 | CV104: 9 | CW104: 9 | CX104: 8 | CY104: 4 | DA104: 12 | DB104: 8 | DC104: 4 | DE104: 12 | DF104: 8 | DG104: 4 | DI104: 12 | DJ104: 8 | DK104: 4 | DM104: 12 | DN104: 8 | DO104: 4 | DQ104: 12 | DS104: 12 | DU104: 12 | DX104: 12 | DY104: 12 | DZ104: 8.5 | EA104: 3.5 | EC104: 12 | EG104: 0 | EH104: 8.5 | EI104: 3.5 | EK104: 12 | EL104: 8.5 | EM104: 3.5 | EO104: 12 | EP104: 8.5 | EQ104: 3.5 | ES104: 12 | ET104: 74 | EU104: 46 | EV104: 21 | EW104: 141 | EX104: 4459.24 | EY104: 3909.08 | EZ104: 2310.21 | FA104: 10678.53 | FB104: 10678.53 | FC104: Yes | FD104: 0 | FE104: 0 | FF104: 0
B105: 87 | C105: Chris Boobyer | D105: Operator | E105: Vendor No.10 | G105: TLH-STORM-1130-SW18 | H105: 2018-11-04 | I105: 2018-11-16 | J105: =IF(AND(H105>='A - Contractor Summary'!$C$36,I105<='A - Contractor Summary'!$C$42),"Yes","No") -> No | K105: =VLOOKUP($D105,'C.1 - Rate Sheets'!B:F,2,FALSE) -> 56.13 | L105: =VLOOKUP($D105,'C.1 - Rate Sheets'!B:F,3,FALSE) -> 78.59 | M105: =VLOOKUP($D105,'C.1 - Rate Sheets'!B:F,4,FALSE) -> 100.92 | Q105: 0 | U105: 0 | Y105: 0 | AC105: 0 | AG105: 0 | AK105: 0 | AO105: 0 | AS105: 0 | AW105: 0 | BA105: 0 | BE105: 0 | BI105: 0 | BM105: 0 | BQ105: 0 | BU105: 0 | BY105: 0 | CC105: 0 | CG105: 0 | CK105: 0 | CO105: 0 | CS105: 0 | CV105: 9 | CW105: 9 | CX105: 8 | CY105: 4 | DA105: 12 | DB105: 8 | DC105: 4 | DE105: 12 | DF105: 8 | DG105: 4 | DI105: 12 | DJ105: 8 | DK105: 4 | DM105: 12 | DN105: 8 | DO105: 4 | DQ105: 12 | DS105: 12 | DU105: 12 | DX105: 12 | DY105: 12 | DZ105: 8.5 | EA105: 3.5 | EC105: 12 | EG105: 0 | EH105: 8.5 | EI105: 3.5 | EK105: 12 | EL105: 8.5 | EM105: 3.5 | EO105: 12 | EP105: 8.5 | EQ105: 3.5 | ES105: 12 | ET105: 74 | EU105: 46 | EV105: 21 | EW105: =SUM(ET105:EV105) -> 141 | EX105: 4153.62 | EY105: 3615.14 | EZ105: 2119.32 | FA105: =SUM(EX105:EZ105) -> 9888.08 | FB105: =FA105-FD105 -> 9888.08 | FC105: Yes | FD105: 0 | FE105: 0 | FF105: 0
C106: Correction to Match Invoice | E106: Vendor No.10 | G106: TLH-STORM-1130-SW18 | Q106: 0 | U106: 0 | Y106: 0 | AC106: 0 | AG106: 0 | AK106: 0 | AO106: 0 | AS106: 0 | AW106: 0 | BA106: 0 | BE106: 0 | BI106: 0 | BM106: 0 | BQ106: 0 | BU106: 0 | BY106: 0 | CC106: 0 | CG106: 0 | CK106: 0 | CO106: 0 | CS106: 0 | CW106: 0 | DA106: 0 | DE106: 0 | DI106: 0 | DM106: 0 | DQ106: 0 | DU106: 0 | DY106: 0 | EC106: 0 | EG106: 0 | EK106: 0 | EO106: 0 | ES106: 0 | ET106: =SUM(N106,R106,V106,Z106,AD106,AH106,AL106,AP106,AT106,AX106,BB106,BF106,BJ106,BN106,BR106,BV106,BZ106,CD106,CH106,CL106,CP106,CT106) -> 0 | EU106: 0 | EV106: 0 | EW106: =SUM(ET106:EV106) -> 0 | EX106: 0 | EY106: 0 | EZ106: 0 | FA106: 0.07 | FB106: =FA106-FD106 -> 0.07 | FC106: Yes | FD106: 0 | FE106: 0 | FF106: 0 | FG106: 1
Q107: 0 | U107: 0 | Y107: 0 | AC107: 0 | AG107: 0 | AK107: 0 | AO107: 0 | AS107: 0 | AW107: 0 | BA107: 0 | BE107: 0 | BI107: 0 | BM107: 0 | BQ107: 0 | BU107: 0 | BY107: 0 | CC107: 0 | CG107: 0 | CK107: 0 | CO107: 0 | CS107: 0 | CW107: 0 | DA107: 0 | DE107: 0 | DI107: 0 | DM107: 0 | DQ107: 0 | DU107: 0 | DY107: 0 | EC107: 0 | EG107: 0 | EK107: 0 | EO107: 0 | ES107: 0 | ET107: 0 | EU107: 0 | EV107: 0 | EW107: =SUM(ET107:EV107) -> 0 | FA107: =SUM(EX107:EZ107) -> 0 | FB107: =FA107-FD107 -> 0 | FC107: Yes | FD107: 0 | FE107: 0 | FF107: 0
Q108: =SUM(N108:P108) -> 0 | U108: =SUM(R108:T108) -> 0 | Y108: =SUM(V108:X108) -> 0 | AC108: =SUM(Z108:AB108) -> 0 | AG108: =SUM(AD108:AF108) -> 0 | AK108: =SUM(AH108:AJ108) -> 0 | AO108: =SUM(AL108:AN108) -> 0 | AS108: =SUM(AP108:AR108) -> 0 | AW108: =SUM(AT108:AV108) -> 0 | BA108: =SUM(AX108:AZ108) -> 0 | BE108: =SUM(BB108:BD108) -> 0 | BI108: 0 | BM108: 0 | BQ108: 0 | BU108: 0 | BY108: 0 | CC108: 0 | CG108: 0 | CK108: 0 | CO108: 0 | CS108: 0 | CW108: 0 | DA108: 0 | DE108: 0 | DI108: 0 | DM108: 0 | DQ108: 0 | DU108: 0 | DY108: 0 | EC108: 0 | EG108: 0 | EK108: 0 | EO108: 0 | ES108: 0 | ET108: 0 | EU108: 0 | EV108: 0 | EW108: =SUM(ET108:EV108) -> 0 | EX108: =ET108*K108 -> 0 | EY108: =EU108*L108 -> 0 | EZ108: =EV108*M108 -> 0 | FA108: =SUM(EX108:EZ108) -> 0 | FB108: =FA108-FD108 -> 0 | FC108: Yes | FD108: 0 | FE108: 0 | FF108: 0
N109: =SUM(N19:N108) -> 42.5 | O109: 7.5 | P109: 0 | Q109: 50 | R109: 42.5 | S109: 37.5 | T109: 0 | U109: 80 | V109: 0 | W109: 80 | X109: 0 | Y109: 80 | Z109: 0 | AA109: 0 | AB109: 80 | AC109: 80 | AD109: 40 | AE109: 40 | AF109: 0 | AG109: 80 | AH109: 40 | AI109: 40 | AJ109: 0 | AK109: 80 | AL109: 200.5 | AM109: 192 | AN109: 0 | AO109: 392.5 | AP109: 40 | AQ109: 344 | AR109: 0 | AS109: 384 | AT109: =SUM(AT19:AT108) -> 40 | AU109: 344 | AV109: 0 | AW109: 384 | AX109: 0 | AY109: 400 | AZ109: 0 | BA109: 400 | BB109: 0 | BC109: 0 | BD109: 400 | BE109: 400 | BF109: 208 | BG109: 208 | BH109: 0 | BI109: 416 | BJ109: 208 | BK109: 208 | BL109: 0 | BM109: 416 | BN109: 208 | BO109: 208 | BP109: 0 | BQ109: 416 | BR109: 212 | BS109: 204 | BT109: 0 | BU109: 416 | BV109: 192 | BW109: 199.5 | BX109: 0 | BY109: 391.5 | BZ109: =SUM(BZ19:BZ108) -> 0 | CA109: 368 | CB109: 0 | CC109: 368 | CD109: 0 | CE109: 0 | CF109: 368 | CG109: 368 | CH109: 195.5 | CI109: 150 | CJ109: 0 | CK109: 345.5 | CL109: 195.5 | CM109: 150 | CN109: 0 | CO109: 345.5 | CP109: 136 | CQ109: 45.5 | CR109: 0 | CS109: 181.5 | CT109: 0 | CU109: 0 | CV109: 54 | CW109: 54 | CX109: =SUM(CX19:CX108) -> 48.5 | CY109: 23.5 | CZ109: 0 | DA109: 72 | DB109: 48.5 | DC109: 23.5 | DD109: 0 | DE109: 72 | DF109: 48.5 | DG109: 23.5 | DH109: 0 | DI109: 72 | DJ109: 48.5 | DK109: 23.5 | DL109: 0 | DM109: 72 | DN109: =SUM(DN19:DN108) -> 40 | DO109: 20 | DP109: 0 | DQ109: 60 | DR109: 0 | DS109: 60 | DT109: 0 | DU109: 60 | DV109: =SUM(DV19:DV108) -> 0 | DW109: 0 | DX109: 60 | DY109: 60 | DZ109: 45.5 | EA109: 14 | EB109: 0 | EC109: 59.5 | ED109: 0 | EE109: 0 | EF109: 0 | EG109: 0 | EH109: 34 | EI109: 18.5 | EJ109: 0 | EK109: 52.5 | EL109: =SUM(EL19:EL108) -> 34 | EM109: 14 | EN109: 0 | EO109: 48 | EP109: 34 | EQ109: 14 | ER109: 0 | ES109: 48 | ET109: 2382 | EU109: 3460.5 | EV109: 962 | EW109: 6804.5 | EX109: 169625.035 | EY109: 349362.725 | EZ109: 121210.01 | FA109: =IFERROR(SUM(FA19:FA108),0) -> 640197.84 | FB109: =FA109-FD109 -> 640197.84 | FD109: =SUM(FD19:FD108) -> 0 | FE109: =SUM(FE19:FE108) -> 0 | FF109: =SUM(FF19:FF108) -> 0 | FG109: =FD109-FE109-FF109 -> 0 | FH109: check (b)
Q110: =COUNTIF(Q19:Q108,">0") -> 5 | U110: =COUNTIF(U19:U108,">0") -> 5 | Y110: =COUNTIF(Y19:Y108,">0") -> 5 | AC110: =COUNTIF(AC19:AC108,">0") -> 5 | AG110: =COUNTIF(AG19:AG108,">0") -> 5 | AK110: =COUNTIF(AK19:AK108,">0") -> 5 | AO110: =COUNTIF(AO19:AO108,">0") -> 25 | AS110: =COUNTIF(AS19:AS108,">0") -> 24 | AW110: =COUNTIF(AW19:AW108,">0") -> 24 | BA110: =COUNTIF(BA19:BA108,">0") -> 25 | BE110: =COUNTIF(BE19:BE108,">0") -> 25 | BI110: =COUNTIF(BI19:BI108,">0") -> 26 | BM110: =COUNTIF(BM19:BM108,">0") -> 26 | BQ110: =COUNTIF(BQ19:BQ108,">0") -> 26 | BU110: =COUNTIF(BU19:BU108,">0") -> 26 | BY110: =COUNTIF(BY19:BY108,">0") -> 25 | CC110: =COUNTIF(CC19:CC108,">0") -> 23 | CG110: =COUNTIF(CG19:CG108,">0") -> 23 | CK110: =COUNTIF(CK19:CK108,">0") -> 23 | CO110: =COUNTIF(CO19:CO108,">0") -> 23 | CS110: =COUNTIF(CS19:CS108,">0") -> 16 | CW110: =COUNTIF(CW19:CW108,">0") -> 6 | DA110: =COUNTIF(DA19:DA108,">0") -> 6 | DE110: =COUNTIF(DE19:DE108,">0") -> 6 | DI110: =COUNTIF(DI19:DI108,">0") -> 6 | DM110: =COUNTIF(DM19:DM108,">0") -> 6 | DQ110: =COUNTIF(DQ19:DQ108,">0") -> 5 | DU110: =COUNTIF(DU19:DU108,">0") -> 5 | DY110: =COUNTIF(DY19:DY108,">0") -> 5 | EC110: =COUNTIF(EC19:EC108,">0") -> 5 | EG110: =COUNTIF(EG19:EG108,">0") -> 0 | EK110: =COUNTIF(EK19:EK108,">0") -> 5 | EO110: =COUNTIF(EO19:EO108,">0") -> 4 | ES110: =COUNTIF(ES19:ES108,">0") -> 4 | EW110: =COUNTIF(EW19:EW108,">0") -> 87
B118: Tickmark Explanation:
B120: 1 | C120: Correction to allow for rounding errors
B121: 2
B122: 3

Sheet C.3 - Asset by Company
A1: Asset Tag | B1: Position | C1: Name

Sheet C.4 - Timesheets - Equipment
B2: Equipment Charges - Time Card
B4: Test Plan: | C4: Obtain the time cards. (A) Populate the equipment names and types (if provided). Find additional information regarding individual equipment charge from related invoice. (B) Enter hours worked from time card(s). (C) Confirm that the dates per the time cards fall between dates provided per 'A - Contractor Summary' tab. (D) Identify any equipment charges to be reviewed. (E) For charges which required further review, document review (include why it was determined to be allowed/disallowed via a tickmark).
B10: Rx | C10: Recalculated.
B11: a | C11: Provided from tab 'C.1 - Rate Sheets'.
B12: b | C12: Check figure should equal $0. Cell will appear yellow if discrepancies are noted.
C14: A | H14: Rx | J14: C | K14: a | L14: B | AS14: Rx | AV14: D | AW14: E
B15: # | C15: Equipment Name | D15: Equipment ID | E15: Company | F15: Crew# | G15: Invoice | H15: Start Date | I15: End Date | J15: Dates Worked Reasonable? | K15: Rates | L15: Week Ending 10/14/18 | P15: Week Ending 10/21/18 | W15: Week Ending 10/28/18 | AD15: Week Ending 11/4/18 | AH15: Week Ending 11/11/18 | AO15: Week Ending 11/18/18 | AS15: Total Hours | AT15: Total Equipment $ | AU15: Allowable Charges | AV15: To Be Reviewed | AW15: Reviewed - Allowable Charge | AX15: Reviewed - Unallowable Charge | AY15: Tickmarks
L16: 2018-10-11 | M16: 2018-10-12 | N16: 2018-10-13 | O16: 2018-10-14 | P16: 2018-10-15 | Q16: 2018-10-16 | R16: 2018-10-17 | S16: 2018-10-18 | T16: 2018-10-19 | U16: 2018-10-20 | V16: 2018-10-21 | W16: 2018-10-22 | X16: 2018-10-23 | Y16: 2018-10-24 | Z16: 2018-10-25 | AA16: 2018-10-26 | AB16: 2018-10-27 | AC16: 2018-10-28 | AD16: 2018-10-29 | AE16: 2018-10-30 | AF16: 2018-10-31 | AG16: 2018-11-04 | AH16: 2018-11-05 | AI16: 2018-11-06 | AJ16: 2018-11-07 | AK16: 2018-11-08 | AL16: 2018-11-09 | AM16: 2018-11-10 | AN16: 2018-11-11 | AO16: 2018-11-12 | AP16: 2018-11-14 | AQ16: 2018-11-15 | AR16: 2018-11-16
L17: Hours | M17: Hours | N17: Hours | O17: Hours | P17: Hours | Q17: Hours | R17: Hours | S17: Hours | T17: Hours | U17: Hours | V17: Hours | W17: Hours | X17: Hours | Y17: Hours | Z17: Hours | AA17: Hours | AB17: Hours | AC17: Hours | AD17: Hours | AE17: Hours | AF17: Hours | AG17: Hours | AH17: Hours | AI17: Hours | AJ17: Hours | AK17: Hours | AL17: Hours | AM17: Hours | AN17: Hours | AO17: Hours | AP17: Hours | AQ17: Hours | AR17: Hours
B18: 1 | C18: Pickup Truck 4x4 | D18: 315583 | E18: Vendor No.10 | G18: TLH-STORM-1031-SW18 | H18: 2018-10-11 | I18: 2018-10-31 | J18: =IF(AND(H18>='A - Contractor Summary'!$C$36,I18<='A - Contractor Summary'!$C$42),"Yes","No") -> No | K18: =VLOOKUP($C18,'C.1 - Rate Sheets'!H:I,2,FALSE) -> 23.27 | L18: 10 | M18: 16 | N18: 16 | O18: 16 | AS18: =SUM(L18:AR18) -> 58 | AT18: =AS18*K18 -> 1349.66 | AU18: =AT18-AV18 -> 1349.66 | AV18: 0 | AW18: 0 | AX18: 0
B19: 2 | C19: Bucket 4x4 to 55' Mat. Handler | D19: 316105 | E19: Vendor No.10 | G19: TLH-STORM-1031-SW18 | H19: 2018-10-11 | I19: 2018-10-31 | J19: =IF(AND(H19>='A - Contractor Summary'!$C$36,I19<='A - Contractor Summary'!$C$42),"Yes","No") -> No | K19: =VLOOKUP($C19,'C.1 - Rate Sheets'!H:I,2,FALSE) -> 56.99 | L19: 10 | M19: 16 | N19: 16 | O19: 16 | AS19: 58 | AT19: 3305.42 | AU19: 3305.42 | AV19: 0 | AW19: 0 | AX19: 0
B20: 3 | C20: Bucket 2x4 to 55' Mat. Handler | D20: 35677 | E20: Vendor No.10 | G20: TLH-STORM-1031-SW18 | H20: 2018-10-11 | I20: 2018-10-31 | J20: =IF(AND(H20>='A - Contractor Summary'!$C$36,I20<='A - Contractor Summary'!$C$42),"Yes","No") -> No | K20: =VLOOKUP($C20,'C.1 - Rate Sheets'!H:I,2,FALSE) -> 51.83 | L20: 10 | M20: 16 | N20: 16 | O20: 16 | AS20: 58 | AT20: 3006.14 | AU20: 3006.14 | AV20: 0 | AW20: 0 | AX20: 0
B21: 4 | C21: Digger Derrick 4x4 to 10,000 LBS | D21: 341426 | E21: Vendor No.10 | G21: TLH-STORM-1031-SW18 | H21: 2018-10-11 | I21: 2018-10-31 | J21: =IF(AND(H21>='A - Contractor Summary'!$C$36,I21<='A - Contractor Summary'!$C$42),"Yes","No") -> No | K21: =VLOOKUP($C21,'C.1 - Rate Sheets'!H:I,2,FALSE) -> 64.45 | L21: 10 | M21: 16 | N21: 16 | O21: 16 | AS21: 58 | AT21: 3738.1 | AU21: 3738.1 | AV21: 0 | AW21: 0 | AX21: 0
B22: 5 | C22: Pole Trailer | D22: 40547 | E22: Vendor No.10 | G22: TLH-STORM-1031-SW18 | H22: 2018-10-11 | I22: 2018-10-31 | J22: =IF(AND(H22>='A - Contractor Summary'!$C$36,I22<='A - Contractor Summary'!$C$42),"Yes","No") -> No | K22: =VLOOKUP($C22,'C.1 - Rate Sheets'!H:I,2,FALSE) -> 4.75 | L22: 10 | M22: 16 | N22: 16 | O22: 16 | AS22: 58 | AT22: 275.5 | AU22: 275.5 | AV22: 0 | AW22: 0 | AX22: 0
B23: 6 | C23: Pickup Truck 4x4 | D23: 342526 | E23: Vendor No.10 | G23: TLH-STORM-1031-SW18 | H23: 2018-10-11 | I23: 2018-10-31 | J23: =IF(AND(H23>='A - Contractor Summary'!$C$36,I23<='A - Contractor Summary'!$C$42),"Yes","No") -> No | K23: =VLOOKUP($C23,'C.1 - Rate Sheets'!H:I,2,FALSE) -> 23.27 | P23: 16 | Q23: 16 | R23: 16 | S23: 16 | T23: 16 | AS23: 80 | AT23: 1861.6 | AU23: 1861.6 | AV23: 0 | AW23: 0 | AX23: 0
B24: 7 | C24: Pickup Truck 4x4 | D24: 315583 | E24: Vendor No.10 | G24: TLH-STORM-1031-SW18 | H24: 2018-10-11 | I24: 2018-10-31 | J24: =IF(AND(H24>='A - Contractor Summary'!$C$36,I24<='A - Contractor Summary'!$C$42),"Yes","No") -> No | K24: =VLOOKUP($C24,'C.1 - Rate Sheets'!H:I,2,FALSE) -> 23.27 | P24: 16 | Q24: 16 | R24: 16 | S24: 16 | T24: 16 | U24: 16 | V24: 16 | AS24: 112 | AT24: 2606.24 | AU24: 2606.24 | AV24: 0 | AW24: 0 | AX24: 0
B25: 8 | C25: Bucket 4x4 to 55' Mat. Handler | D25: 316105 | E25: Vendor No.10 | G25: TLH-STORM-1031-SW18 | H25: 2018-10-11 | I25: 2018-10-31 | J25: =IF(AND(H25>='A - Contractor Summary'!$C$36,I25<='A - Contractor Summary'!$C$42),"Yes","No") -> No | K25: =VLOOKUP($C25,'C.1 - Rate Sheets'!H:I,2,FALSE) -> 56.99 | P25: 16 | Q25: 16 | R25: 16 | S25: 16 | T25: 16 | U25: 16 | V25: 16 | AS25: 112 | AT25: 6382.88 | AU25: 6382.88 | AV25: 0 | AW25: 0 | AX25: 0
B26: 9 | C26: Bucket 2x4 to 55' Mat. Handler | D26: 35677 | E26: Vendor No.10 | G26: TLH-STORM-1031-SW18 | H26: 2018-10-11 | I26: 2018-10-31 | J26: =IF(AND(H26>='A - Contractor Summary'!$C$36,I26<='A - Contractor Summary'!$C$42),"Yes","No") -> No | K26: =VLOOKUP($C26,'C.1 - Rate Sheets'!H:I,2,FALSE) -> 51.83 | P26: 16 | Q26: 16 | R26: 16 | S26: 16 | T26: 16 | U26: 16 | V26: 16 | AS26: 112 | AT26: 5804.96 | AU26: 5804.96 | AV26: 0 | AW26: 0 | AX26: 0
B27: 10 | C27: Digger Derrick 4x4 to 10,000 LBS | D27: 341426 | E27: Vendor No.10 | G27: TLH-STORM-1031-SW18 | H27: 2018-10-11 | I27: 2018-10-31 | J27: =IF(AND(H27>='A - Contractor Summary'!$C$36,I27<='A - Contractor Summary'!$C$42),"Yes","No") -> No | K27: =VLOOKUP($C27,'C.1 - Rate Sheets'!H:I,2,FALSE) -> 64.45 | P27: 16 | Q27: 16 | R27: 16 | S27: 16 | T27: 16 | U27: 16 | V27: 16 | AS27: 112 | AT27: 7218.4 | AU27: =AT27-AV27 -> 7218.4 | AV27: 0 | AW27: 0 | AX27: 0
B28: 11 | C28: Pole Trailer | D28: 40547 | E28: Vendor No.10 | G28: TLH-STORM-1031-SW18 | H28: 2018-10-11 | I28: 2018-10-31 | J28: =IF(AND(H28>='A - Contractor Summary'!$C$36,I28<='A - Contractor Summary'!$C$42),"Yes","No") -> No | K28: =VLOOKUP($C28,'C.1 - Rate Sheets'!H:I,2,FALSE) -> 4.75 | P28: 16 | Q28: 16 | R28: 16 | S28: 16 | T28: 16 | U28: 16 | V28: 16 | AS28: 112 | AT28: 532 | AU28: 532 | AV28: 0 | AW28: 0 | AX28: 0
B29: 12 | C29: Pickup Truck 4x4 | D29: 343161 | E29: Vendor No.10 | G29: TLH-STORM-1031-SW18 | H29: 2018-10-11 | I29: 2018-10-31 | J29: =IF(AND(H29>='A - Contractor Summary'!$C$36,I29<='A - Contractor Summary'!$C$42),"Yes","No") -> No | K29: =VLOOKUP($C29,'C.1 - Rate Sheets'!H:I,2,FALSE) -> 23.27 | R29: 16 | S29: 16 | T29: 16 | U29: 16 | V29: 16 | AS29: 80 | AT29: 1861.6 | AU29: 1861.6 | AV29: 0 | AW29: 0 | AX29: 0
B30: 13 | C30: Bucket 4x4 to 55' Mat. Handler | D30: 326846 | E30: Vendor No.10 | G30: TLH-STORM-1031-SW18 | H30: 2018-10-11 | I30: 2018-10-31 | J30: =IF(AND(H30>='A - Contractor Summary'!$C$36,I30<='A - Contractor Summary'!$C$42),"Yes","No") -> No | K30: =VLOOKUP($C30,'C.1 - Rate Sheets'!H:I,2,FALSE) -> 56.99 | R30: 16 | S30: 16 | T30: 16 | U30: 16 | V30: 16 | AS30: 80 | AT30: 4559.2 | AU30: 4559.2 | AV30: 0 | AW30: 0 | AX30: 0
B31: 14 | C31: Bucket 4x4 to 55' Mat. Handler | D31: 327563 | E31: Vendor No.10 | G31: TLH-STORM-1031-SW18 | H31: 2018-10-11 | I31: 2018-10-31 | J31: =IF(AND(H31>='A - Contractor Summary'!$C$36,I31<='A - Contractor Summary'!$C$42),"Yes","No") -> No | K31: =VLOOKUP($C31,'C.1 - Rate Sheets'!H:I,2,FALSE) -> 56.99 | R31: 16 | S31: 16 | T31: 16 | U31: 16 | V31: 16 | AS31: 80 | AT31: 4559.2 | AU31: 4559.2 | AV31: 0 | AW31: 0 | AX31: 0
B32: 15 | C32: Digger Derrick 4x4 to 10,000 LBS | D32: 326565 | E32: Vendor No.10 | G32: TLH-STORM-1031-SW18 | H32: 2018-10-11 | I32: 2018-10-31 | J32: =IF(AND(H32>='A - Contractor Summary'!$C$36,I32<='A - Contractor Summary'!$C$42),"Yes","No") -> No | K32: =VLOOKUP($C32,'C.1 - Rate Sheets'!H:I,2,FALSE) -> 64.45 | R32: 16 | S32: 16 | T32: 16 | U32: 16 | V32: 16 | AS32: 80 | AT32: 5156 | AU32: 5156 | AV32: 0 | AW32: 0 | AX32: 0
B33: 16 | C33: Rear Easement Bucket (Port. & Off Rd.) | D33: 339681 | E33: Vendor No.10 | G33: TLH-STORM-1031-SW18 | H33: 2018-10-11 | I33: 2018-10-31 | J33: =IF(AND(H33>='A - Contractor Summary'!$C$36,I33<='A - Contractor Summary'!$C$42),"Yes","No") -> No | K33: =VLOOKUP($C33,'C.1 - Rate Sheets'!H:I,2,FALSE) -> 57.41 | R33: 16 | S33: 16 | T33: 16 | U33: 16 | V33: 16 | AS33: 80 | AT33: 4592.8 | AU33: 4592.8 | AV33: 0 | AW33: 0 | AX33: 0
B34: 17 | C34: Pole Trailer | D34: 47996 | E34: Vendor No.10 | G34: TLH-STORM-1031-SW18 | H34: 2018-10-11 | I34: 2018-10-31 | J34: =IF(AND(H34>='A - Contractor Summary'!$C$36,I34<='A - Contractor Summary'!$C$42),"Yes","No") -> No | K34: =VLOOKUP($C34,'C.1 - Rate Sheets'!H:I,2,FALSE) -> 4.75 | R34: 16 | S34: 16 | T34: 16 | U34: 16 | V34: 16 | AS34: 80 | AT34: 380 | AU34: 380 | AV34: 0 | AW34: 0 | AX34: 0
B35: 18 | C35: Air Compressor | D35: 17598 | E35: Vendor No.10 | G35: TLH-STORM-1031-SW18 | H35: 2018-10-11 | I35: 2018-10-31 | J35: =IF(AND(H35>='A - Contractor Summary'!$C$36,I35<='A - Contractor Summary'!$C$42),"Yes","No") -> No | K35: =VLOOKUP($C35,'C.1 - Rate Sheets'!H:I,2,FALSE) -> 12.21 | R35: 16 | S35: 16 | T35: 16 | U35: 16 | V35: 16 | AS35: 80 | AT35: 976.8 | AU35: 976.8 | AV35: 0 | AW35: 0 | AX35: 0
B36: 19 | C36: Air Compressor | D36: 35542 | E36: Vendor No.10 | G36: TLH-STORM-1031-SW18 | H36: 2018-10-11 | I36: 2018-10-31 | J36: =IF(AND(H36>='A - Contractor Summary'!$C$36,I36<='A - Contractor Summary'!$C$42),"Yes","No") -> No | K36: =VLOOKUP($C36,'C.1 - Rate Sheets'!H:I,2,FALSE) -> 12.21 | R36: 16 | S36: 16 | T36: 16 | U36: 16 | V36: 16 | AS36: 80 | AT36: 976.8 | AU36: 976.8 | AV36: 0 | AW36: 0 | AX36: 0
B37: 20 | C37: Pickup Truck 4x4 | D37: 339085 | E37: Vendor No.10 | G37: TLH-STORM-1031-SW18 | H37: 2018-10-11 | I37: 2018-10-31 | J37: =IF(AND(H37>='A - Contractor Summary'!$C$36,I37<='A - Contractor Summary'!$C$42),"Yes","No") -> No | K37: =VLOOKUP($C37,'C.1 - Rate Sheets'!H:I,2,FALSE) -> 23.27 | R37: 16 | S37: 16 | T37: 16 | U37: 16 | V37: 16 | AS37: 80 | AT37: 1861.6 | AU37: 1861.6 | AV37: 0 | AW37: 0 | AX37: 0
B38: 21 | C38: Bucket 4x4 to 55' Mat. Handler | D38: 342969 | E38: Vendor No.10 | G38: TLH-STORM-1031-SW18 | H38: 2018-10-11 | I38: 2018-10-31 | J38: =IF(AND(H38>='A - Contractor Summary'!$C$36,I38<='A - Contractor Summary'!$C$42),"Yes","No") -> No | K38: =VLOOKUP($C38,'C.1 - Rate Sheets'!H:I,2,FALSE) -> 56.99 | R38: 16 | S38: 16 | T38: 16 | U38: 16 | V38: 16 | AS38: 80 | AT38: 4559.2 | AU38: 4559.2 | AV38: 0 | AW38: 0 | AX38: 0
B39: 22 | C39: Bucket 4x4 to 55' Mat. Handler | D39: 316104 | E39: Vendor No.10 | G39: TLH-STORM-1031-SW18 | H39: 2018-10-11 | I39: 2018-10-31 | J39: =IF(AND(H39>='A - Contractor Summary'!$C$36,I39<='A - Contractor Summary'!$C$42),"Yes","No") -> No | K39: =VLOOKUP($C39,'C.1 - Rate Sheets'!H:I,2,FALSE) -> 56.99 | R39: 16 | S39: 16 | T39: 16 | U39: 16 | V39: 16 | AS39: 80 | AT39: 4559.2 | AU39: 4559.2 | AV39: 0 | AW39: 0 | AX39: 0
B40: 23 | C40: Digger Derrick 4x4 to 10,000 LBS | D40: 329064 | E40: Vendor No.10 | G40: TLH-STORM-1031-SW18 | H40: 2018-10-11 | I40: 2018-10-31 | J40: =IF(AND(H40>='A - Contractor Summary'!$C$36,I40<='A - Contractor Summary'!$C$42),"Yes","No") -> No | K40: =VLOOKUP($C40,'C.1 - Rate Sheets'!H:I,2,FALSE) -> 64.45 | R40: 16 | S40: 16 | T40: 16 | U40: 16 | V40: 16 | AS40: 80 | AT40: 5156 | AU40: 5156 | AV40: 0 | AW40: 0 | AX40: 0
B41: 24 | C41: Pole Trailer | D41: 49867 | E41: Vendor No.10 | G41: TLH-STORM-1031-SW18 | H41: 2018-10-11 | I41: 2018-10-31 | J41: =IF(AND(H41>='A - Contractor Summary'!$C$36,I41<='A - Contractor Summary'!$C$42),"Yes","No") -> No | K41: =VLOOKUP($C41,'C.1 - Rate Sheets'!H:I,2,FALSE) -> 4.75 | R41: 16 | S41: 16 | T41: 16 | U41: 16 | V41: 16 | AS41: 80 | AT41: 380 | AU41: 380 | AV41: 0 | AW41: 0 | AX41: 0
B42: 25 | C42: Pickup Truck 4x4 | D42: 315565 | E42: Vendor No.10 | G42: TLH-STORM-1031-SW18 | H42: 2018-10-11 | I42: 2018-10-31 | J42: =IF(AND(H42>='A - Contractor Summary'!$C$36,I42<='A - Contractor Summary'!$C$42),"Yes","No") -> No | K42: =VLOOKUP($C42,'C.1 - Rate Sheets'!H:I,2,FALSE) -> 23.27 | R42: 16 | S42: 16 | T42: 16 | U42: 16 | V42: 16 | AS42: 80 | AT42: 1861.6 | AU42: 1861.6 | AV42: 0 | AW42: 0 | AX42: 0
B43: 26 | C43: Bucket 2x4 to 55' Mat. Handler | D43: 326835 | E43: Vendor No.10 | G43: TLH-STORM-1031-SW18 | H43: 2018-10-11 | I43: 2018-10-31 | J43: =IF(AND(H43>='A - Contractor Summary'!$C$36,I43<='A - Contractor Summary'!$C$42),"Yes","No") -> No | K43: =VLOOKUP($C43,'C.1 - Rate Sheets'!H:I,2,FALSE) -> 51.83 | R43: 16 | S43: 16 | T43: 16 | U43: 16 | V43: 16 | AS43: 80 | AT43: 4146.4 | AU43: =AT43-AV43 -> 4146.4 | AV43: 0 | AW43: 0 | AX43: 0
B44: 27 | C44: Bucket 4x4 to 55' Mat. Handler | D44: 327564 | E44: Vendor No.10 | G44: TLH-STORM-1031-SW18 | H44: 2018-10-11 | I44: 2018-10-31 | J44: =IF(AND(H44>='A - Contractor Summary'!$C$36,I44<='A - Contractor Summary'!$C$42),"Yes","No") -> No | K44: =VLOOKUP($C44,'C.1 - Rate Sheets'!H:I,2,FALSE) -> 56.99 | R44: 16 | S44: 16 | T44: 16 | U44: 16 | V44: 16 | AS44: 80 | AT44: 4559.2 | AU44: 4559.2 | AV44: 0 | AW44: 0 | AX44: 0
B45: 28 | C45: Digger Derrick 4x4 to 10,000 LBS | D45: 329005 | E45: Vendor No.10 | G45: TLH-STORM-1031-SW18 | H45: 2018-10-11 | I45: 2018-10-31 | J45: =IF(AND(H45>='A - Contractor Summary'!$C$36,I45<='A - Contractor Summary'!$C$42),"Yes","No") -> No | K45: =VLOOKUP($C45,'C.1 - Rate Sheets'!H:I,2,FALSE) -> 64.45 | R45: 16 | S45: 16 | T45: 16 | U45: 16 | V45: 16 | AS45: 80 | AT45: 5156 | AU45: 5156 | AV45: 0 | AW45: 0 | AX45: 0
B46: 29 | C46: Pole Trailer | D46: 325625 | E46: Vendor No.10 | G46: TLH-STORM-1031-SW18 | H46: 2018-10-11 | I46: 2018-10-31 | J46: =IF(AND(H46>='A - Contractor Summary'!$C$36,I46<='A - Contractor Summary'!$C$42),"Yes","No") -> No | K46: =VLOOKUP($C46,'C.1 - Rate Sheets'!H:I,2,FALSE) -> 4.75 | R46: 16 | S46: 16 | T46: 16 | U46: 16 | V46: 16 | AS46: 80 | AT46: 380 | AU46: 380 | AV46: 0 | AW46: 0 | AX46: 0
B47: 30 | C47: Air Compressor | D47: 349813 | E47: Vendor No.10 | G47: TLH-STORM-1031-SW18 | H47: 2018-10-11 | I47: 2018-10-31 | J47: =IF(AND(H47>='A - Contractor Summary'!$C$36,I47<='A - Contractor Summary'!$C$42),"Yes","No") -> No | K47: =VLOOKUP($C47,'C.1 - Rate Sheets'!H:I,2,FALSE) -> 12.21 | R47: 16 | S47: 16 | T47: 16 | U47: 16 | V47: 16 | AS47: 80 | AT47: 976.8 | AU47: 976.8 | AV47: 0 | AW47: 0 | AX47: 0
B48: 31 | C48: Pickup Truck 4x4 | D48: 342526 | E48: Vendor No.10 | G48: TLH-STORM-1031-SW18 | H48: 2018-10-11 | I48: 2018-10-31 | J48: =IF(AND(H48>='A - Contractor Summary'!$C$36,I48<='A - Contractor Summary'!$C$42),"Yes","No") -> No | K48: =VLOOKUP($C48,'C.1 - Rate Sheets'!H:I,2,FALSE) -> 23.27 | W48: 16 | X48: 16 | Y48: 16 | Z48: 16 | AA48: 16 | AB48: 16 | AC48: 16 | AS48: 112 | AT48: 2606.24 | AU48: 2606.24 | AV48: 0 | AW48: 0 | AX48: 0
B49: 32 | C49: Pickup Truck 4x4 | D49: 329581 | E49: Vendor No.10 | G49: TLH-STORM-1031-SW18 | H49: 2018-10-11 | I49: 2018-10-31 | J49: =IF(AND(H49>='A - Contractor Summary'!$C$36,I49<='A - Contractor Summary'!$C$42),"Yes","No") -> No | K49: =VLOOKUP($C49,'C.1 - Rate Sheets'!H:I,2,FALSE) -> 23.27 | W49: 16 | X49: 16 | Y49: 16 | Z49: 16 | AA49: 16 | AS49: 80 | AT49: 1861.6 | AU49: 1861.6 | AV49: 0 | AW49: 0 | AX49: 0
B50: 33 | C50: Pickup Truck 4x4 | D50: 315583 | E50: Vendor No.10 | G50: TLH-STORM-1031-SW18 | H50: 2018-10-11 | I50: 2018-10-31 | J50: =IF(AND(H50>='A - Contractor Summary'!$C$36,I50<='A - Contractor Summary'!$C$42),"Yes","No") -> No | K50: =VLOOKUP($C50,'C.1 - Rate Sheets'!H:I,2,FALSE) -> 23.27 | W50: 16 | X50: 16 | Y50: 16 | Z50: 16 | AA50: 16 | AB50: 16 | AC50: 16 | AS50: =SUM(L50:AR50) -> 112 | AT50: =AS50*K50 -> 2606.24 | AU50: 2606.24 | AV50: 0 | AW50: 0 | AX50: 0
B51: 34 | C51: Bucket 4x4 to 55' Mat. Handler | D51: 318105 | E51: Vendor No.10 | G51: TLH-STORM-1031-SW18 | H51: 2018-10-11 | I51: 2018-10-31 | J51: =IF(AND(H51>='A - Contractor Summary'!$C$36,I51<='A - Contractor Summary'!$C$42),"Yes","No") -> No | K51: =VLOOKUP($C51,'C.1 - Rate Sheets'!H:I,2,FALSE) -> 56.99 | W51: 16 | X51: 16 | Y51: 16 | Z51: 16 | AA51: 16 | AB51: 16 | AC51: 16 | AS51: 112 | AT51: 6382.88 | AU51: 6382.88 | AV51: 0 | AW51: 0 | AX51: 0
B52: 35 | C52: Bucket 2x4 to 55' Mat. Handler | D52: 35677 | E52: Vendor No.10 | G52: TLH-STORM-1031-SW18 | H52: 2018-10-11 | I52: 2018-10-31 | J52: =IF(AND(H52>='A - Contractor Summary'!$C$36,I52<='A - Contractor Summary'!$C$42),"Yes","No") -> No | K52: =VLOOKUP($C52,'C.1 - Rate Sheets'!H:I,2,FALSE) -> 51.83 | W52: 16 | X52: 16 | Y52: 16 | Z52: 16 | AA52: 16 | AB52: 16 | AC52: 16 | AS52: 112 | AT52: 5804.96 | AU52: 5804.96 | AV52: 0 | AW52: 0 | AX52: 0
B53: 36 | C53: Digger Derrick 4x4 to 10,000 LBS | D53: 341426 | E53: Vendor No.10 | G53: TLH-STORM-1031-SW18 | H53: 2018-10-11 | I53: 2018-10-31 | J53: =IF(AND(H53>='A - Contractor Summary'!$C$36,I53<='A - Contractor Summary'!$C$42),"Yes","No") -> No | K53: =VLOOKUP($C53,'C.1 - Rate Sheets'!H:I,2,FALSE) -> 64.45 | W53: 16 | X53: 16 | Y53: 16 | Z53: 16 | AA53: 16 | AB53: 16 | AC53: 16 | AS53: 112 | AT53: 7218.4 | AU53: 7218.4 | AV53: 0 | AW53: 0 | AX53: 0
B54: 37 | C54: Pole Trailer | D54: 40547 | E54: Vendor No.10 | G54: TLH-STORM-1031-SW18 | H54: 2018-10-11 | I54: 2018-10-31 | J54: =IF(AND(H54>='A - Contractor Summary'!$C$36,I54<='A - Contractor Summary'!$C$42),"Yes","No") -> No | K54: =VLOOKUP($C54,'C.1 - Rate Sheets'!H:I,2,FALSE) -> 4.75 | W54: 16 | X54: 16 | Y54: 16 | Z54: 16 | AA54: 16 | AB54: 16 | AC54: 16 | AS54: 112 | AT54: 532 | AU54: 532 | AV54: 0 | AW54: 0 | AX54: 0
B55: 38 | C55: Pickup Truck 4x4 | D55: 343161 | E55: Vendor No.10 | G55: TLH-STORM-1031-SW18 | H55: 2018-10-11 | I55: 2018-10-31 | J55: =IF(AND(H55>='A - Contractor Summary'!$C$36,I55<='A - Contractor Summary'!$C$42),"Yes","No") -> No | K55: =VLOOKUP($C55,'C.1 - Rate Sheets'!H:I,2,FALSE) -> 23.27 | W55: 16 | X55: 16 | Y55: 16 | Z55: 16 | AA55: 16 | AB55: 16 | AC55: 16 | AS55: 112 | AT55: 2606.24 | AU55: 2606.24 | AV55: 0 | AW55: 0 | AX55: 0
B56: 39 | C56: Bucket 4x4 to 55' Mat. Handler | D56: 326846 | E56: Vendor No.10 | G56: TLH-STORM-1031-SW18 | H56: 2018-10-11 | I56: 2018-10-31 | J56: =IF(AND(H56>='A - Contractor Summary'!$C$36,I56<='A - Contractor Summary'!$C$42),"Yes","No") -> No | K56: =VLOOKUP($C56,'C.1 - Rate Sheets'!H:I,2,FALSE) -> 56.99 | W56: 16 | X56: 16 | Y56: 16 | Z56: 16 | AA56: 16 | AB56: 16 | AC56: 16 | AS56: 112 | AT56: 6382.88 | AU56: 6382.88 | AV56: 0 | AW56: 0 | AX56: 0
B57: 40 | C57: Bucket 4x4 to 55' Mat. Handler | D57: 327563 | E57: Vendor No.10 | G57: TLH-STORM-1031-SW18 | H57: 2018-10-11 | I57: 2018-10-31 | J57: =IF(AND(H57>='A - Contractor Summary'!$C$36,I57<='A - Contractor Summary'!$C$42),"Yes","No") -> No | K57: =VLOOKUP($C57,'C.1 - Rate Sheets'!H:I,2,FALSE) -> 56.99 | W57: 16 | X57: 16 | Y57: 16 | Z57: 16 | AA57: 16 | AB57: 16 | AC57: 16 | AS57: 112 | AT57: 6382.88 | AU57: 6382.88 | AV57: 0 | AW57: 0 | AX57: 0
B58: 41 | C58: Digger Derrick 4x4 to 10,000 LBS | D58: 326565 | E58: Vendor No.10 | G58: TLH-STORM-1031-SW18 | H58: 2018-10-11 | I58: 2018-10-31 | J58: =IF(AND(H58>='A - Contractor Summary'!$C$36,I58<='A - Contractor Summary'!$C$42),"Yes","No") -> No | K58: =VLOOKUP($C58,'C.1 - Rate Sheets'!H:I,2,FALSE) -> 64.45 | W58: 16 | X58: 16 | Y58: 16 | Z58: 16 | AA58: 16 | AB58: 16 | AC58: 16 | AS58: 112 | AT58: 7218.4 | AU58: 7218.4 | AV58: 0 | AW58: 0 | AX58: 0
B59: 42 | C59: Rear Easement Bucket (Port. & Off Rd.) | D59: 339681 | E59: Vendor No.10 | G59: TLH-STORM-1031-SW18 | H59: 2018-10-11 | I59: 2018-10-31 | J59: =IF(AND(H59>='A - Contractor Summary'!$C$36,I59<='A - Contractor Summary'!$C$42),"Yes","No") -> No | K59: =VLOOKUP($C59,'C.1 - Rate Sheets'!H:I,2,FALSE) -> 57.41 | W59: 16 | X59: 16 | Y59: 16 | Z59: 16 | AA59: 16 | AB59: 16 | AC59: 16 | AS59: 112 | AT59: 6429.92 | AU59: 6429.92 | AV59: 0 | AW59: 0 | AX59: 0
B60: 43 | C60: Pole Trailer | D60: 47996 | E60: Vendor No.10 | G60: TLH-STORM-1031-SW18 | H60: 2018-10-11 | I60: 2018-10-31 | J60: =IF(AND(H60>='A - Contractor Summary'!$C$36,I60<='A - Contractor Summary'!$C$42),"Yes","No") -> No | K60: =VLOOKUP($C60,'C.1 - Rate Sheets'!H:I,2,FALSE) -> 4.75 | W60: 16 | X60: 16 | Y60: 16 | Z60: 16 | AA60: 16 | AB60: 16 | AC60: 16 | AS60: 112 | AT60: 532 | AU60: 532 | AV60: 0 | AW60: 0 | AX60: 0
B61: 44 | C61: Air Compressor | D61: 17598 | E61: Vendor No.10 | G61: TLH-STORM-1031-SW18 | H61: 2018-10-11 | I61: 2018-10-31 | J61: =IF(AND(H61>='A - Contractor Summary'!$C$36,I61<='A - Contractor Summary'!$C$42),"Yes","No") -> No | K61: =VLOOKUP($C61,'C.1 - Rate Sheets'!H:I,2,FALSE) -> 12.21 | W61: 16 | X61: 16 | Y61: 16 | Z61: 16 | AA61: 16 | AB61: 16 | AC61: 16 | AS61: 112 | AT61: 1367.52 | AU61: 1367.52 | AV61: 0 | AW61: 0 | AX61: 0
B62: 45 | C62: Pickup Truck 4x4 | D62: 339085 | E62: Vendor No.10 | G62: TLH-STORM-1031-SW18 | H62: 2018-10-11 | I62: 2018-10-31 | J62: =IF(AND(H62>='A - Contractor Summary'!$C$36,I62<='A - Contractor Summary'!$C$42),"Yes","No") -> No | K62: =VLOOKUP($C62,'C.1 - Rate Sheets'!H:I,2,FALSE) -> 23.27 | W62: 16 | X62: 16 | Y62: 16 | Z62: 16 | AA62: 16 | AB62: 16 | AC62: 16 | AS62: 112 | AT62: 2606.24 | AU62: 2606.24 | AV62: 0 | AW62: 0 | AX62: 0
B63: 46 | C63: Bucket 4x4 to 55' Mat. Handler | D63: 342969 | E63: Vendor No.10 | G63: TLH-STORM-1031-SW18 | H63: 2018-10-11 | I63: 2018-10-31 | J63: =IF(AND(H63>='A - Contractor Summary'!$C$36,I63<='A - Contractor Summary'!$C$42),"Yes","No") -> No | K63: =VLOOKUP($C63,'C.1 - Rate Sheets'!H:I,2,FALSE) -> 56.99 | W63: 16 | X63: 16 | Y63: 16 | Z63: 16 | AA63: 16 | AB63: 16 | AC63: 16 | AS63: 112 | AT63: 6382.88 | AU63: 6382.88 | AV63: 0 | AW63: 0 | AX63: 0
B64: 47 | C64: Bucket 4x4 to 55' Mat. Handler | D64: 316104 | E64: Vendor No.10 | G64: TLH-STORM-1031-SW18 | H64: 2018-10-11 | I64: 2018-10-31 | J64: =IF(AND(H64>='A - Contractor Summary'!$C$36,I64<='A - Contractor Summary'!$C$42),"Yes","No") -> No | K64: =VLOOKUP($C64,'C.1 - Rate Sheets'!H:I,2,FALSE) -> 56.99 | W64: 16 | X64: 16 | Y64: 16 | Z64: 16 | AA64: 16 | AB64: 16 | AC64: 16 | AS64: 112 | AT64: 6382.88 | AU64: 6382.88 | AV64: 0 | AW64: 0 | AX64: 0
B65: 48 | C65: Digger Derrick 4x4 to 10,000 LBS | D65: 329064 | E65: Vendor No.10 | G65: TLH-STORM-1031-SW18 | H65: 2018-10-11 | I65: 2018-10-31 | J65: =IF(AND(H65>='A - Contractor Summary'!$C$36,I65<='A - Contractor Summary'!$C$42),"Yes","No") -> No | K65: =VLOOKUP($C65,'C.1 - Rate Sheets'!H:I,2,FALSE) -> 64.45 | W65: 16 | X65: 16 | Y65: 16 | Z65: 16 | AA65: 16 | AB65: 16 | AC65: 16 | AS65: 112 | AT65: 7218.4 | AU65: 7218.4 | AV65: 0 | AW65: 0 | AX65: 0
B66: 49 | C66: Air Compressor | D66: 35542 | E66: Vendor No.10 | G66: TLH-STORM-1031-SW18 | H66: 2018-10-11 | I66: 2018-10-31 | J66: =IF(AND(H66>='A - Contractor Summary'!$C$36,I66<='A - Contractor Summary'!$C$42),"Yes","No") -> No | K66: =VLOOKUP($C66,'C.1 - Rate Sheets'!H:I,2,FALSE) -> 12.21 | W66: 16 | X66: 16 | Y66: 16 | Z66: 16 | AA66: 16 | AB66: 16 | AC66: 16 | AS66: 112 | AT66: 1367.52 | AU66: 1367.52 | AV66: 0 | AW66: 0 | AX66: 0
B67: 50 | C67: Pole Trailer | D67: 49867 | E67: Vendor No.10 | G67: TLH-STORM-1031-SW18 | H67: 2018-10-11 | I67: 2018-10-31 | J67: =IF(AND(H67>='A - Contractor Summary'!$C$36,I67<='A - Contractor Summary'!$C$42),"Yes","No") -> No | K67: =VLOOKUP($C67,'C.1 - Rate Sheets'!H:I,2,FALSE) -> 4.75 | W67: 16 | X67: 16 | Y67: 16 | Z67: 16 | AA67: 16 | AB67: 16 | AC67: 16 | AS67: 112 | AT67: 532 | AU67: 532 | AV67: 0 | AW67: 0 | AX67: 0
B68: 51 | C68: Pickup Truck 4x4 | D68: 315565 | E68: Vendor No.10 | G68: TLH-STORM-1031-SW18 | H68: 2018-10-11 | I68: 2018-10-31 | J68: =IF(AND(H68>='A - Contractor Summary'!$C$36,I68<='A - Contractor Summary'!$C$42),"Yes","No") -> No | K68: =VLOOKUP($C68,'C.1 - Rate Sheets'!H:I,2,FALSE) -> 23.27 | W68: 16 | X68: 16 | Y68: 16 | Z68: 16 | AA68: 16 | AB68: 16 | AC68: 16 | AS68: 112 | AT68: 2606.24 | AU68: 2606.24 | AV68: 0 | AW68: 0 | AX68: 0
B69: 52 | C69: Bucket 2x4 to 55' Mat. Handler | D69: 326835 | E69: Vendor No.10 | G69: TLH-STORM-1031-SW18 | H69: 2018-10-11 | I69: 2018-10-31 | J69: =IF(AND(H69>='A - Contractor Summary'!$C$36,I69<='A - Contractor Summary'!$C$42),"Yes","No") -> No | K69: =VLOOKUP($C69,'C.1 - Rate Sheets'!H:I,2,FALSE) -> 51.83 | W69: 16 | X69: 16 | Y69: 16 | Z69: 16 | AA69: 16 | AB69: 16 | AC69: 16 | AS69: 112 | AT69: 5804.96 | AU69: 5804.96 | AV69: 0 | AW69: 0 | AX69: 0
B70: 53 | C70: Bucket 4x4 to 55' Mat. Handler | D70: 327564 | E70: Vendor No.10 | G70: TLH-STORM-1031-SW18 | H70: 2018-10-11 | I70: 2018-10-31 | J70: =IF(AND(H70>='A - Contractor Summary'!$C$36,I70<='A - Contractor Summary'!$C$42),"Yes","No") -> No | K70: =VLOOKUP($C70,'C.1 - Rate Sheets'!H:I,2,FALSE) -> 56.99 | W70: 16 | X70: 16 | Y70: 16 | Z70: 16 | AA70: 16 | AB70: 16 | AC70: 16 | AS70: 112 | AT70: 6382.88 | AU70: 6382.88 | AV70: 0 | AW70: 0 | AX70: 0
B71: 54 | C71: Digger Derrick 4x4 to 10,000 LBS | D71: 329005 | E71: Vendor No.10 | G71: TLH-STORM-1031-SW18 | H71: 2018-10-11 | I71: 2018-10-31 | J71: =IF(AND(H71>='A - Contractor Summary'!$C$36,I71<='A - Contractor Summary'!$C$42),"Yes","No") -> No | K71: =VLOOKUP($C71,'C.1 - Rate Sheets'!H:I,2,FALSE) -> 64.45 | W71: 16 | X71: 16 | Y71: 16 | Z71: 16 | AA71: 16 | AB71: 16 | AC71: 16 | AS71: 112 | AT71: 7218.4 | AU71: 7218.4 | AV71: 0 | AW71: 0 | AX71: 0
B72: 55 | C72: Pole Trailer | D72: 325625 | E72: Vendor No.10 | G72: TLH-STORM-1031-SW18 | H72: 2018-10-11 | I72: 2018-10-31 | J72: =IF(AND(H72>='A - Contractor Summary'!$C$36,I72<='A - Contractor Summary'!$C$42),"Yes","No") -> No | K72: =VLOOKUP($C72,'C.1 - Rate Sheets'!H:I,2,FALSE) -> 4.75 | W72: 16 | X72: 16 | Y72: 16 | Z72: 16 | AA72: 16 | AB72: 16 | AC72: 16 | AS72: 112 | AT72: 532 | AU72: 532 | AV72: 0 | AW72: 0 | AX72: 0
B73: 56 | C73: Air Compressor | D73: 349813 | E73: Vendor No.10 | G73: TLH-STORM-1031-SW18 | H73: 2018-10-11 | I73: 2018-10-31 | J73: =IF(AND(H73>='A - Contractor Summary'!$C$36,I73<='A - Contractor Summary'!$C$42),"Yes","No") -> No | K73: =VLOOKUP($C73,'C.1 - Rate Sheets'!H:I,2,FALSE) -> 12.21 | W73: 16 | X73: 16 | Y73: 16 | Z73: 16 | AA73: 16 | AB73: 16 | AC73: 16 | AS73: 112 | AT73: 1367.52 | AU73: 1367.52 | AV73: 0 | AW73: 0 | AX73: 0
B74: 57 | C74: Pickup Truck 4x4 | D74: 342526 | E74: Vendor No.10 | G74: TLH-STORM-1031-SW18 | H74: 2018-10-11 | I74: 2018-10-31 | J74: =IF(AND(H74>='A - Contractor Summary'!$C$36,I74<='A - Contractor Summary'!$C$42),"Yes","No") -> No | K74: =VLOOKUP($C74,'C.1 - Rate Sheets'!H:I,2,FALSE) -> 23.27 | AD74: 16 | AE74: 16 | AF74: 12 | AS74: 44 | AT74: 1023.88 | AU74: 1023.88 | AV74: 0 | AW74: 0 | AX74: 0
B75: 58 | C75: Pickup Truck 4x4 | D75: 315583 | E75: Vendor No.10 | G75: TLH-STORM-1031-SW18 | H75: 2018-10-11 | I75: 2018-10-31 | J75: =IF(AND(H75>='A - Contractor Summary'!$C$36,I75<='A - Contractor Summary'!$C$42),"Yes","No") -> No | K75: =VLOOKUP($C75,'C.1 - Rate Sheets'!H:I,2,FALSE) -> 23.27 | AD75: 16 | AE75: 16 | AS75: 32 | AT75: 744.64 | AU75: 744.64 | AV75: 0 | AW75: 0 | AX75: 0
B76: 59 | C76: Bucket 4x4 to 55' Mat. Handler | D76: 316105 | E76: Vendor No.10 | G76: TLH-STORM-1031-SW18 | H76: 2018-10-11 | I76: 2018-10-31 | J76: =IF(AND(H76>='A - Contractor Summary'!$C$36,I76<='A - Contractor Summary'!$C$42),"Yes","No") -> No | K76: =VLOOKUP($C76,'C.1 - Rate Sheets'!H:I,2,FALSE) -> 56.99 | AD76: 16 | AE76: 16 | AS76: 32 | AT76: 1823.68 | AU76: 1823.68 | AV76: 0 | AW76: 0 | AX76: 0
B77: 60 | C77: Bucket 2x4 to 55' Mat. Handler | D77: 35677 | E77: Vendor No.10 | G77: TLH-STORM-1031-SW18 | H77: 2018-10-11 | I77: 2018-10-31 | J77: =IF(AND(H77>='A - Contractor Summary'!$C$36,I77<='A - Contractor Summary'!$C$42),"Yes","No") -> No | K77: =VLOOKUP($C77,'C.1 - Rate Sheets'!H:I,2,FALSE) -> 51.83 | AD77: 16 | AE77: 16 | AS77: 32 | AT77: 1658.56 | AU77: 1658.56 | AV77: 0 | AW77: 0 | AX77: 0
B78: 61 | C78: Digger Derrick 4x4 to 10,000 LBS | D78: 341428 | E78: Vendor No.10 | G78: TLH-STORM-1031-SW18 | H78: 2018-10-11 | I78: 2018-10-31 | J78: =IF(AND(H78>='A - Contractor Summary'!$C$36,I78<='A - Contractor Summary'!$C$42),"Yes","No") -> No | K78: =VLOOKUP($C78,'C.1 - Rate Sheets'!H:I,2,FALSE) -> 64.45 | AD78: 16 | AE78: 16 | AS78: 32 | AT78: 2062.4 | AU78: 2062.4 | AV78: 0 | AW78: 0 | AX78: 0
B79: 62 | C79: Pole Trailer | D79: 40547 | E79: Vendor No.10 | G79: TLH-STORM-1031-SW18 | H79: 2018-10-11 | I79: 2018-10-31 | J79: =IF(AND(H79>='A - Contractor Summary'!$C$36,I79<='A - Contractor Summary'!$C$42),"Yes","No") -> No | K79: =VLOOKUP($C79,'C.1 - Rate Sheets'!H:I,2,FALSE) -> 4.75 | AD79: 16 | AE79: 16 | AS79: 32 | AT79: 152 | AU79: 152 | AV79: 0 | AW79: 0 | AX79: 0
B80: 63 | C80: Pickup Truck 4x4 | D80: 343161 | E80: Vendor No.10 | G80: TLH-STORM-1031-SW18 | H80: 2018-10-11 | I80: 2018-10-31 | J80: =IF(AND(H80>='A - Contractor Summary'!$C$36,I80<='A - Contractor Summary'!$C$42),"Yes","No") -> No | K80: =VLOOKUP($C80,'C.1 - Rate Sheets'!H:I,2,FALSE) -> 23.27 | AD80: 16 | AE80: 16 | AF80: 12 | AS80: 44 | AT80: 1023.88 | AU80: 1023.88 | AV80: 0 | AW80: 0 | AX80: 0
B81: 64 | C81: Bucket 4x4 to 55' Mat. Handler | D81: 326846 | E81: Vendor No.10 | G81: TLH-STORM-1031-SW18 | H81: 2018-10-11 | I81: 2018-10-31 | J81: =IF(AND(H81>='A - Contractor Summary'!$C$36,I81<='A - Contractor Summary'!$C$42),"Yes","No") -> No | K81: =VLOOKUP($C81,'C.1 - Rate Sheets'!H:I,2,FALSE) -> 56.99 | AD81: 16 | AE81: 16 | AF81: 12 | AS81: 44 | AT81: 2507.56 | AU81: 2507.56 | AV81: 0 | AW81: 0 | AX81: 0
B82: 65 | C82: Bucket 4x4 to 55' Mat. Handler | D82: 327563 | E82: Vendor No.10 | G82: TLH-STORM-1031-SW18 | H82: 2018-10-11 | I82: 2018-10-31 | J82: =IF(AND(H82>='A - Contractor Summary'!$C$36,I82<='A - Contractor Summary'!$C$42),"Yes","No") -> No | K82: =VLOOKUP($C82,'C.1 - Rate Sheets'!H:I,2,FALSE) -> 56.99 | AD82: 16 | AE82: 16 | AF82: 12 | AS82: =SUM(L82:AR82) -> 44 | AT82: =AS82*K82 -> 2507.56 | AU82: 2507.56 | AV82: 0 | AW82: 0 | AX82: 0
B83: 66 | C83: Digger Derrick 4x4 to 10,000 LBS | D83: 326565 | E83: Vendor No.10 | G83: TLH-STORM-1031-SW18 | H83: 2018-10-11 | I83: 2018-10-31 | J83: =IF(AND(H83>='A - Contractor Summary'!$C$36,I83<='A - Contractor Summary'!$C$42),"Yes","No") -> No | K83: =VLOOKUP($C83,'C.1 - Rate Sheets'!H:I,2,FALSE) -> 64.45 | AD83: 16 | AE83: 16 | AF83: 12 | AS83: 44 | AT83: 2835.8 | AU83: 2835.8 | AV83: 0 | AW83: 0 | AX83: 0
B84: 67 | C84: Rear Easement Bucket (Port. & Off Rd.) | D84: 339681 | E84: Vendor No.10 | G84: TLH-STORM-1031-SW18 | H84: 2018-10-11 | I84: 2018-10-31 | J84: =IF(AND(H84>='A - Contractor Summary'!$C$36,I84<='A - Contractor Summary'!$C$42),"Yes","No") -> No | K84: =VLOOKUP($C84,'C.1 - Rate Sheets'!H:I,2,FALSE) -> 57.41 | AD84: 16 | AE84: 16 | AF84: 12 | AS84: 44 | AT84: 2526.04 | AU84: 2526.04 | AV84: 0 | AW84: 0 | AX84: 0
B85: 68 | C85: Pole Trailer | D85: 47996 | E85: Vendor No.10 | G85: TLH-STORM-1031-SW18 | H85: 2018-10-11 | I85: 2018-10-31 | J85: =IF(AND(H85>='A - Contractor Summary'!$C$36,I85<='A - Contractor Summary'!$C$42),"Yes","No") -> No | K85: =VLOOKUP($C85,'C.1 - Rate Sheets'!H:I,2,FALSE) -> 4.75 | AD85: 16 | AE85: 16 | AF85: 12 | AS85: 44 | AT85: 209 | AU85: 209 | AV85: 0 | AW85: 0 | AX85: 0
B86: 69 | C86: Air Compressor | D86: 17598 | E86: Vendor No.10 | G86: TLH-STORM-1031-SW18 | H86: 2018-10-11 | I86: 2018-10-31 | J86: =IF(AND(H86>='A - Contractor Summary'!$C$36,I86<='A - Contractor Summary'!$C$42),"Yes","No") -> No | K86: =VLOOKUP($C86,'C.1 - Rate Sheets'!H:I,2,FALSE) -> 12.21 | AD86: 16 | AE86: 16 | AF86: 12 | AS86: 44 | AT86: 537.24 | AU86: 537.24 | AV86: 0 | AW86: 0 | AX86: 0
B87: 70 | C87: Pickup Truck 4x4 | D87: 339085 | E87: Vendor No.10 | G87: TLH-STORM-1031-SW18 | H87: 2018-10-11 | I87: 2018-10-31 | J87: =IF(AND(H87>='A - Contractor Summary'!$C$36,I87<='A - Contractor Summary'!$C$42),"Yes","No") -> No | K87: =VLOOKUP($C87,'C.1 - Rate Sheets'!H:I,2,FALSE) -> 23.27 | AD87: 16 | AE87: 16 | AF87: 12 | AS87: 44 | AT87: 1023.88 | AU87: 1023.88 | AV87: 0 | AW87: 0 | AX87: 0
B88: 71 | C88: Bucket 4x4 to 55' Mat. Handler | D88: 342969 | E88: Vendor No.10 | G88: TLH-STORM-1031-SW18 | H88: 2018-10-11 | I88: 2018-10-31 | J88: =IF(AND(H88>='A - Contractor Summary'!$C$36,I88<='A - Contractor Summary'!$C$42),"Yes","No") -> No | K88: =VLOOKUP($C88,'C.1 - Rate Sheets'!H:I,2,FALSE) -> 56.99 | AD88: 16 | AE88: 16 | AF88: 12 | AS88: 44 | AT88: 2507.56 | AU88: 2507.56 | AV88: 0 | AW88: 0 | AX88: 0
B89: 72 | C89: Bucket 4x4 to 55' Mat. Handler | D89: 316104 | E89: Vendor No.10 | G89: TLH-STORM-1031-SW18 | H89: 2018-10-11 | I89: 2018-10-31 | J89: =IF(AND(H89>='A - Contractor Summary'!$C$36,I89<='A - Contractor Summary'!$C$42),"Yes","No") -> No | K89: =VLOOKUP($C89,'C.1 - Rate Sheets'!H:I,2,FALSE) -> 56.99 | AD89: 16 | AE89: 16 | AF89: 12 | AS89: 44 | AT89: 2507.56 | AU89: 2507.56 | AV89: 0 | AW89: 0 | AX89: 0
B90: 73 | C90: Digger Derrick 4x4 to 10,000 LBS | D90: 329064 | E90: Vendor No.10 | G90: TLH-STORM-1031-SW18 | H90: 2018-10-11 | I90: 2018-10-31 | J90: =IF(AND(H90>='A - Contractor Summary'!$C$36,I90<='A - Contractor Summary'!$C$42),"Yes","No") -> No | K90: =VLOOKUP($C90,'C.1 - Rate Sheets'!H:I,2,FALSE) -> 64.45 | AD90: 16 | AE90: 16 | AF90: 12 | AS90: 44 | AT90: 2835.8 | AU90: 2835.8 | AV90: 0 | AW90: 0 | AX90: 0
B91: 74 | C91: Air Compressor | D91: 35542 | E91: Vendor No.10 | G91: TLH-STORM-1031-SW18 | H91: 2018-10-11 | I91: 2018-10-31 | J91: =IF(AND(H91>='A - Contractor Summary'!$C$36,I91<='A - Contractor Summary'!$C$42),"Yes","No") -> No | K91: =VLOOKUP($C91,'C.1 - Rate Sheets'!H:I,2,FALSE) -> 12.21 | AD91: 16 | AE91: 16 | AF91: 12 | AS91: 44 | AT91: 537.24 | AU91: 537.24 | AV91: 0 | AW91: 0 | AX91: 0
B92: 75 | C92: Pole Trailer | D92: 49867 | E92: Vendor No.10 | G92: TLH-STORM-1031-SW18 | H92: 2018-10-11 | I92: 2018-10-31 | J92: =IF(AND(H92>='A - Contractor Summary'!$C$36,I92<='A - Contractor Summary'!$C$42),"Yes","No") -> No | K92: =VLOOKUP($C92,'C.1 - Rate Sheets'!H:I,2,FALSE) -> 4.75 | AD92: 16 | AE92: 16 | AF92: 12 | AS92: 44 | AT92: 209 | AU92: 209 | AV92: 0 | AW92: 0 | AX92: 0
B93: 76 | C93: Pickup Truck 4x4 | D93: 315565 | E93: Vendor No.10 | G93: TLH-STORM-1031-SW18 | H93: 2018-10-11 | I93: 2018-10-31 | J93: =IF(AND(H93>='A - Contractor Summary'!$C$36,I93<='A - Contractor Summary'!$C$42),"Yes","No") -> No | K93: =VLOOKUP($C93,'C.1 - Rate Sheets'!H:I,2,FALSE) -> 23.27 | AD93: 16 | AE93: 16 | AF93: 12 | AS93: 44 | AT93: 1023.88 | AU93: 1023.88 | AV93: 0 | AW93: 0 | AX93: 0
B94: 77 | C94: Bucket 2x4 to 55' Mat. Handler | D94: 326835 | E94: Vendor No.10 | G94: TLH-STORM-1031-SW18 | H94: 2018-10-11 | I94: 2018-10-31 | J94: =IF(AND(H94>='A - Contractor Summary'!$C$36,I94<='A - Contractor Summary'!$C$42),"Yes","No") -> No | K94: =VLOOKUP($C94,'C.1 - Rate Sheets'!H:I,2,FALSE) -> 51.83 | AD94: 16 | AE94: 16 | AF94: 12 | AS94: 44 | AT94: 2280.52 | AU94: 2280.52 | AV94: 0 | AW94: 0 | AX94: 0
B95: 78 | C95: Bucket 4x4 to 55' Mat. Handler | D95: 327564 | E95: Vendor No.10 | G95: TLH-STORM-1031-SW18 | H95: 2018-10-11 | I95: 2018-10-31 | J95: =IF(AND(H95>='A - Contractor Summary'!$C$36,I95<='A - Contractor Summary'!$C$42),"Yes","No") -> No | K95: =VLOOKUP($C95,'C.1 - Rate Sheets'!H:I,2,FALSE) -> 56.99 | AD95: 16 | AE95: 16 | AF95: 12 | AS95: 44 | AT95: 2507.56 | AU95: 2507.56 | AV95: 0 | AW95: 0 | AX95: 0
B96: 79 | C96: Digger Derrick 4x4 to 10,000 LBS | D96: 329005 | E96: Vendor No.10 | G96: TLH-STORM-1031-SW18 | H96: 2018-10-11 | I96: 2018-10-31 | J96: =IF(AND(H96>='A - Contractor Summary'!$C$36,I96<='A - Contractor Summary'!$C$42),"Yes","No") -> No | K96: =VLOOKUP($C96,'C.1 - Rate Sheets'!H:I,2,FALSE) -> 64.45 | AD96: 16 | AE96: 16 | AF96: 12 | AS96: 44 | AT96: 2835.8 | AU96: 2835.8 | AV96: 0 | AW96: 0 | AX96: 0
B97: 80 | C97: Pole Trailer | D97: 325625 | E97: Vendor No.10 | G97: TLH-STORM-1031-SW18 | H97: 2018-10-11 | I97: 2018-10-31 | J97: =IF(AND(H97>='A - Contractor Summary'!$C$36,I97<='A - Contractor Summary'!$C$42),"Yes","No") -> No | K97: =VLOOKUP($C97,'C.1 - Rate Sheets'!H:I,2,FALSE) -> 4.75 | AD97: 16 | AE97: 16 | AF97: 12 | AS97: 44 | AT97: 209 | AU97: 209 | AV97: 0 | AW97: 0 | AX97: 0
B98: 81 | C98: Air Compressor | D98: 349813 | E98: Vendor No.10 | G98: TLH-STORM-1031-SW18 | H98: 2018-10-11 | I98: 2018-10-31 | J98: =IF(AND(H98>='A - Contractor Summary'!$C$36,I98<='A - Contractor Summary'!$C$42),"Yes","No") -> No | K98: =VLOOKUP($C98,'C.1 - Rate Sheets'!H:I,2,FALSE) -> 12.21 | AD98: 16 | AE98: 16 | AF98: 12 | AS98: 44 | AT98: 537.24 | AU98: 537.24 | AV98: 0 | AW98: 0 | AX98: 0
B99: 82 | C99: Pickup Truck 4x4 | D99: 315583 | E99: Vendor No.10 | G99: TLH-STORM-1130-SW18 | H99: 2018-11-04 | I99: 2018-11-16 | J99: =IF(AND(H99>='A - Contractor Summary'!$C$36,I99<='A - Contractor Summary'!$C$42),"Yes","No") -> No | K99: =VLOOKUP($C99,'C.1 - Rate Sheets'!H:I,2,FALSE) -> 23.27 | AG99: 9 | AH99: 12 | AI99: 12 | AJ99: 12 | AK99: 12 | AL99: 12 | AM99: 12 | AN99: 12 | AO99: 12 | AP99: 12 | AQ99: 12 | AR99: 12 | AS99: 141 | AT99: 3281.07 | AU99: 3281.07 | AV99: 0 | AW99: 0 | AX99: 0
B100: 83 | C100: Bucket 4x4 to 55' Mat. Handler | D100: 316105 | E100: Vendor No.10 | G100: TLH-STORM-1130-SW18 | H100: 2018-11-04 | I100: 2018-11-16 | J100: =IF(AND(H100>='A - Contractor Summary'!$C$36,I100<='A - Contractor Summary'!$C$42),"Yes","No") -> No | K100: =VLOOKUP($C100,'C.1 - Rate Sheets'!H:I,2,FALSE) -> 56.99 | AG100: 9 | AH100: 12 | AI100: 12 | AJ100: 12 | AK100: 12 | AL100: 12 | AM100: 12 | AN100: 12 | AO100: 12 | AP100: 12 | AQ100: 12 | AR100: 12 | AS100: 141 | AT100: 8035.59 | AU100: 8035.59 | AV100: 0 | AW100: 0 | AX100: 0
B101: 84 | C101: Bucket 2x4 to 55' Mat. Handler | D101: 35677 | E101: Vendor No.10 | G101: TLH-STORM-1130-SW18 | H101: 2018-11-04 | I101: 2018-11-16 | J101: =IF(AND(H101>='A - Contractor Summary'!$C$36,I101<='A - Contractor Summary'!$C$42),"Yes","No") -> No | K101: =VLOOKUP($C101,'C.1 - Rate Sheets'!H:I,2,FALSE) -> 51.83 | AG101: 9 | AH101: 12 | AI101: 12 | AJ101: 12 | AK101: 12 | AL101: 12 | AM101: 12 | AN101: 12 | AO101: 12 | AP101: 12 | AQ101: 12 | AR101: 12 | AS101: 141 | AT101: 7308.03 | AU101: 7308.03 | AV101: 0 | AW101: 0 | AX101: 0
B102: 85 | C102: Digger Derrick 4x4 to 10,000 LBS | D102: 341428 | E102: Vendor No.10 | G102: TLH-STORM-1130-SW18 | H102: 2018-11-04 | I102: 2018-11-16 | J102: =IF(AND(H102>='A - Contractor Summary'!$C$36,I102<='A - Contractor Summary'!$C$42),"Yes","No") -> No | K102: =VLOOKUP($C102,'C.1 - Rate Sheets'!H:I,2,FALSE) -> 64.45 | AG102: 9 | AH102: 12 | AI102: 12 | AJ102: 12 | AK102: 12 | AL102: 12 | AM102: 12 | AN102: 12 | AO102: 12 | AP102: 12 | AQ102: 12 | AR102: 12 | AS102: 141 | AT102: 9087.45 | AU102: 9087.45 | AV102: 0 | AW102: 0 | AX102: 0
B103: 86 | C103: Pole Trailer | D103: 40547 | E103: Vendor No.10 | G103: TLH-STORM-1130-SW18 | H103: 2018-11-04 | I103: 2018-11-16 | J103: =IF(AND(H103>='A - Contractor Summary'!$C$36,I103<='A - Contractor Summary'!$C$42),"Yes","No") -> No | K103: =VLOOKUP($C103,'C.1 - Rate Sheets'!H:I,2,FALSE) -> 4.75 | AG103: 9 | AH103: 12 | AI103: 12 | AJ103: 12 | AK103: 12 | AL103: 12 | AM103: 12 | AN103: 12 | AO103: 12 | AP103: 12 | AQ103: 12 | AR103: 12 | AS103: 141 | AT103: 669.75 | AU103: 669.75 | AV103: 0 | AW103: 0 | AX103: 0
J104: =IF(AND(H104>='A - Contractor Summary'!$C$36,I104<='A - Contractor Summary'!$C$42),"Yes","No") -> No | AS104: 0 | AT104: 0 | AU104: 0 | AV104: 0 | AW104: 0 | AX104: 0
AS105: 0 | AT105: 0 | AU105: =AT105-AV105 -> 0 | AV105: 0 | AW105: 0 | AX105: 0
L106: =SUM(L18:L105) -> 50 | M106: 80 | N106: 80 | O106: 80 | P106: 96 | Q106: 96 | R106: 400 | S106: 400 | T106: 400 | U106: 384 | V106: 384 | W106: 416 | X106: 416 | Y106: 416 | Z106: 416 | AA106: 416 | AB106: 400 | AC106: 400 | AD106: 400 | AE106: 400 | AF106: 240 | AG106: =SUM(AG18:AG105) -> 45 | AH106: 60 | AI106: 60 | AJ106: 60 | AK106: 60 | AL106: 60 | AM106: 60 | AN106: 60 | AO106: 60 | AP106: 60 | AQ106: 60 | AR106: 60 | AS106: =SUM(AS18:AS105) -> 7075 | AT106: =IFERROR(SUM(AT18:AT105),0) -> 266082.55 | AU106: =IFERROR(SUM(AU18:AU105),0) -> 266082.55 | AV106: =SUM(AV18:AV105) -> 0 | AW106: =SUM(AW18:AW105) -> 0 | AX106: =SUM(AX18:AX105) -> 0 | AY106: =AV106-AW106-AX106 -> 0 | AZ106: check (b)
B110: Tickmark Explanation:

Sheet D - Lodging
B2: Lodging Charges
B4: Test Plan: (A) Obtain support of individual charges. (B) Enter Yes/No if receipt is itemized (C) Enter Yes/No if proof of payment has been provided. (D) Ensure charges fall between the dates the vendor was mobilized and the date they arrived. (E) Ensure charges are prior to the date the vendor arrived home or was released to another utility. (F) Ensure the location of stay was reasonable (G) Determine the amount(s) to be reviewed, allowed and/or disallowed. (H) For charges which required further review, document review (include why it was determined to be allowed/disallowed via a tickmark).
B8: Rx | C8: Recalculated.
B9: a | C9: Check figure should equal $0. Cell will appear yellow if discrepancies are noted.
C11: A | M11: Rx | N11: B | O11: C | P11: D | Q11: E | R11: F | S11: G | V11: H
B12: Support Reviewed | P12: Conclusion
B13: # | C13: Type of Support | D13: Support Identifier | E13: Crew | F13: Company | G13: Check In Date | H13: Person | I13: Hotel Name | J13: Location | K13: # of Nights | L13: Total Invoice | M13: $ / Night | N13: Itemized Receipt | O13: Proof of Payment | P13: Reasonable based on Mobilization date(s) | Q13: Reasonable based on Demobilization date(s) | R13: Location Reasonable | S13: Conclusion | T13: $ Allowable Charge | U13: $ To Be Reviewed | V13: Reviewed - Allowable $ | W13: Reviewed - Unallowable $ | X13: Tickmark
B14: 1 | M14: =L14/K14 ->  | P14: =IF(AND(G14>='A - Contractor Summary'!$C$36,G14<='A - Contractor Summary'!$C$38),"Yes",IF(G14<'A - Contractor Summary'!$C$36,"No",IF(G14>'A - Contractor Summary'!$C$39,"",""))) -> No | Q14: =IF(OR(P14="Yes",P14="No")*AND(G14<'A - Contractor Summary'!$C$39),"",IF(AND(G14>'A - Contractor Summary'!$C$39,G14<'A - Contractor Summary'!$C$42),"Yes",IF(G14>'A - Contractor Summary'!$C$42,"No","Needs Review"))) ->  | S14: =IF(AND(R14="YES",O14="Yes",N14="Yes")*OR(P14="Yes",Q14="Yes"),"Yes",IF(OR(N14="No",O14="No",P14="No",Q14="No",R14="No"),"No","Needs Review")) -> No | T14: =IF(S14="Yes",L14,0) -> 0 | U14: =IF(S14="Needs Review",L14,0) -> 0
B15: 2 | P15: =IF(AND(G15>='A - Contractor Summary'!$C$36,G15<='A - Contractor Summary'!$C$38),"Yes",IF(G15<'A - Contractor Summary'!$C$36,"No",IF(G15>'A - Contractor Summary'!$C$39,"",""))) -> No | Q15: =IF(OR(P15="Yes",P15="No")*AND(G15<'A - Contractor Summary'!$C$39),"",IF(AND(G15>'A - Contractor Summary'!$C$39,G15<'A - Contractor Summary'!$C$42),"Yes",IF(G15>'A - Contractor Summary'!$C$42,"No","Needs Review"))) ->  | S15: No | T15: 0 | U15: 0
B16: 3 | P16: =IF(AND(G16>='A - Contractor Summary'!$C$36,G16<='A - Contractor Summary'!$C$38),"Yes",IF(G16<'A - Contractor Summary'!$C$36,"No",IF(G16>'A - Contractor Summary'!$C$39,"",""))) -> No | Q16: =IF(OR(P16="Yes",P16="No")*AND(G16<'A - Contractor Summary'!$C$39),"",IF(AND(G16>'A - Contractor Summary'!$C$39,G16<'A - Contractor Summary'!$C$42),"Yes",IF(G16>'A - Contractor Summary'!$C$42,"No","Needs Review"))) ->  | S16: No | T16: 0 | U16: 0
B17: 4 | P17: =IF(AND(G17>='A - Contractor Summary'!$C$36,G17<='A - Contractor Summary'!$C$38),"Yes",IF(G17<'A - Contractor Summary'!$C$36,"No",IF(G17>'A - Contractor Summary'!$C$39,"",""))) -> No | Q17: =IF(OR(P17="Yes",P17="No")*AND(G17<'A - Contractor Summary'!$C$39),"",IF(AND(G17>'A - Contractor Summary'!$C$39,G17<'A - Contractor Summary'!$C$42),"Yes",IF(G17>'A - Contractor Summary'!$C$42,"No","Needs Review"))) ->  | S17: No | T17: 0 | U17: 0
B18: 5 | P18: =IF(AND(G18>='A - Contractor Summary'!$C$36,G18<='A - Contractor Summary'!$C$38),"Yes",IF(G18<'A - Contractor Summary'!$C$36,"No",IF(G18>'A - Contractor Summary'!$C$39,"",""))) -> No | Q18: =IF(OR(P18="Yes",P18="No")*AND(G18<'A - Contractor Summary'!$C$39),"",IF(AND(G18>'A - Contractor Summary'!$C$39,G18<'A - Contractor Summary'!$C$42),"Yes",IF(G18>'A - Contractor Summary'!$C$42,"No","Needs Review"))) ->  | S18: No | T18: 0 | U18: 0
B19: 6 | P19: =IF(AND(G19>='A - Contractor Summary'!$C$36,G19<='A - Contractor Summary'!$C$38),"Yes",IF(G19<'A - Contractor Summary'!$C$36,"No",IF(G19>'A - Contractor Summary'!$C$39,"",""))) -> No | Q19: =IF(OR(P19="Yes",P19="No")*AND(G19<'A - Contractor Summary'!$C$39),"",IF(AND(G19>'A - Contractor Summary'!$C$39,G19<'A - Contractor Summary'!$C$42),"Yes",IF(G19>'A - Contractor Summary'!$C$42,"No","Needs Review"))) ->  | S19: No | T19: 0 | U19: 0
B20: 7 | P20: =IF(AND(G20>='A - Contractor Summary'!$C$36,G20<='A - Contractor Summary'!$C$38),"Yes",IF(G20<'A - Contractor Summary'!$C$36,"No",IF(G20>'A - Contractor Summary'!$C$39,"",""))) -> No | Q20: =IF(OR(P20="Yes",P20="No")*AND(G20<'A - Contractor Summary'!$C$39),"",IF(AND(G20>'A - Contractor Summary'!$C$39,G20<'A - Contractor Summary'!$C$42),"Yes",IF(G20>'A - Contractor Summary'!$C$42,"No","Needs Review"))) ->  | S20: No | T20: 0 | U20: 0
B21: 8 | P21: =IF(AND(G21>='A - Contractor Summary'!$C$36,G21<='A - Contractor Summary'!$C$38),"Yes",IF(G21<'A - Contractor Summary'!$C$36,"No",IF(G21>'A - Contractor Summary'!$C$39,"",""))) -> No | Q21: =IF(OR(P21="Yes",P21="No")*AND(G21<'A - Contractor Summary'!$C$39),"",IF(AND(G21>'A - Contractor Summary'!$C$39,G21<'A - Contractor Summary'!$C$42),"Yes",IF(G21>'A - Contractor Summary'!$C$42,"No","Needs Review"))) ->  | S21: No | T21: 0 | U21: 0
B22: 9 | P22: =IF(AND(G22>='A - Contractor Summary'!$C$36,G22<='A - Contractor Summary'!$C$38),"Yes",IF(G22<'A - Contractor Summary'!$C$36,"No",IF(G22>'A - Contractor Summary'!$C$39,"",""))) -> No | Q22: =IF(OR(P22="Yes",P22="No")*AND(G22<'A - Contractor Summary'!$C$39),"",IF(AND(G22>'A - Contractor Summary'!$C$39,G22<'A - Contractor Summary'!$C$42),"Yes",IF(G22>'A - Contractor Summary'!$C$42,"No","Needs Review"))) ->  | S22: No | T22: 0 | U22: 0
B23: 10 | P23: =IF(AND(G23>='A - Contractor Summary'!$C$36,G23<='A - Contractor Summary'!$C$38),"Yes",IF(G23<'A - Contractor Summary'!$C$36,"No",IF(G23>'A - Contractor Summary'!$C$39,"",""))) -> No | Q23: =IF(OR(P23="Yes",P23="No")*AND(G23<'A - Contractor Summary'!$C$39),"",IF(AND(G23>'A - Contractor Summary'!$C$39,G23<'A - Contractor Summary'!$C$42),"Yes",IF(G23>'A - Contractor Summary'!$C$42,"No","Needs Review"))) ->  | S23: No | T23: 0 | U23: 0
B24: 72 | M24: =L24/K24 ->  | P24: =IF(AND(G24>='A - Contractor Summary'!$C$36,G24<='A - Contractor Summary'!$C$38),"Yes",IF(G24<'A - Contractor Summary'!$C$36,"No",IF(G24>'A - Contractor Summary'!$C$39,"",""))) -> No | Q24: =IF(OR(P24="Yes",P24="No")*AND(G24<'A - Contractor Summary'!$C$39),"",IF(AND(G24>'A - Contractor Summary'!$C$39,G24<'A - Contractor Summary'!$C$42),"Yes",IF(G24>'A - Contractor Summary'!$C$42,"No","Needs Review"))) ->  | S24: =IF(AND(R24="YES",O24="Yes",N24="Yes")*OR(P24="Yes",Q24="Yes"),"Yes",IF(OR(N24="No",O24="No",P24="No",Q24="No",R24="No"),"No","Needs Review")) -> No | T24: =IF(S24="Yes",L24,0) -> 0 | U24: =IF(S24="Needs Review",L24,0) -> 0
B25: 73 | P25: =IF(AND(G25>='A - Contractor Summary'!$C$36,G25<='A - Contractor Summary'!$C$38),"Yes",IF(G25<'A - Contractor Summary'!$C$36,"No",IF(G25>'A - Contractor Summary'!$C$39,"",""))) -> No | Q25: =IF(OR(P25="Yes",P25="No")*AND(G25<'A - Contractor Summary'!$C$39),"",IF(AND(G25>'A - Contractor Summary'!$C$39,G25<'A - Contractor Summary'!$C$42),"Yes",IF(G25>'A - Contractor Summary'!$C$42,"No","Needs Review"))) ->  | S25: No | T25: 0 | U25: 0
B26: 74 | P26: =IF(AND(G26>='A - Contractor Summary'!$C$36,G26<='A - Contractor Summary'!$C$38),"Yes",IF(G26<'A - Contractor Summary'!$C$36,"No",IF(G26>'A - Contractor Summary'!$C$39,"",""))) -> No | Q26: =IF(OR(P26="Yes",P26="No")*AND(G26<'A - Contractor Summary'!$C$39),"",IF(AND(G26>'A - Contractor Summary'!$C$39,G26<'A - Contractor Summary'!$C$42),"Yes",IF(G26>'A - Contractor Summary'!$C$42,"No","Needs Review"))) ->  | S26: No | T26: 0 | U26: 0
B27: 75 | P27: =IF(AND(G27>='A - Contractor Summary'!$C$36,G27<='A - Contractor Summary'!$C$38),"Yes",IF(G27<'A - Contractor Summary'!$C$36,"No",IF(G27>'A - Contractor Summary'!$C$39,"",""))) -> No | Q27: =IF(OR(P27="Yes",P27="No")*AND(G27<'A - Contractor Summary'!$C$39),"",IF(AND(G27>'A - Contractor Summary'!$C$39,G27<'A - Contractor Summary'!$C$42),"Yes",IF(G27>'A - Contractor Summary'!$C$42,"No","Needs Review"))) ->  | S27: No | T27: 0 | U27: 71.68 | V27: =+M27 ->  | X27: 4
B28: 76 | P28: =IF(AND(G28>='A - Contractor Summary'!$C$36,G28<='A - Contractor Summary'!$C$38),"Yes",IF(G28<'A - Contractor Summary'!$C$36,"No",IF(G28>'A - Contractor Summary'!$C$39,"",""))) -> No | Q28: =IF(OR(P28="Yes",P28="No")*AND(G28<'A - Contractor Summary'!$C$39),"",IF(AND(G28>'A - Contractor Summary'!$C$39,G28<'A - Contractor Summary'!$C$42),"Yes",IF(G28>'A - Contractor Summary'!$C$42,"No","Needs Review"))) ->  | S28: No | T28: 0 | U28: 71.68 | V28: =+M28 ->  | X28: 4
B29: 77 | P29: =IF(AND(G29>='A - Contractor Summary'!$C$36,G29<='A - Contractor Summary'!$C$38),"Yes",IF(G29<'A - Contractor Summary'!$C$36,"No",IF(G29>'A - Contractor Summary'!$C$39,"",""))) -> No | Q29: =IF(OR(P29="Yes",P29="No")*AND(G29<'A - Contractor Summary'!$C$39),"",IF(AND(G29>'A - Contractor Summary'!$C$39,G29<'A - Contractor Summary'!$C$42),"Yes",IF(G29>'A - Contractor Summary'!$C$42,"No","Needs Review"))) ->  | S29: No | T29: 0 | U29: 0 | X29: 2,3
B30: 78 | P30: =IF(AND(G30>='A - Contractor Summary'!$C$36,G30<='A - Contractor Summary'!$C$38),"Yes",IF(G30<'A - Contractor Summary'!$C$36,"No",IF(G30>'A - Contractor Summary'!$C$39,"",""))) -> No | Q30: =IF(OR(P30="Yes",P30="No")*AND(G30<'A - Contractor Summary'!$C$39),"",IF(AND(G30>'A - Contractor Summary'!$C$39,G30<'A - Contractor Summary'!$C$42),"Yes",IF(G30>'A - Contractor Summary'!$C$42,"No","Needs Review"))) ->  | S30: No | T30: 0 | U30: 0 | X30: 1
B31: 79 | P31: =IF(AND(G31>='A - Contractor Summary'!$C$36,G31<='A - Contractor Summary'!$C$38),"Yes",IF(G31<'A - Contractor Summary'!$C$36,"No",IF(G31>'A - Contractor Summary'!$C$39,"",""))) -> No | Q31: =IF(OR(P31="Yes",P31="No")*AND(G31<'A - Contractor Summary'!$C$39),"",IF(AND(G31>'A - Contractor Summary'!$C$39,G31<'A - Contractor Summary'!$C$42),"Yes",IF(G31>'A - Contractor Summary'!$C$42,"No","Needs Review"))) ->  | S31: No | T31: 0 | U31: 0 | X31: 1
L32: =SUM(L14:L31) -> 0 | T32: =IFERROR(SUM(T14:T31),0) -> 0 | U32: =IFERROR(SUM(U14:U31),0) -> 143.36 | V32: =IFERROR(SUM(V14:V31),0) -> 0 | W32: =IFERROR(SUM(W14:W31),0) -> 0 | X32: =U32-V32-W32 -> 143.36 | Y32: check (a)
B35: Tickmark Explanation:
B36: 1
B37: 2
B38: 3
B39: 4

Sheet E - Fuel
B2: Fuel Charges
B4: Test Plan: (A) Obtain support of individual charges. (B) Enter Yes/No if receipt is itemized (C) Enter Yes/No if proof of payment has been provided. (D) Ensure charges fall between the dates the vendor was mobilized and the date they arrived. (E) Ensure charges are prior to the date the vendor arrived home or was released to another utility. (F) Ensure the location of charge was reasonable (G) Determine the amount(s) to be reviewed, allowed and/or disallowed. (H) For charges which required further review, document review (include why it was determined to be allowed/disallowed via a tickmark).
P5: No Fuel Charges
B9: a | C9: Check figure should equal $0. Cell will appear yellow if discrepancies are noted.
C11: A | K11: B | L11: C | M11: D | N11: E | O11: F | P11: G | S11: H
B12: Support Reviewed | M12: Conclusions
B13: # | C13: Type of Support | D13: Support Identifier | E13: Company | F13: Date | G13: Person (Inv#) | H13: Name | I13: Location | J13: Total Charge | K13: Itemized Receipt | L13: Proof of Payment | M13: Reasonable based on Mobilization date(s) | N13: Reasonable based on Demobilization date(s) | O13: Locations Reasonable | P13: Conclusion | Q13: $ Allowable Charge | R13: $ To Be Reviewed | S13: Reviewed - Allowable Charge | T13: Reviewed - Unallowable Charge | U13: Tickmarks
B14: 1 | C14: Receipt | E14: Vendor No.10 | F14: 2018-10-17 | G14: TLH-STORM-1031-SW18 | I14: SC | J14: 34.55 | M14: =IF(AND(F14>='A - Contractor Summary'!$C$36,F14<='A - Contractor Summary'!$C$38),"Yes",IF(F14<'A - Contractor Summary'!$C$36,"No",IF(F14>'A - Contractor Summary'!$C$39,"",""))) -> No | N14: =IF(OR(M14="Yes",M14="No")*AND(F14<'A - Contractor Summary'!$C$39),"",IF(AND(F14>'A - Contractor Summary'!$C$39,F14<'A - Contractor Summary'!$C$42),"Yes",IF(F14>'A - Contractor Summary'!$C$42,"No","Needs Review"))) ->  | P14: =IF(AND(O14="Yes",K14="Yes",L14="Yes")*OR(N14="Yes",M14="Yes"),"Yes",IF(OR(K14="No",M14="No",N14="No",O14="No",L14="No"),"No","Needs Review")) -> No | Q14: =IF(P14="Yes",J14,0) -> 0 | R14: =IF(P14="Needs Review",J14,0) -> 0 | S14: =+J14 -> 34.55 | U14: 1
B15: 2 | C15: Receipt | E15: Vendor No.10 | F15: 2018-10-17 | G15: TLH-STORM-1031-SW18 | I15: GA | J15: 60 | M15: =IF(AND(F15>='A - Contractor Summary'!$C$36,F15<='A - Contractor Summary'!$C$38),"Yes",IF(F15<'A - Contractor Summary'!$C$36,"No",IF(F15>'A - Contractor Summary'!$C$39,"",""))) -> No | N15: =IF(OR(M15="Yes",M15="No")*AND(F15<'A - Contractor Summary'!$C$39),"",IF(AND(F15>'A - Contractor Summary'!$C$39,F15<'A - Contractor Summary'!$C$42),"Yes",IF(F15>'A - Contractor Summary'!$C$42,"No","Needs Review"))) ->  | P15: =IF(AND(O15="Yes",K15="Yes",L15="Yes")*OR(N15="Yes",M15="Yes"),"Yes",IF(OR(K15="No",M15="No",N15="No",O15="No",L15="No"),"No","Needs Review")) -> No | Q15: 0 | R15: 0 | S15: 60 | U15: 1
B16: 3 | C16: Receipt | E16: Vendor No.10 | F16: 2018-10-17 | G16: TLH-STORM-1031-SW18 | I16: NC | J16: 44.11 | M16: =IF(AND(F16>='A - Contractor Summary'!$C$36,F16<='A - Contractor Summary'!$C$38),"Yes",IF(F16<'A - Contractor Summary'!$C$36,"No",IF(F16>'A - Contractor Summary'!$C$39,"",""))) -> No | N16: =IF(OR(M16="Yes",M16="No")*AND(F16<'A - Contractor Summary'!$C$39),"",IF(AND(F16>'A - Contractor Summary'!$C$39,F16<'A - Contractor Summary'!$C$42),"Yes",IF(F16>'A - Contractor Summary'!$C$42,"No","Needs Review"))) ->  | P16: No | Q16: 0 | R16: 0 | S16: 44.11 | U16: 1
B17: 4 | C17: Receipt | E17: Vendor No.10 | F17: 2018-10-17 | G17: TLH-STORM-1031-SW18 | I17: GA | J17: 55 | M17: =IF(AND(F17>='A - Contractor Summary'!$C$36,F17<='A - Contractor Summary'!$C$38),"Yes",IF(F17<'A - Contractor Summary'!$C$36,"No",IF(F17>'A - Contractor Summary'!$C$39,"",""))) -> No | N17: =IF(OR(M17="Yes",M17="No")*AND(F17<'A - Contractor Summary'!$C$39),"",IF(AND(F17>'A - Contractor Summary'!$C$39,F17<'A - Contractor Summary'!$C$42),"Yes",IF(F17>'A - Contractor Summary'!$C$42,"No","Needs Review"))) ->  | P17: No | Q17: 0 | R17: 0 | S17: 55 | U17: 1
B18: 5 | C18: Receipt | E18: Vendor No.10 | F18: 2018-10-17 | G18: TLH-STORM-1031-SW18 | I18: GA | J18: 78.79 | M18: =IF(AND(F18>='A - Contractor Summary'!$C$36,F18<='A - Contractor Summary'!$C$38),"Yes",IF(F18<'A - Contractor Summary'!$C$36,"No",IF(F18>'A - Contractor Summary'!$C$39,"",""))) -> No | N18: =IF(OR(M18="Yes",M18="No")*AND(F18<'A - Contractor Summary'!$C$39),"",IF(AND(F18>'A - Contractor Summary'!$C$39,F18<'A - Contractor Summary'!$C$42),"Yes",IF(F18>'A - Contractor Summary'!$C$42,"No","Needs Review"))) ->  | P18: No | Q18: 0 | R18: 0 | S18: 78.79 | U18: 1
B19: 6 | C19: Receipt | E19: Vendor No.10 | F19: 2018-10-17 | G19: TLH-STORM-1031-SW18 | I19: SC | J19: 81.69 | M19: =IF(AND(F19>='A - Contractor Summary'!$C$36,F19<='A - Contractor Summary'!$C$38),"Yes",IF(F19<'A - Contractor Summary'!$C$36,"No",IF(F19>'A - Contractor Summary'!$C$39,"",""))) -> No | N19: =IF(OR(M19="Yes",M19="No")*AND(F19<'A - Contractor Summary'!$C$39),"",IF(AND(F19>'A - Contractor Summary'!$C$39,F19<'A - Contractor Summary'!$C$42),"Yes",IF(F19>'A - Contractor Summary'!$C$42,"No","Needs Review"))) ->  | P19: No | Q19: 0 | R19: 0 | S19: 81.69 | U19: 1
B20: 7 | C20: Receipt | E20: Vendor No.10 | F20: 2018-10-17 | G20: TLH-STORM-1031-SW18 | I20: GA | J20: 64.77 | M20: =IF(AND(F20>='A - Contractor Summary'!$C$36,F20<='A - Contractor Summary'!$C$38),"Yes",IF(F20<'A - Contractor Summary'!$C$36,"No",IF(F20>'A - Contractor Summary'!$C$39,"",""))) -> No | N20: =IF(OR(M20="Yes",M20="No")*AND(F20<'A - Contractor Summary'!$C$39),"",IF(AND(F20>'A - Contractor Summary'!$C$39,F20<'A - Contractor Summary'!$C$42),"Yes",IF(F20>'A - Contractor Summary'!$C$42,"No","Needs Review"))) ->  | P20: No | Q20: 0 | R20: 0 | S20: 64.77 | U20: 1
B21: 8 | C21: Receipt | E21: Vendor No.10 | F21: 2018-10-17 | G21: TLH-STORM-1031-SW18 | I21: SC | J21: 84.92 | M21: =IF(AND(F21>='A - Contractor Summary'!$C$36,F21<='A - Contractor Summary'!$C$38),"Yes",IF(F21<'A - Contractor Summary'!$C$36,"No",IF(F21>'A - Contractor Summary'!$C$39,"",""))) -> No | N21: =IF(OR(M21="Yes",M21="No")*AND(F21<'A - Contractor Summary'!$C$39),"",IF(AND(F21>'A - Contractor Summary'!$C$39,F21<'A - Contractor Summary'!$C$42),"Yes",IF(F21>'A - Contractor Summary'!$C$42,"No","Needs Review"))) ->  | P21: No | Q21: 0 | R21: 0 | S21: 84.92 | U21: 1
B22: 9 | C22: Receipt | E22: Vendor No.10 | F22: 2018-10-17 | G22: TLH-STORM-1031-SW18 | I22: GA | J22: 67.07 | M22: =IF(AND(F22>='A - Contractor Summary'!$C$36,F22<='A - Contractor Summary'!$C$38),"Yes",IF(F22<'A - Contractor Summary'!$C$36,"No",IF(F22>'A - Contractor Summary'!$C$39,"",""))) -> No | N22: =IF(OR(M22="Yes",M22="No")*AND(F22<'A - Contractor Summary'!$C$39),"",IF(AND(F22>'A - Contractor Summary'!$C$39,F22<'A - Contractor Summary'!$C$42),"Yes",IF(F22>'A - Contractor Summary'!$C$42,"No","Needs Review"))) ->  | P22: No | Q22: 0 | R22: 0 | S22: 67.07 | U22: 1
B23: 10 | C23: Receipt | E23: Vendor No.10 | F23: 2018-10-17 | G23: TLH-STORM-1031-SW18 | I23: SC | J23: 95.45 | M23: =IF(AND(F23>='A - Contractor Summary'!$C$36,F23<='A - Contractor Summary'!$C$38),"Yes",IF(F23<'A - Contractor Summary'!$C$36,"No",IF(F23>'A - Contractor Summary'!$C$39,"",""))) -> No | N23: =IF(OR(M23="Yes",M23="No")*AND(F23<'A - Contractor Summary'!$C$39),"",IF(AND(F23>'A - Contractor Summary'!$C$39,F23<'A - Contractor Summary'!$C$42),"Yes",IF(F23>'A - Contractor Summary'!$C$42,"No","Needs Review"))) ->  | P23: No | Q23: 0 | R23: 0 | S23: 95.45 | U23: 1
B24: 11 | C24: Receipt | E24: Vendor No.10 | F24: 2018-10-17 | G24: TLH-STORM-1031-SW18 | I24: GA | J24: 67.26 | M24: =IF(AND(F24>='A - Contractor Summary'!$C$36,F24<='A - Contractor Summary'!$C$38),"Yes",IF(F24<'A - Contractor Summary'!$C$36,"No",IF(F24>'A - Contractor Summary'!$C$39,"",""))) -> No | P24: =IF(AND(O24="Yes",K24="Yes",L24="Yes")*OR(N24="Yes",M24="Yes"),"Yes",IF(OR(K24="No",M24="No",N24="No",O24="No",L24="No"),"No","Needs Review")) -> No | Q24: =IF(P24="Yes",J24,0) -> 0 | R24: =IF(P24="Needs Review",J24,0) -> 0 | S24: 67.26 | U24: 1
B25: 12 | C25: Receipt | E25: Vendor No.10 | F25: 2018-10-17 | G25: TLH-STORM-1031-SW18 | I25: GA | J25: 78.79 | M25: =IF(AND(F25>='A - Contractor Summary'!$C$36,F25<='A - Contractor Summary'!$C$38),"Yes",IF(F25<'A - Contractor Summary'!$C$36,"No",IF(F25>'A - Contractor Summary'!$C$39,"",""))) -> No | P25: No | Q25: 0 | R25: 0 | S25: 78.79 | U25: 1
B26: 13 | C26: Receipt | E26: Vendor No.10 | F26: 2018-10-17 | G26: TLH-STORM-1031-SW18 | I26: NC | J26: 35 | M26: =IF(AND(F26>='A - Contractor Summary'!$C$36,F26<='A - Contractor Summary'!$C$38),"Yes",IF(F26<'A - Contractor Summary'!$C$36,"No",IF(F26>'A - Contractor Summary'!$C$39,"",""))) -> No | P26: No | Q26: 0 | R26: 0 | S26: 35 | U26: 1
B27: 14 | C27: Receipt | E27: Vendor No.10 | F27: 2018-10-17 | G27: TLH-STORM-1031-SW18 | I27: SC | J27: 75.74 | M27: =IF(AND(F27>='A - Contractor Summary'!$C$36,F27<='A - Contractor Summary'!$C$38),"Yes",IF(F27<'A - Contractor Summary'!$C$36,"No",IF(F27>'A - Contractor Summary'!$C$39,"",""))) -> No | P27: No | Q27: 0 | R27: 0 | S27: 75.74 | U27: 1
B28: 15 | C28: Receipt | E28: Vendor No.10 | F28: 2018-10-17 | G28: TLH-STORM-1031-SW18 | I28: GA | J28: 66.55 | M28: =IF(AND(F28>='A - Contractor Summary'!$C$36,F28<='A - Contractor Summary'!$C$38),"Yes",IF(F28<'A - Contractor Summary'!$C$36,"No",IF(F28>'A - Contractor Summary'!$C$39,"",""))) -> No | P28: No | Q28: 0 | R28: 0 | S28: 66.55 | U28: 1
B29: 16 | C29: Receipt | E29: Vendor No.10 | F29: 2018-10-17 | G29: TLH-STORM-1031-SW18 | I29: GA | J29: 66.71 | M29: =IF(AND(F29>='A - Contractor Summary'!$C$36,F29<='A - Contractor Summary'!$C$38),"Yes",IF(F29<'A - Contractor Summary'!$C$36,"No",IF(F29>'A - Contractor Summary'!$C$39,"",""))) -> No | P29: No | Q29: 0 | R29: 0 | S29: 66.71 | U29: 1
B30: 17 | C30: Receipt | E30: Vendor No.10 | F30: 2018-10-17 | G30: TLH-STORM-1031-SW18 | I30: SC | J30: 74.24 | M30: =IF(AND(F30>='A - Contractor Summary'!$C$36,F30<='A - Contractor Summary'!$C$38),"Yes",IF(F30<'A - Contractor Summary'!$C$36,"No",IF(F30>'A - Contractor Summary'!$C$39,"",""))) -> No | P30: No | Q30: 0 | R30: 0 | S30: 74.24 | U30: 1
B31: 18 | C31: Receipt | E31: Vendor No.10 | F31: 2018-10-17 | G31: TLH-STORM-1031-SW18 | I31: GA | J31: 68.78 | M31: =IF(AND(F31>='A - Contractor Summary'!$C$36,F31<='A - Contractor Summary'!$C$38),"Yes",IF(F31<'A - Contractor Summary'!$C$36,"No",IF(F31>'A - Contractor Summary'!$C$39,"",""))) -> No | P31: No | Q31: 0 | R31: 0 | S31: 68.78 | U31: 1
B32: 19 | C32: Receipt | E32: Vendor No.10 | F32: 2018-10-17 | G32: TLH-STORM-1031-SW18 | I32: SC | J32: 30.12 | M32: =IF(AND(F32>='A - Contractor Summary'!$C$36,F32<='A - Contractor Summary'!$C$38),"Yes",IF(F32<'A - Contractor Summary'!$C$36,"No",IF(F32>'A - Contractor Summary'!$C$39,"",""))) -> No | P32: No | Q32: 0 | R32: 0 | S32: 30.12 | U32: 1
B33: 20 | C33: Receipt | E33: Vendor No.10 | F33: 2018-10-17 | G33: TLH-STORM-1031-SW18 | I33: GA | J33: 22.35 | M33: =IF(AND(F33>='A - Contractor Summary'!$C$36,F33<='A - Contractor Summary'!$C$38),"Yes",IF(F33<'A - Contractor Summary'!$C$36,"No",IF(F33>'A - Contractor Summary'!$C$39,"",""))) -> No | P33: No | Q33: 0 | R33: 0 | S33: 22.35 | U33: 1
B34: 21 | C34: Receipt | E34: Vendor No.10 | F34: 2018-10-17 | G34: TLH-STORM-1031-SW18 | I34: SC | J34: 88 | M34: =IF(AND(F34>='A - Contractor Summary'!$C$36,F34<='A - Contractor Summary'!$C$38),"Yes",IF(F34<'A - Contractor Summary'!$C$36,"No",IF(F34>'A - Contractor Summary'!$C$39,"",""))) -> No | P34: No | Q34: 0 | R34: 0 | S34: 88 | U34: 1
B35: 22 | C35: Receipt | E35: Vendor No.10 | F35: 2018-10-17 | G35: TLH-STORM-1031-SW18 | I35: GA | J35: 78.46 | M35: =IF(AND(F35>='A - Contractor Summary'!$C$36,F35<='A - Contractor Summary'!$C$38),"Yes",IF(F35<'A - Contractor Summary'!$C$36,"No",IF(F35>'A - Contractor Summary'!$C$39,"",""))) -> No | P35: No | Q35: 0 | R35: 0 | S35: 78.46 | U35: 1
B36: 23 | C36: Receipt | E36: Vendor No.10 | F36: 2018-10-17 | G36: TLH-STORM-1031-SW18 | I36: SC | J36: 82.53 | M36: =IF(AND(F36>='A - Contractor Summary'!$C$36,F36<='A - Contractor Summary'!$C$38),"Yes",IF(F36<'A - Contractor Summary'!$C$36,"No",IF(F36>'A - Contractor Summary'!$C$39,"",""))) -> No | P36: No | Q36: 0 | R36: 0 | S36: 82.53 | U36: 1
B37: 24 | C37: Receipt | E37: Vendor No.10 | F37: 2018-10-17 | G37: TLH-STORM-1031-SW18 | I37: GA | J37: 69.89 | M37: =IF(AND(F37>='A - Contractor Summary'!$C$36,F37<='A - Contractor Summary'!$C$38),"Yes",IF(F37<'A - Contractor Summary'!$C$36,"No",IF(F37>'A - Contractor Summary'!$C$39,"",""))) -> No | P37: No | Q37: 0 | R37: 0 | S37: 69.89 | U37: 1
B38: 25 | C38: Receipt | E38: Vendor No.10 | F38: 2018-10-17 | G38: TLH-STORM-1031-SW18 | I38: GA | J38: 57.61 | M38: =IF(AND(F38>='A - Contractor Summary'!$C$36,F38<='A - Contractor Summary'!$C$38),"Yes",IF(F38<'A - Contractor Summary'!$C$36,"No",IF(F38>'A - Contractor Summary'!$C$39,"",""))) -> No | P38: No | Q38: 0 | R38: 0 | S38: 57.61 | U38: 1
B39: 26 | C39: Receipt | E39: Vendor No.10 | F39: 2018-10-17 | G39: TLH-STORM-1031-SW18 | I39: GA | J39: 70 | M39: =IF(AND(F39>='A - Contractor Summary'!$C$36,F39<='A - Contractor Summary'!$C$38),"Yes",IF(F39<'A - Contractor Summary'!$C$36,"No",IF(F39>'A - Contractor Summary'!$C$39,"",""))) -> No | P39: No | Q39: 0 | R39: 0 | S39: 70 | U39: 1
B40: 27 | C40: Receipt | E40: Vendor No.10 | F40: 2018-10-31 | G40: TLH-STORM-1031-SW18 | I40: FL | J40: 122.5 | M40: =IF(AND(F40>='A - Contractor Summary'!$C$36,F40<='A - Contractor Summary'!$C$38),"Yes",IF(F40<'A - Contractor Summary'!$C$36,"No",IF(F40>'A - Contractor Summary'!$C$39,"",""))) -> No | P40: No | Q40: 0 | R40: 0 | S40: 122.5 | U40: 1
B41: 28 | C41: Receipt | E41: Vendor No.10 | F41: 2018-10-31 | G41: TLH-STORM-1031-SW18 | I41: FL | J41: 55.37 | M41: =IF(AND(F41>='A - Contractor Summary'!$C$36,F41<='A - Contractor Summary'!$C$38),"Yes",IF(F41<'A - Contractor Summary'!$C$36,"No",IF(F41>'A - Contractor Summary'!$C$39,"",""))) -> No | P41: No | Q41: 0 | R41: 0 | S41: 55.37 | U41: 1
B42: 29 | C42: Receipt | E42: Vendor No.10 | F42: 2018-10-31 | G42: TLH-STORM-1031-SW18 | I42: FL | J42: 84.84 | M42: =IF(AND(F42>='A - Contractor Summary'!$C$36,F42<='A - Contractor Summary'!$C$38),"Yes",IF(F42<'A - Contractor Summary'!$C$36,"No",IF(F42>'A - Contractor Summary'!$C$39,"",""))) -> No | P42: No | Q42: 0 | R42: 0 | S42: 84.84 | U42: 1
B43: 30 | C43: Receipt | E43: Vendor No.10 | F43: 2018-10-31 | G43: TLH-STORM-1031-SW18 | I43: FL | J43: 102.3 | M43: =IF(AND(F43>='A - Contractor Summary'!$C$36,F43<='A - Contractor Summary'!$C$38),"Yes",IF(F43<'A - Contractor Summary'!$C$36,"No",IF(F43>'A - Contractor Summary'!$C$39,"",""))) -> No | P43: No | Q43: 0 | R43: 0 | S43: 102.3 | U43: 1
B44: 31 | C44: Receipt | E44: Vendor No.10 | F44: 2018-10-31 | G44: TLH-STORM-1031-SW18 | I44: FL | J44: 87.78 | M44: =IF(AND(F44>='A - Contractor Summary'!$C$36,F44<='A - Contractor Summary'!$C$38),"Yes",IF(F44<'A - Contractor Summary'!$C$36,"No",IF(F44>'A - Contractor Summary'!$C$39,"",""))) -> No | P44: No | Q44: 0 | R44: 0 | S44: 87.78 | U44: 1
B45: 32 | C45: Receipt | E45: Vendor No.10 | F45: 2018-10-31 | G45: TLH-STORM-1031-SW18 | I45: FL | J45: 82.72 | M45: =IF(AND(F45>='A - Contractor Summary'!$C$36,F45<='A - Contractor Summary'!$C$38),"Yes",IF(F45<'A - Contractor Summary'!$C$36,"No",IF(F45>'A - Contractor Summary'!$C$39,"",""))) -> No | P45: No | Q45: 0 | R45: 0 | S45: 82.72 | U45: 1
B46: 33 | C46: Receipt | E46: Vendor No.10 | F46: 2018-10-31 | G46: TLH-STORM-1031-SW18 | I46: FL | J46: 88.49 | M46: =IF(AND(F46>='A - Contractor Summary'!$C$36,F46<='A - Contractor Summary'!$C$38),"Yes",IF(F46<'A - Contractor Summary'!$C$36,"No",IF(F46>'A - Contractor Summary'!$C$39,"",""))) -> No | P46: No | Q46: 0 | R46: 0 | S46: 88.49 | U46: 1
B47: 34 | C47: Receipt | E47: Vendor No.10 | F47: 2018-10-31 | G47: TLH-STORM-1031-SW18 | I47: FL | J47: 75 | M47: =IF(AND(F47>='A - Contractor Summary'!$C$36,F47<='A - Contractor Summary'!$C$38),"Yes",IF(F47<'A - Contractor Summary'!$C$36,"No",IF(F47>'A - Contractor Summary'!$C$39,"",""))) -> No | P47: No | Q47: 0 | R47: 0 | S47: 75 | U47: 1
B48: 35 | C48: Receipt | E48: Vendor No.10 | F48: 2018-10-31 | G48: TLH-STORM-1031-SW18 | I48: FL | J48: 99.34 | M48: =IF(AND(F48>='A - Contractor Summary'!$C$36,F48<='A - Contractor Summary'!$C$38),"Yes",IF(F48<'A - Contractor Summary'!$C$36,"No",IF(F48>'A - Contractor Summary'!$C$39,"",""))) -> No | P48: No | Q48: 0 | R48: 0 | S48: 99.34 | U48: 1
B49: 36 | C49: Receipt | E49: Vendor No.10 | F49: 2018-10-31 | G49: TLH-STORM-1031-SW18 | I49: FL | J49: 98.62 | M49: =IF(AND(F49>='A - Contractor Summary'!$C$36,F49<='A - Contractor Summary'!$C$38),"Yes",IF(F49<'A - Contractor Summary'!$C$36,"No",IF(F49>'A - Contractor Summary'!$C$39,"",""))) -> No | P49: No | Q49: 0 | R49: 0 | S49: 98.62 | U49: 1
B50: 37 | C50: Receipt | E50: Vendor No.10 | F50: 2018-10-31 | G50: TLH-STORM-1031-SW18 | I50: FL | J50: 93.44 | M50: =IF(AND(F50>='A - Contractor Summary'!$C$36,F50<='A - Contractor Summary'!$C$38),"Yes",IF(F50<'A - Contractor Summary'!$C$36,"No",IF(F50>'A - Contractor Summary'!$C$39,"",""))) -> No | P50: No | Q50: 0 | R50: 0 | S50: 93.44 | U50: 1
B51: 38 | C51: Receipt | E51: Vendor No.10 | F51: 2018-10-31 | G51: TLH-STORM-1031-SW18 | I51: FL | J51: 104.62 | M51: =IF(AND(F51>='A - Contractor Summary'!$C$36,F51<='A - Contractor Summary'!$C$38),"Yes",IF(F51<'A - Contractor Summary'!$C$36,"No",IF(F51>'A - Contractor Summary'!$C$39,"",""))) -> No | P51: No | Q51: 0 | R51: 0 | S51: 104.62 | U51: 1
B52: 39 | C52: Receipt | E52: Vendor No.10 | F52: 2018-10-31 | G52: TLH-STORM-1031-SW18 | I52: FL | J52: 59.5 | M52: =IF(AND(F52>='A - Contractor Summary'!$C$36,F52<='A - Contractor Summary'!$C$38),"Yes",IF(F52<'A - Contractor Summary'!$C$36,"No",IF(F52>'A - Contractor Summary'!$C$39,"",""))) -> No | P52: No | Q52: 0 | R52: 0 | S52: 59.5 | U52: 1
B53: 40 | C53: Receipt | E53: Vendor No.10 | F53: 2018-10-31 | G53: TLH-STORM-1031-SW18 | I53: FL | J53: 88.9 | M53: =IF(AND(F53>='A - Contractor Summary'!$C$36,F53<='A - Contractor Summary'!$C$38),"Yes",IF(F53<'A - Contractor Summary'!$C$36,"No",IF(F53>'A - Contractor Summary'!$C$39,"",""))) -> No | P53: No | Q53: 0 | R53: 0 | S53: =+J53 -> 88.9 | U53: 1
B54: 41 | C54: Receipt | E54: Vendor No.10 | F54: 2018-10-31 | G54: TLH-STORM-1031-SW18 | I54: FL | J54: 77.2 | M54: =IF(AND(F54>='A - Contractor Summary'!$C$36,F54<='A - Contractor Summary'!$C$38),"Yes",IF(F54<'A - Contractor Summary'!$C$36,"No",IF(F54>'A - Contractor Summary'!$C$39,"",""))) -> No | P54: No | Q54: 0 | R54: 0 | S54: =+J54 -> 77.2 | U54: 1
B55: 42 | C55: Receipt | E55: Vendor No.10 | F55: 2018-10-31 | G55: TLH-STORM-1031-SW18 | I55: FL | J55: 78.35 | M55: =IF(AND(F55>='A - Contractor Summary'!$C$36,F55<='A - Contractor Summary'!$C$38),"Yes",IF(F55<'A - Contractor Summary'!$C$36,"No",IF(F55>'A - Contractor Summary'!$C$39,"",""))) -> No | P55: No | Q55: 0 | R55: 0 | S55: 78.35 | U55: 1
B56: 43 | C56: Receipt | E56: Vendor No.10 | F56: 2018-10-31 | G56: TLH-STORM-1031-SW18 | I56: FL | J56: 103.15 | M56: =IF(AND(F56>='A - Contractor Summary'!$C$36,F56<='A - Contractor Summary'!$C$38),"Yes",IF(F56<'A - Contractor Summary'!$C$36,"No",IF(F56>'A - Contractor Summary'!$C$39,"",""))) -> No | P56: No | Q56: 0 | R56: 0 | S56: 103.15 | U56: 1
B57: 44 | C57: Receipt | E57: Vendor No.10 | F57: 2018-10-31 | G57: TLH-STORM-1031-SW18 | I57: FL | J57: 101.53 | M57: =IF(AND(F57>='A - Contractor Summary'!$C$36,F57<='A - Contractor Summary'!$C$38),"Yes",IF(F57<'A - Contractor Summary'!$C$36,"No",IF(F57>'A - Contractor Summary'!$C$39,"",""))) -> No | P57: No | Q57: 0 | R57: 0 | S57: 101.53 | U57: 1
B58: 45 | C58: Receipt | E58: Vendor No.10 | F58: 2018-10-31 | G58: TLH-STORM-1031-SW18 | I58: FL | J58: 69.2 | M58: =IF(AND(F58>='A - Contractor Summary'!$C$36,F58<='A - Contractor Summary'!$C$38),"Yes",IF(F58<'A - Contractor Summary'!$C$36,"No",IF(F58>'A - Contractor Summary'!$C$39,"",""))) -> No | P58: No | Q58: 0 | R58: 0 | S58: 69.2 | U58: 1
M59: =IF(AND(F59>='A - Contractor Summary'!$C$36,F59<='A - Contractor Summary'!$C$38),"Yes",IF(F59<'A - Contractor Summary'!$C$36,"No",IF(F59>'A - Contractor Summary'!$C$39,"",""))) -> No | S59: 0
M60: =IF(AND(F60>='A - Contractor Summary'!$C$36,F60<='A - Contractor Summary'!$C$38),"Yes",IF(F60<'A - Contractor Summary'!$C$36,"No",IF(F60>'A - Contractor Summary'!$C$39,"",""))) -> No | N60: =IF(OR(M60="Yes",M60="No")*AND(F60<'A - Contractor Summary'!$C$39),"",IF(AND(F60>'A - Contractor Summary'!$C$39,F60<'A - Contractor Summary'!$C$42),"Yes",IF(F60>'A - Contractor Summary'!$C$42,"No","Needs Review"))) ->  | P60: No | Q60: =IF(P60="Yes",#REF!,0) -> 0 | R60: =IF(P60="ED Review",#REF!,0) -> 0 | S60: 0
M61: =IF(AND(F61>='A - Contractor Summary'!$C$36,F61<='A - Contractor Summary'!$C$38),"Yes",IF(F61<'A - Contractor Summary'!$C$36,"No",IF(F61>'A - Contractor Summary'!$C$39,"",""))) -> No | N61: =IF(OR(M61="Yes",M61="No")*AND(F61<'A - Contractor Summary'!$C$39),"",IF(AND(F61>'A - Contractor Summary'!$C$39,F61<'A - Contractor Summary'!$C$42),"Yes",IF(F61>'A - Contractor Summary'!$C$42,"No","Needs Review"))) ->  | P61: No | Q61: =IF(P61="Yes",#REF!,0) -> 0 | R61: =IF(P61="ED Review",#REF!,0) -> 0 | S61: 0
J62: =SUM(J14:J61) -> 3371.23 | Q62: =IFERROR(SUM(Q14:Q61),0) -> 0 | R62: =IFERROR(SUM(R14:R61),0) -> 0 | S62: =SUM(S14:S61) -> 3371.23 | T62: =SUM(T14:T61) -> 0 | U62: =R62-S62-T62 -> -3371.23 | V62: check (a)
B68: Tickmark Explanation:
B69: 1 Receipts Provided

Sheet F - Meals
B2: Meal Charges
B4: Test Plan: (A) Obtain support of individual charges. (B) Enter Yes/No if receipt is itemized. (C) Enter Yes/No if proof of payment has been provided. (D) Ensure charges fall between the dates the vendor was mobilized and the date they arrived. (E) Ensure charges are prior to the date the vendor arrived home or was released to another utility. (F) Ensure the location of charge was reasonable (G) Determine the amount(s) to be reviewed, allowed and/or disallowed. (H) For charges which required further review, document review and include why it was determined to be allowed/disallowed via a tickmark.
B9: a | C9: Check figure should equal $0. Cell will appear yellow if discrepancies are noted.
C11: A | L11: B | M11: C | N11: D | O11: E | P11: F | Q11: G | T11: H
B12: Support Reviewed | N12: Conclusions
B13: # | C13: Type of Support | D13: Support Identifier | E13: Company | F13: Crew | G13: Date | H13: Person | I13: Restaurant Name | J13: Location | K13: $ Total | L13: Itemized Receipt | M13: Proof of Payment | N13: Reasonable based on Mobilization date(s) | O13: Reasonable based on Demobilization date(s) | P13: Locations Reasonable | Q13: Conclusion | R13: $ Allowable Charge | S13: $ To Be Reviewed | T13: Reviewed - Allowable Charge | U13: Reviewed - Unallowable Charge | V13: Tickmarks
B14: 1 | C14: receipt | D14: Support Identifier | E14: Vendor No.10 | F14: Michael Thompson | G14: 2018-10-17 | H14: 19 | I14: Flamingo Grill Buffet | J14: Kannapolis, NC | K14: 337.77 | L14: Itemized Receipt | M14: Proof of Payment | N14: yes | O14: yes | P14: Yes | Q14: Conclusion | R14: =+K14 -> 337.77 | S14: =IF(Q14="Needs Review",K14,0) -> 0
B15: 2 | C15: receipt | D15: Support Identifier | E15: Vendor No.10 | F15: Michael Thompson | G15: 2018-10-17 | H15: 19 | I15: Atlanta South 75 | J15: 122 Truck Stop Way | K15: 328.39 | L15: Itemized Receipt | M15: Proof of Payment | N15: yes | O15: yes | P15: Yes | Q15: Conclusion | R15: =+K15 -> 328.39 | S15: 0
B16: 3 | C16: receipt | D16: Support Identifier | E16: Vendor No.10 | F16: Michael Thompson | G16: 2018-10-29 | H16: 19 | I16: Hardees | J16: Marianna, FL | K16: 54.67 | L16: Itemized Receipt | M16: Proof of Payment | N16: yes | O16: yes | P16: Yes | Q16: Conclusion | R16: =+K16 -> 54.67 | S16: 0
B17: 4 | I17: meal surcharge | K17: =SUM(K14:K16)*0.15 -> 108.1245 | L17: Itemized Receipt | M17: Proof of Payment | N17: yes | O17: yes | P17: Yes | Q17: Conclusion | R17: =+K17 -> 108.1245 | S17: 0
K18: =SUM(K14:K17) -> 828.9545 | R18: =IFERROR(SUM(R14:R17),0) -> 828.9545 | S18: =IFERROR(SUM(S14:S17),0) -> 0 | T18: =SUM(T14:T17) -> 0 | U18: =SUM(U14:U17) -> 0 | V18: =S18-T18-U18 -> 0 | W18: check (a)
B22: Tickmark Explanation:
C23: 1
C24: 2
C25: 3
C26: 4
C27: 5
C28: 6
C29: 7

Sheet I - Other
B2: Other Charges
B4: Test Plan: (A) Obtain support of individual charges. (B) Enter Yes/No if receipt is itemized. (C) Enter Yes/No if proof of payment has been provided. (D) Ensure charges fall between the dates the vendor was mobilized and the date they arrived. (E) Ensure charges are prior to the date the vendor arrived home or was released to another utility. (F) Ensure the expense type is reasonable (G) Determine the amount(s) to be reviewed, allowed and/or disallowed. (H) For charges which required further review, document review and include why it was determined to be allowed/disallowed via a tickmark.
B9: a | C9: Check figure should equal $0. Cell will appear yellow if discrepancies are noted.
C12: A | L12: B | M12: C | N12: D | O12: E | P12: F | Q12: G | T12: H
B13: Support Reviewed | N13: Conclusions
B14: # | C14: Type of Support | D14: Support Identifier | E14: Company | F14: Crew | G14: Date | H14: Person | I14: Vendor Name | J14: Location | K14: $ Total | L14: Itemized Receipt | M14: Proof of Payment | N14: Reasonable based on Mobilization date(s) | O14: Reasonable based on Demobilization date(s) | P14: Expense Type Appropriate | Q14: Conclusion | R14: $ Allowable Charge | S14: $ To Be Reviewed | T14: Reviewed - Allowable Charge | U14: Reviewed - Unallowable Charge | V14: Tickmarks
B15: 1 | N15: =IF(AND(G15>='A - Contractor Summary'!$C$36,G15<='A - Contractor Summary'!$C$38),"Yes",IF(G15<'A - Contractor Summary'!$C$36,"No",IF(G15>'A - Contractor Summary'!$C$39,"",""))) -> No | O15: =IF(OR(N15="Yes",N15="No")*AND(G15<'A - Contractor Summary'!$C$39),"",IF(AND(G15>'A - Contractor Summary'!$C$39,G15<'A - Contractor Summary'!$C$42),"Yes",IF(G15>'A - Contractor Summary'!$C$42,"No","Needs Review"))) ->  | P15: Needs Reviewed | Q15: =IF(AND(P15="YES",L15="Yes",M15="yes")*OR(N15="Yes",O15="Yes"),"Yes",IF(OR(O15="No",P15="No",N15="No",M15="No"),"No","Needs Review")) -> No | R15: =IF(Q15="Yes",K15,0) -> 0 | S15: =IF(Q15="Needs Review",K15,0) -> 0
K16: =SUM(K15:K15) -> 0 | R16: =IFERROR(SUM(R15:R15),0) -> 0 | S16: =IFERROR(SUM(S15:S15),0) -> 0 | T16: =SUM(T15:T15) -> 0 | U16: =SUM(U15:U15) -> 0 | V16: =S16-T16-U16 -> 0 | W16: check (a)
B20: Tickmark Explanation:
C21: 1

Sheet G - Per Diem
B2: Per Diem Charges
B4: Test Plan: (A) Enter per diem charges per invoice. (B) Enter number of crew worked per timecard. (C) Enter the Per Diem Rate charged per person per meal (D) Ensure the number of crew members being charged is appropriate (This is comparing the submitted timecards and the per diem charges invoiced). (E) Ensure charges fall between the dates the vendor was mobilized and the date they arrived. (F) Ensure charges are prior to the date the vendor arrived home or was released to another utility. (G) Determine the amount(s) to be reviewed, allowed and/or disallowed. (H) For charges which required further review, document review and include why it was determined to be allowed/disallowed via a tickmark.
B10: Rx | C10: Recalculated.
B11: a | C11: Check figure should equal $0. Cell will appear yellow if discrepancies are noted.
B14: A | F14: B | G14: Rx | H14: C | I14: Rx | J14: D | K14: E | L14: F | M14: G | P14: H
B15: Support Reviewed | J15: Conclusion
B16: Dates | C16: Company | D16: Per Diem Type | E16: Meal $Amt. (per invoice) | F16: Meal $Amt (per timecards) | G16: Difference | H16: Per Diem Rate | I16: Total Per Diem | J16: # Crew Reasonable | K16: Reasonable based on Mobilization date(s) | L16: Reasonable based on Demobilization date(s) | M16: Conclusion | N16: $ Allowable Charge | O16: $ To Be Reviewed | P16: Reviewed - Allowable Charge | Q16: Reviewed - Unallowable Charge | R16: Tickmarks
G17: =E17-F17 -> 0 | I17: =H17*E17 -> 0 | J17: =IF(G17>0,"No",IF(F17=0,"N/A","Yes")) -> N/A | K17: =IF(AND(B17>='A - Contractor Summary'!$C$36,B17<='A - Contractor Summary'!$C$38),"Yes",IF(B17<'A - Contractor Summary'!$C$36,"No",IF(B17>'A - Contractor Summary'!$C$39,"",""))) -> No | L17: =IF(OR(K17="Yes",K17="No")*AND(B17<'A - Contractor Summary'!$C$39),"",IF(AND(B17>'A - Contractor Summary'!$C$39,B17<'A - Contractor Summary'!$C$42),"Yes",IF(B17>'A - Contractor Summary'!$C$42,"No","Needs Review"))) ->  | M17: =IF(AND(J17="Yes")*OR(K17="Yes",L17="Yes"),"Yes",IF(OR(K17="No",J17="No",L17="No"),"No","Needs Review")) -> No | N17: =IF(M17="Yes",I17,0) -> 0 | O17: =IF(M17="Needs Review",I17,0) -> 0 | P17: =+I17 -> 0 | R17: 1
G18: 0 | I18: =H18*E18 -> 0 | J18: =IF(G18>0,"No",IF(F18=0,"N/A","Yes")) -> N/A | K18: =IF(AND(B18>='A - Contractor Summary'!$C$36,B18<='A - Contractor Summary'!$C$38),"Yes",IF(B18<'A - Contractor Summary'!$C$36,"No",IF(B18>'A - Contractor Summary'!$C$39,"",""))) -> No | L18: =IF(OR(K18="Yes",K18="No")*AND(B18<'A - Contractor Summary'!$C$39),"",IF(AND(B18>'A - Contractor Summary'!$C$39,B18<'A - Contractor Summary'!$C$42),"Yes",IF(B18>'A - Contractor Summary'!$C$42,"No","Needs Review"))) ->  | M18: No | N18: 0 | O18: 0 | P18: =+I18 -> 0 | R18: 1
G19: 0 | I19: 0 | J19: =IF(G19>0,"No",IF(F19=0,"N/A","Yes")) -> N/A | K19: =IF(AND(B19>='A - Contractor Summary'!$C$36,B19<='A - Contractor Summary'!$C$38),"Yes",IF(B19<'A - Contractor Summary'!$C$36,"No",IF(B19>'A - Contractor Summary'!$C$39,"",""))) -> No | L19: =IF(OR(K19="Yes",K19="No")*AND(B19<'A - Contractor Summary'!$C$39),"",IF(AND(B19>'A - Contractor Summary'!$C$39,B19<'A - Contractor Summary'!$C$42),"Yes",IF(B19>'A - Contractor Summary'!$C$42,"No","Needs Review"))) ->  | M19: No | N19: 0 | O19: 0 | P19: 0 | R19: 1
G20: 0 | I20: 0 | J20: N/A | K20: =IF(AND(B20>='A - Contractor Summary'!$C$36,B20<='A - Contractor Summary'!$C$38),"Yes",IF(B20<'A - Contractor Summary'!$C$36,"No",IF(B20>'A - Contractor Summary'!$C$39,"",""))) -> No | L20: =IF(OR(K20="Yes",K20="No")*AND(B20<'A - Contractor Summary'!$C$39),"",IF(AND(B20>'A - Contractor Summary'!$C$39,B20<'A - Contractor Summary'!$C$42),"Yes",IF(B20>'A - Contractor Summary'!$C$42,"No","Needs Review"))) ->  | M20: No | N20: 0 | O20: 0
G21: 0 | I21: 0 | J21: N/A | K21: =IF(AND(B21>='A - Contractor Summary'!$C$36,B21<='A - Contractor Summary'!$C$38),"Yes",IF(B21<'A - Contractor Summary'!$C$36,"No",IF(B21>'A - Contractor Summary'!$C$39,"",""))) -> No | L21: =IF(OR(K21="Yes",K21="No")*AND(B21<'A - Contractor Summary'!$C$39),"",IF(AND(B21>'A - Contractor Summary'!$C$39,B21<'A - Contractor Summary'!$C$42),"Yes",IF(B21>'A - Contractor Summary'!$C$42,"No","Needs Review"))) ->  | M21: No | N21: 0 | O21: 0
G22: 0 | I22: 0 | J22: N/A | K22: =IF(AND(B22>='A - Contractor Summary'!$C$36,B22<='A - Contractor Summary'!$C$38),"Yes",IF(B22<'A - Contractor Summary'!$C$36,"No",IF(B22>'A - Contractor Summary'!$C$39,"",""))) -> No | L22: =IF(OR(K22="Yes",K22="No")*AND(B22<'A - Contractor Summary'!$C$39),"",IF(AND(B22>'A - Contractor Summary'!$C$39,B22<'A - Contractor Summary'!$C$42),"Yes",IF(B22>'A - Contractor Summary'!$C$42,"No","Needs Review"))) ->  | M22: No | N22: 0 | O22: 0
G23: 0 | I23: 0 | J23: N/A | K23: =IF(AND(B23>='A - Contractor Summary'!$C$36,B23<='A - Contractor Summary'!$C$38),"Yes",IF(B23<'A - Contractor Summary'!$C$36,"No",IF(B23>'A - Contractor Summary'!$C$39,"",""))) -> No | L23: =IF(OR(K23="Yes",K23="No")*AND(B23<'A - Contractor Summary'!$C$39),"",IF(AND(B23>'A - Contractor Summary'!$C$39,B23<'A - Contractor Summary'!$C$42),"Yes",IF(B23>'A - Contractor Summary'!$C$42,"No","Needs Review"))) ->  | M23: No | N23: 0 | O23: 0
G24: 0 | I24: 0 | J24: N/A | K24: =IF(AND(B24>='A - Contractor Summary'!$C$36,B24<='A - Contractor Summary'!$C$38),"Yes",IF(B24<'A - Contractor Summary'!$C$36,"No",IF(B24>'A - Contractor Summary'!$C$39,"",""))) -> No
G25: 0 | I25: 0 | J25: N/A | K25: =IF(AND(B25>='A - Contractor Summary'!$C$36,B25<='A - Contractor Summary'!$C$38),"Yes",IF(B25<'A - Contractor Summary'!$C$36,"No",IF(B25>'A - Contractor Summary'!$C$39,"",""))) -> No
G26: 0 | I26: 0 | J26: N/A | K26: =IF(AND(B26>='A - Contractor Summary'!$C$36,B26<='A - Contractor Summary'!$C$38),"Yes",IF(B26<'A - Contractor Summary'!$C$36,"No",IF(B26>'A - Contractor Summary'!$C$39,"",""))) -> No
G27: 0 | I27: 0 | J27: N/A | K27: =IF(AND(B27>='A - Contractor Summary'!$C$36,B27<='A - Contractor Summary'!$C$38),"Yes",IF(B27<'A - Contractor Summary'!$C$36,"No",IF(B27>'A - Contractor Summary'!$C$39,"",""))) -> No
G28: 0 | I28: 0 | J28: N/A | K28: =IF(AND(B28>='A - Contractor Summary'!$C$36,B28<='A - Contractor Summary'!$C$38),"Yes",IF(B28<'A - Contractor Summary'!$C$36,"No",IF(B28>'A - Contractor Summary'!$C$39,"",""))) -> No
G29: 0 | I29: 0 | J29: N/A | K29: =IF(AND(B29>='A - Contractor Summary'!$C$36,B29<='A - Contractor Summary'!$C$38),"Yes",IF(B29<'A - Contractor Summary'!$C$36,"No",IF(B29>'A - Contractor Summary'!$C$39,"",""))) -> No
G30: 0 | I30: 0 | J30: N/A | K30: =IF(AND(B30>='A - Contractor Summary'!$C$36,B30<='A - Contractor Summary'!$C$38),"Yes",IF(B30<'A - Contractor Summary'!$C$36,"No",IF(B30>'A - Contractor Summary'!$C$39,"",""))) -> No
G31: 0 | I31: 0 | J31: N/A | K31: =IF(AND(B31>='A - Contractor Summary'!$C$36,B31<='A - Contractor Summary'!$C$38),"Yes",IF(B31<'A - Contractor Summary'!$C$36,"No",IF(B31>'A - Contractor Summary'!$C$39,"",""))) -> No
G32: 0 | I32: 0 | J32: N/A | K32: =IF(AND(B32>='A - Contractor Summary'!$C$36,B32<='A - Contractor Summary'!$C$38),"Yes",IF(B32<'A - Contractor Summary'!$C$36,"No",IF(B32>'A - Contractor Summary'!$C$39,"",""))) -> No | L32: =IF(OR(K32="Yes",K32="No")*AND(B32<'A - Contractor Summary'!$C$39),"",IF(AND(B32>'A - Contractor Summary'!$C$39,B32<'A - Contractor Summary'!$C$42),"Yes",IF(B32>'A - Contractor Summary'!$C$42,"No","Needs Review"))) ->  | M32: =IF(AND(J32="Yes")*OR(K32="Yes",L32="Yes"),"Yes",IF(OR(K32="No",J32="No",L32="No"),"No","Needs Review")) -> No | N32: =IF(M32="Yes",I32,0) -> 0 | O32: =IF(M32="Needs Review",I32,0) -> 0
G33: =SUM(G17:G32) -> 0 | I33: =SUM(I17:I32) -> 0 | N33: =IFERROR(SUM(N17:N32),0) -> 0 | O33: =IFERROR(SUM(O17:O32),0) -> 0 | P33: =SUM(P17:P32) -> 0 | Q33: =SUM(Q17:Q32) -> 0 | R33: =O33-P33-Q33 -> 0 | S33: check (a)
B36: Tickmark Explanation:
C37: 1 Receipts Provided

Sheet H - Mileage
B2: Mileage Charges
B4: Test Plan: (A) Obtain support of individual mileage charged (Typically a rate and mileage included on invoice). (B) Ensure charges fall between the dates the vendor was mobilized and the date they arrived. (C) Ensure charges are prior to the date the vendor arrived home or was released to another utility. (D) Ensure number of miles charged deemed reasonable based on vendor location (recalculated per 'A - Contractor Summary' tab). (E) Ensure the location of charge was reasonable (If mobilizing, charges should be related to travelling to TECO Service area, and home, if demobilizing). (F) Determine the amount(s) to be reviewed, allowed and/or disallowed. (G) For charges which required further review, document review and include why it was determined to be allowed/disallowed via a tickmark.
B10: Rx | C10: Recalculated.
B11: a | C11: Check figure should equal $0. Cell will appear yellow if discrepancies are noted.
C13: A | L13: Rx | M13: B | N13: C | O13: D | P13: E | Q13: F | T13: G
B14: Support Reviewed | M14: Conclusions
B15: # | C15: Type of Support | D15: Company | E15: Equipment Name | F15: Equipment ID | G15: Crew | H15: Date | I15: Location | J15: Miles Charged | K15: $ / Mile (Rate) | L15: Total Charge | M15: Reasonable based on Mobilization date(s) | N15: Reasonable based on Demobilization date(s) | O15: Number of Miles Charged Reasonable | P15: Locations Reasonable | Q15: Conclusion | R15: $ Allowable Charge | S15: $ To Be Reviewed | T15: Reviewed - Allowable Charge | U15: Reviewed - Unallowable Charge | V15: Tickmarks
B16: 1 | L16: =J16*K16 -> 0 | M16: =IF(AND(H16>='A - Contractor Summary'!$C$36,H16<='A - Contractor Summary'!$C$38),"Yes",IF(H16<'A - Contractor Summary'!$C$36,"No",IF(H16>'A - Contractor Summary'!$C$39,"",""))) -> No | N16: =IF(OR(M16="Yes",M16="No")*AND(H16<'A - Contractor Summary'!$C$39),"",IF(AND(H16>'A - Contractor Summary'!$C$39,H16<'A - Contractor Summary'!$C$42),"Yes",IF(H16>'A - Contractor Summary'!$C$42,"No","Needs Review"))) ->  | O16: =IF(AND(J16>PRODUCT('A - Contractor Summary'!$C$29,0.85),J16<PRODUCT('A - Contractor Summary'!$C$29,1.15)),"Yes","No") -> No | Q16: =IF(AND(P16="Yes",O16="Yes")*OR(N16="Yes",M16="Yes"),"Yes",IF(OR(M16="No",N16="No",P16="No",O16="No"),"No","Needs Review")) -> No | R16: =IF(Q16="Yes",L16,0) -> 0 | S16: =IF(Q16="Needs Review",L16,0) -> 0
B17: 2 | L17: 0 | M17: =IF(AND(H17>='A - Contractor Summary'!$C$36,H17<='A - Contractor Summary'!$C$38),"Yes",IF(H17<'A - Contractor Summary'!$C$36,"No",IF(H17>'A - Contractor Summary'!$C$39,"",""))) -> No | N17: =IF(OR(M17="Yes",M17="No")*AND(H17<'A - Contractor Summary'!$C$39),"",IF(AND(H17>'A - Contractor Summary'!$C$39,H17<'A - Contractor Summary'!$C$42),"Yes",IF(H17>'A - Contractor Summary'!$C$42,"No","Needs Review"))) ->  | O17: =IF(AND(J17>PRODUCT('A - Contractor Summary'!$C$29,0.85),J17<PRODUCT('A - Contractor Summary'!$C$29,1.15)),"Yes","No") -> No | Q17: No | R17: 0 | S17: 0
B18: 3 | L18: 0 | M18: =IF(AND(H18>='A - Contractor Summary'!$C$36,H18<='A - Contractor Summary'!$C$38),"Yes",IF(H18<'A - Contractor Summary'!$C$36,"No",IF(H18>'A - Contractor Summary'!$C$39,"",""))) -> No | N18: =IF(OR(M18="Yes",M18="No")*AND(H18<'A - Contractor Summary'!$C$39),"",IF(AND(H18>'A - Contractor Summary'!$C$39,H18<'A - Contractor Summary'!$C$42),"Yes",IF(H18>'A - Contractor Summary'!$C$42,"No","Needs Review"))) ->  | O18: =IF(AND(J18>PRODUCT('A - Contractor Summary'!$C$29,0.85),J18<PRODUCT('A - Contractor Summary'!$C$29,1.15)),"Yes","No") -> No | Q18: No | R18: 0 | S18: 0
B19: 4 | L19: 0 | M19: =IF(AND(H19>='A - Contractor Summary'!$C$36,H19<='A - Contractor Summary'!$C$38),"Yes",IF(H19<'A - Contractor Summary'!$C$36,"No",IF(H19>'A - Contractor Summary'!$C$39,"",""))) -> No | N19: =IF(OR(M19="Yes",M19="No")*AND(H19<'A - Contractor Summary'!$C$39),"",IF(AND(H19>'A - Contractor Summary'!$C$39,H19<'A - Contractor Summary'!$C$42),"Yes",IF(H19>'A - Contractor Summary'!$C$42,"No","Needs Review"))) ->  | O19: =IF(AND(J19>PRODUCT('A - Contractor Summary'!$C$29,0.85),J19<PRODUCT('A - Contractor Summary'!$C$29,1.15)),"Yes","No") -> No | Q19: No | R19: 0 | S19: 0
B20: 5 | L20: 0 | M20: =IF(AND(H20>='A - Contractor Summary'!$C$36,H20<='A - Contractor Summary'!$C$38),"Yes",IF(H20<'A - Contractor Summary'!$C$36,"No",IF(H20>'A - Contractor Summary'!$C$39,"",""))) -> No | N20: =IF(OR(M20="Yes",M20="No")*AND(H20<'A - Contractor Summary'!$C$39),"",IF(AND(H20>'A - Contractor Summary'!$C$39,H20<'A - Contractor Summary'!$C$42),"Yes",IF(H20>'A - Contractor Summary'!$C$42,"No","Needs Review"))) ->  | O20: =IF(AND(J20>PRODUCT('A - Contractor Summary'!$C$29,0.85),J20<PRODUCT('A - Contractor Summary'!$C$29,1.15)),"Yes","No") -> No | Q20: No | R20: 0 | S20: 0
B21: 6 | L21: 0 | M21: =IF(AND(H21>='A - Contractor Summary'!$C$36,H21<='A - Contractor Summary'!$C$38),"Yes",IF(H21<'A - Contractor Summary'!$C$36,"No",IF(H21>'A - Contractor Summary'!$C$39,"",""))) -> No | N21: =IF(OR(M21="Yes",M21="No")*AND(H21<'A - Contractor Summary'!$C$39),"",IF(AND(H21>'A - Contractor Summary'!$C$39,H21<'A - Contractor Summary'!$C$42),"Yes",IF(H21>'A - Contractor Summary'!$C$42,"No","Needs Review"))) ->  | O21: =IF(AND(J21>PRODUCT('A - Contractor Summary'!$C$29,0.85),J21<PRODUCT('A - Contractor Summary'!$C$29,1.15)),"Yes","No") -> No | Q21: No | R21: 0 | S21: 0
B22: 7 | L22: 0 | M22: =IF(AND(H22>='A - Contractor Summary'!$C$36,H22<='A - Contractor Summary'!$C$38),"Yes",IF(H22<'A - Contractor Summary'!$C$36,"No",IF(H22>'A - Contractor Summary'!$C$39,"",""))) -> No | N22: =IF(OR(M22="Yes",M22="No")*AND(H22<'A - Contractor Summary'!$C$39),"",IF(AND(H22>'A - Contractor Summary'!$C$39,H22<'A - Contractor Summary'!$C$42),"Yes",IF(H22>'A - Contractor Summary'!$C$42,"No","Needs Review"))) ->  | O22: =IF(AND(J22>PRODUCT('A - Contractor Summary'!$C$29,0.85),J22<PRODUCT('A - Contractor Summary'!$C$29,1.15)),"Yes","No") -> No | Q22: No | R22: 0 | S22: 0
B23: 8 | L23: 0 | M23: =IF(AND(H23>='A - Contractor Summary'!$C$36,H23<='A - Contractor Summary'!$C$38),"Yes",IF(H23<'A - Contractor Summary'!$C$36,"No",IF(H23>'A - Contractor Summary'!$C$39,"",""))) -> No | N23: =IF(OR(M23="Yes",M23="No")*AND(H23<'A - Contractor Summary'!$C$39),"",IF(AND(H23>'A - Contractor Summary'!$C$39,H23<'A - Contractor Summary'!$C$42),"Yes",IF(H23>'A - Contractor Summary'!$C$42,"No","Needs Review"))) ->  | O23: =IF(AND(J23>PRODUCT('A - Contractor Summary'!$C$29,0.85),J23<PRODUCT('A - Contractor Summary'!$C$29,1.15)),"Yes","No") -> No | Q23: No | R23: 0 | S23: 0
B24: 9 | L24: 0 | M24: =IF(AND(H24>='A - Contractor Summary'!$C$36,H24<='A - Contractor Summary'!$C$38),"Yes",IF(H24<'A - Contractor Summary'!$C$36,"No",IF(H24>'A - Contractor Summary'!$C$39,"",""))) -> No | N24: =IF(OR(M24="Yes",M24="No")*AND(H24<'A - Contractor Summary'!$C$39),"",IF(AND(H24>'A - Contractor Summary'!$C$39,H24<'A - Contractor Summary'!$C$42),"Yes",IF(H24>'A - Contractor Summary'!$C$42,"No","Needs Review"))) ->  | O24: =IF(AND(J24>PRODUCT('A - Contractor Summary'!$C$29,0.85),J24<PRODUCT('A - Contractor Summary'!$C$29,1.15)),"Yes","No") -> No | Q24: No | R24: 0 | S24: 0
B25: 10 | L25: 0 | M25: =IF(AND(H25>='A - Contractor Summary'!$C$36,H25<='A - Contractor Summary'!$C$38),"Yes",IF(H25<'A - Contractor Summary'!$C$36,"No",IF(H25>'A - Contractor Summary'!$C$39,"",""))) -> No | N25: =IF(OR(M25="Yes",M25="No")*AND(H25<'A - Contractor Summary'!$C$39),"",IF(AND(H25>'A - Contractor Summary'!$C$39,H25<'A - Contractor Summary'!$C$42),"Yes",IF(H25>'A - Contractor Summary'!$C$42,"No","Needs Review"))) ->  | O25: =IF(AND(J25>PRODUCT('A - Contractor Summary'!$C$29,0.85),J25<PRODUCT('A - Contractor Summary'!$C$29,1.15)),"Yes","No") -> No | Q25: No | R25: 0 | S25: 0
B26: 11 | L26: 0 | M26: =IF(AND(H26>='A - Contractor Summary'!$C$36,H26<='A - Contractor Summary'!$C$38),"Yes",IF(H26<'A - Contractor Summary'!$C$36,"No",IF(H26>'A - Contractor Summary'!$C$39,"",""))) -> No | N26: =IF(OR(M26="Yes",M26="No")*AND(H26<'A - Contractor Summary'!$C$39),"",IF(AND(H26>'A - Contractor Summary'!$C$39,H26<'A - Contractor Summary'!$C$42),"Yes",IF(H26>'A - Contractor Summary'!$C$42,"No","Needs Review"))) ->  | O26: =IF(AND(J26>PRODUCT('A - Contractor Summary'!$C$29,0.85),J26<PRODUCT('A - Contractor Summary'!$C$29,1.15)),"Yes","No") -> No | Q26: No | R26: 0 | S26: 0
B27: 12 | L27: 0 | M27: =IF(AND(H27>='A - Contractor Summary'!$C$36,H27<='A - Contractor Summary'!$C$38),"Yes",IF(H27<'A - Contractor Summary'!$C$36,"No",IF(H27>'A - Contractor Summary'!$C$39,"",""))) -> No | N27: =IF(OR(M27="Yes",M27="No")*AND(H27<'A - Contractor Summary'!$C$39),"",IF(AND(H27>'A - Contractor Summary'!$C$39,H27<'A - Contractor Summary'!$C$42),"Yes",IF(H27>'A - Contractor Summary'!$C$42,"No","Needs Review"))) ->  | O27: =IF(AND(J27>PRODUCT('A - Contractor Summary'!$C$29,0.85),J27<PRODUCT('A - Contractor Summary'!$C$29,1.15)),"Yes","No") -> No | Q27: No | R27: 0 | S27: 0
B28: 13 | L28: 0 | M28: =IF(AND(H28>='A - Contractor Summary'!$C$36,H28<='A - Contractor Summary'!$C$38),"Yes",IF(H28<'A - Contractor Summary'!$C$36,"No",IF(H28>'A - Contractor Summary'!$C$39,"",""))) -> No | N28: =IF(OR(M28="Yes",M28="No")*AND(H28<'A - Contractor Summary'!$C$39),"",IF(AND(H28>'A - Contractor Summary'!$C$39,H28<'A - Contractor Summary'!$C$42),"Yes",IF(H28>'A - Contractor Summary'!$C$42,"No","Needs Review"))) ->  | O28: =IF(AND(J28>PRODUCT('A - Contractor Summary'!$C$29,0.85),J28<PRODUCT('A - Contractor Summary'!$C$29,1.15)),"Yes","No") -> No | Q28: No | R28: 0 | S28: 0
B29: 14 | L29: 0 | M29: =IF(AND(H29>='A - Contractor Summary'!$C$36,H29<='A - Contractor Summary'!$C$38),"Yes",IF(H29<'A - Contractor Summary'!$C$36,"No",IF(H29>'A - Contractor Summary'!$C$39,"",""))) -> No | N29: =IF(OR(M29="Yes",M29="No")*AND(H29<'A - Contractor Summary'!$C$39),"",IF(AND(H29>'A - Contractor Summary'!$C$39,H29<'A - Contractor Summary'!$C$42),"Yes",IF(H29>'A - Contractor Summary'!$C$42,"No","Needs Review"))) ->  | O29: =IF(AND(J29>PRODUCT('A - Contractor Summary'!$C$29,0.85),J29<PRODUCT('A - Contractor Summary'!$C$29,1.15)),"Yes","No") -> No | Q29: No | R29: 0 | S29: 0
B30: 15 | L30: 0 | M30: =IF(AND(H30>='A - Contractor Summary'!$C$36,H30<='A - Contractor Summary'!$C$38),"Yes",IF(H30<'A - Contractor Summary'!$C$36,"No",IF(H30>'A - Contractor Summary'!$C$39,"",""))) -> No | N30: =IF(OR(M30="Yes",M30="No")*AND(H30<'A - Contractor Summary'!$C$39),"",IF(AND(H30>'A - Contractor Summary'!$C$39,H30<'A - Contractor Summary'!$C$42),"Yes",IF(H30>'A - Contractor Summary'!$C$42,"No","Needs Review"))) ->  | O30: =IF(AND(J30>PRODUCT('A - Contractor Summary'!$C$29,0.85),J30<PRODUCT('A - Contractor Summary'!$C$29,1.15)),"Yes","No") -> No | Q30: No | R30: 0 | S30: 0
B31: 16 | L31: 0 | M31: =IF(AND(H31>='A - Contractor Summary'!$C$36,H31<='A - Contractor Summary'!$C$38),"Yes",IF(H31<'A - Contractor Summary'!$C$36,"No",IF(H31>'A - Contractor Summary'!$C$39,"",""))) -> No | N31: =IF(OR(M31="Yes",M31="No")*AND(H31<'A - Contractor Summary'!$C$39),"",IF(AND(H31>'A - Contractor Summary'!$C$39,H31<'A - Contractor Summary'!$C$42),"Yes",IF(H31>'A - Contractor Summary'!$C$42,"No","Needs Review"))) ->  | O31: =IF(AND(J31>PRODUCT('A - Contractor Summary'!$C$29,0.85),J31<PRODUCT('A - Contractor Summary'!$C$29,1.15)),"Yes","No") -> No | Q31: No | R31: 0 | S31: 0
B32: 17 | L32: 0 | M32: =IF(AND(H32>='A - Contractor Summary'!$C$36,H32<='A - Contractor Summary'!$C$38),"Yes",IF(H32<'A - Contractor Summary'!$C$36,"No",IF(H32>'A - Contractor Summary'!$C$39,"",""))) -> No | N32: =IF(OR(M32="Yes",M32="No")*AND(H32<'A - Contractor Summary'!$C$39),"",IF(AND(H32>'A - Contractor Summary'!$C$39,H32<'A - Contractor Summary'!$C$42),"Yes",IF(H32>'A - Contractor Summary'!$C$42,"No","Needs Review"))) ->  | O32: =IF(AND(J32>PRODUCT('A - Contractor Summary'!$C$29,0.85),J32<PRODUCT('A - Contractor Summary'!$C$29,1.15)),"Yes","No") -> No | Q32: No | R32: 0 | S32: 0
B33: 18 | L33: 0 | M33: =IF(AND(H33>='A - Contractor Summary'!$C$36,H33<='A - Contractor Summary'!$C$38),"Yes",IF(H33<'A - Contractor Summary'!$C$36,"No",IF(H33>'A - Contractor Summary'!$C$39,"",""))) -> No | N33: =IF(OR(M33="Yes",M33="No")*AND(H33<'A - Contractor Summary'!$C$39),"",IF(AND(H33>'A - Contractor Summary'!$C$39,H33<'A - Contractor Summary'!$C$42),"Yes",IF(H33>'A - Contractor Summary'!$C$42,"No","Needs Review"))) ->  | O33: =IF(AND(J33>PRODUCT('A - Contractor Summary'!$C$29,0.85),J33<PRODUCT('A - Contractor Summary'!$C$29,1.15)),"Yes","No") -> No | Q33: No | R33: =IF(Q33="Yes",#REF!,0) -> 0 | S33: 0
B34: 19 | L34: 0 | M34: =IF(AND(H34>='A - Contractor Summary'!$C$36,H34<='A - Contractor Summary'!$C$38),"Yes",IF(H34<'A - Contractor Summary'!$C$36,"No",IF(H34>'A - Contractor Summary'!$C$39,"",""))) -> No | N34: =IF(OR(M34="Yes",M34="No")*AND(H34<'A - Contractor Summary'!$C$39),"",IF(AND(H34>'A - Contractor Summary'!$C$39,H34<'A - Contractor Summary'!$C$42),"Yes",IF(H34>'A - Contractor Summary'!$C$42,"No","Needs Review"))) ->  | O34: =IF(AND(J34>PRODUCT('A - Contractor Summary'!$C$29,0.85),J34<PRODUCT('A - Contractor Summary'!$C$29,1.15)),"Yes","No") -> No | Q34: No | R34: =IF(Q34="Yes",#REF!,0) -> 0 | S34: 0
B35: 20 | L35: 0 | M35: =IF(AND(H35>='A - Contractor Summary'!$C$36,H35<='A - Contractor Summary'!$C$38),"Yes",IF(H35<'A - Contractor Summary'!$C$36,"No",IF(H35>'A - Contractor Summary'!$C$39,"",""))) -> No | N35: =IF(OR(M35="Yes",M35="No")*AND(H35<'A - Contractor Summary'!$C$39),"",IF(AND(H35>'A - Contractor Summary'!$C$39,H35<'A - Contractor Summary'!$C$42),"Yes",IF(H35>'A - Contractor Summary'!$C$42,"No","Needs Review"))) ->  | O35: =IF(AND(J35>PRODUCT('A - Contractor Summary'!$C$29,0.85),J35<PRODUCT('A - Contractor Summary'!$C$29,1.15)),"Yes","No") -> No | Q35: No | R35: =IF(Q35="Yes",#REF!,0) -> 0 | S35: =IF(Q35="ED Review",#REF!,0) -> 0
L36: =SUM(L16:L35) -> 0 | R36: =IFERROR(SUM(R16:R35),0) -> 0 | S36: =IFERROR(SUM(S16:S35),0) -> 0 | T36: =SUM(T16:T35) -> 0 | U36: =SUM(U16:U35) -> 0 | V36: =S36-T36-U36 -> 0 | W36: check (a)
B42: Tickmark Explanation:
